Workbook

Sheet INTRO
B2: Formulaire de Rapport Commun v.3.1
B4: Le but de ce formulaire de rapport commun - disponible sous forme de fichier Excel - est de mettre à disposition des autorités sanitaires nationales et des gestionnaires de données un outil standardisé qui réponde aux défis, facilite l'intégration et par conséquent contribue à améliorer la gestion de programme. Ce formulaire tend à standardiser le rapport de résultats des programmes nationaux, améliore la disponibilité et la coordination des données de chimioprévention à travers les Bureaux des Régions de l'Organisation mondiale de la Santé. Les autorités nationales sont priées de compléter ce formulaire et de le soumettre à l'Organisation mondiale de la Santé avant le 15 août de l'année en cours pour rapporter les données des activités de chimioprévention mises en oeuvre l'année précédente.
B6: Structure de l'application (feuilles de travail) :
B8: INTRO | C8: Cette feuille contient des instructions pour compléter le formulaire de rapport commun et des informations sur le statut de la chimioprévention pour les maladies d'endémie du pays.
B9: COUNTRY_INFO | C9: Cette feuille contient des informations sur la structure administrative du pays, la population par groupe d'âge, le statut d'endémicité pour chaque maladie, la population devant être traitée par chimioprévention, les interventions prévues et les interventions mises en oeuvre.
B10: MDA1, MDA2, MDA3, T1, T2 et T3 | C10: Ces feuilles contiennent des informations sur l'endémicité des districts ciblés pour le traitement aux médicaments spécifiques pour la chimioprévention, les plans de traitement, et le nombre de personnes traitées par groupe d'âge.
B11: DISTRICT | C11: Cette feuille contient un résumé sur les personnes traitées, par maladie, au niveau de mise en oeuvre. Si les données par genre (sexe) sont disponibles, merci de les saisir.
B12: SUMMARY | C12: Cette feuille contient un résumé sur les personnes traitées, par maladie et par type d'intervention de chimioprévention. Avant de générer le rapport (exécuter macro), veuillez sélectionner la maladie pour laquelle vous souhaitez un rapport. Veuillez suivre le même processus pour générer les divers rapports. Cette feuille doit être imprimée et soumise comme formulaire de rapport commun (voir les instructions pour la soumission du formulaire sous la feuille SUMMARY).
B14: Instructions pour la saisie des données
B16: La plupart des cellules des feuilles de travail mentionnées ci-dessus contiennent des formules calculées automatiquement en fonction du protocole de traitement recommandé par l'OMS pour chaque maladie. Voir : http://www.who.int/neglected_diseases/preventive_chemotherapy/pct_manual/en/index.html
B18: Veuillez entrer vos données dans les cellules en fonction de leur code de couleur :
C20: Blanc - la cellule n'est pas protégée. Veuillez entrer la valeur de l'indicateur demandé.
C22: Jaune - la cellule est protégée et inclut le nom de l'indicateur. Aucune entrée de données requise.
C24: Orange - la cellule n'est pas protégée et contient un menu déroulant. Veuillez sélectionner la valeur dans le menu déroulant.
C27: Vert - la cellule n'est pas protégée et contient des formules. Veuillez changer la valeur indiquée uniquement si vos données sont différentes de celles calculées automatiquement.
C30: Bleu - la cellule est protégée et contient des formules. Aucune entrée de données requise.
B32: Données pays
B34: PAYS | E34: COMORES
B36: Année de rapport des données | E36: 2019
B38: Le pays est-il endémique à la filariose lymphatique (FL) ? | E38: Endémique
B40: Le pays est-il endémique à l'onchocercose (ONCHO) ? | E40: Non endémique
B42: Le pays est-il endémique aux géohelminthiases (STH) ? | E42: Endémique
B44: Le pays est-il endémique à la schistosomiase (SCH) ? | E44: Non endémique
B46: Combien d'unités administratives compte le pays ? | E46: 17
B47: Si les données démographiques par groupe d'âge ne sont pas disponibles au second niveau administratif, veuillez entrer la proportion (%) de population, par groupe d'âge, du pays. Si les données sont disponibles, veuillez laisser les cellules vierges.
B48: 2-4 years age | C48: Enfants d'âge pré-scolaire (EAPréS) | E48: 0.0846
B49: 5-14 years age | C49: Enfants d'âge scolaire (EAS) | E49: 0.2496
B50: 15 years + | C50: Adultes | E50: 0.6138

Sheet COUNTRY_INFO
A1: INFORMATIONS PAYS
A2: Structure administrative, population par groupe d'âge, statut d'endémicité, interventions planifiées et interventions mises en oeuvre
A4: TOTAL | D4: =SUM(D$9:D$1000) -> 788813 | E4: =SUM(E$9:E$1000) -> 66735 | F4: =SUM(F$9:F$1000) -> 196889 | G4: =SUM(G$9:G$1000) -> 484173 | L4: =SUM(L$9:L$1000) -> 788813 | M4: =SUM(M$9:M$1000) -> 0 | N4: =SUM(N$9:N$1000) -> 231998 | O4: =SUM(O$9:O$1000) -> 0
A6: Structure administrative du pays | D6: Population | H6: Endémicité | L6: Population nécessitant la CP | P6: Nombre de tournées de traitement prévues pour l'année | T6: Mise en oeuvre de la chimioprévention | V6: Cliquer ci-dessous pour voir la stratégie recommandée
A7: Pays | B7: Région/Département | C7: District | D7: Total | E7: EAPréS | F7: EAS | G7: Adultes | H7: FL | I7: Oncho | J7: STH | K7: SCH | L7: FL | M7: Oncho | N7: STH | O7: SCH | P7: FL | Q7: Oncho | R7: STH | S7: SCH | T7: TOURNEE 1 | U7: TOURNEE 2 | X7: IU_ID | Y7: IU_Name
A9: =IF(INTRO!$E$34<>0,INTRO!$E$34,"") -> COMORES | B9: NGAZIDJA | C9: Badjini-Est | D9: 31655 | E9: =IF(INTRO!$E$48="","",ROUND($D9*INTRO!$E$48,0)) -> 2678 | F9: =IF(INTRO!$E$49="","",ROUND($D9*INTRO!$E$49,0)) -> 7901 | G9: =IF(INTRO!$E$50="","",ROUND($D9*INTRO!$E$50,0)) -> 19430 | H9: 1 | J9: 2 | L9: =IF(INTRO!$E$38="Endémique", IF($H9>0, IF($H9=4,"Inconnu", IF($H9=99,"Interrompu", $D9)), 0),"Non requis") -> 31655 | M9: =IF(INTRO!$E$40="Endémique", IF($I9>0, IF($I9=4,"Inconnu",IF($I9=99,"Interrompu", $D9)), 0),"Non requis") -> Non requis | N9: =IF(INTRO!$E$42="Endémique", IF(AND($J9>1,$J9<5), IF($J9=4, "Inconnu", E9+F9), 0),"Non requis") -> 10579 | O9: =IF(INTRO!$E$44="Endémique", IF(AND($K9>0,$K9<5), IF($K9=4,"Inconnu", IF($K9=1, $F9*0.33, IF($K9=2, $F9*0.5+$G9*0.2, SUM(F9:G9)))), 0),"Non requis") -> Non requis | P9: 1 | R9: 1 | T9: MDA2 (DEC+ALB) | V9: MDA 2 | X9: 11747 | Y9: Badjini-Est
A10: =IF(INTRO!$E$34<>0,INTRO!$E$34,"") -> COMORES | B10: NGAZIDJA | C10: Badjini-Ouest | D10: 29398 | E10: =IF(INTRO!$E$48="","",ROUND($D10*INTRO!$E$48,0)) -> 2487 | F10: =IF(INTRO!$E$49="","",ROUND($D10*INTRO!$E$49,0)) -> 7338 | G10: =IF(INTRO!$E$50="","",ROUND($D10*INTRO!$E$50,0)) -> 18044 | H10: 1 | J10: 1 | L10: =IF(INTRO!$E$38="Endémique", IF($H10>0, IF($H10=4,"Inconnu", IF($H10=99,"Interrompu", $D10)), 0),"Non requis") -> 29398 | M10: =IF(INTRO!$E$40="Endémique", IF($I10>0, IF($I10=4,"Inconnu",IF($I10=99,"Interrompu", $D10)), 0),"Non requis") -> Non requis | N10: =IF(INTRO!$E$42="Endémique", IF(AND($J10>1,$J10<5), IF($J10=4, "Inconnu", E10+F10), 0),"Non requis") -> 0 | O10: =IF(INTRO!$E$44="Endémique", IF(AND($K10>0,$K10<5), IF($K10=4,"Inconnu", IF($K10=1, $F10*0.33, IF($K10=2, $F10*0.5+$G10*0.2, SUM(F10:G10)))), 0),"Non requis") -> Non requis | P10: 1 | R10: 0 | T10: MDA2 (DEC+ALB) | V10: MDA 2 | X10: 11753 | Y10: Badjini-Ouest
A11: =IF(INTRO!$E$34<>0,INTRO!$E$34,"") -> COMORES | B11: NGAZIDJA | C11: Centre | D11: 185059 | E11: =IF(INTRO!$E$48="","",ROUND($D11*INTRO!$E$48,0)) -> 15656 | F11: =IF(INTRO!$E$49="","",ROUND($D11*INTRO!$E$49,0)) -> 46191 | G11: =IF(INTRO!$E$50="","",ROUND($D11*INTRO!$E$50,0)) -> 113589 | H11: 1 | J11: 2 | L11: =IF(INTRO!$E$38="Endémique", IF($H11>0, IF($H11=4,"Inconnu", IF($H11=99,"Interrompu", $D11)), 0),"Non requis") -> 185059 | M11: =IF(INTRO!$E$40="Endémique", IF($I11>0, IF($I11=4,"Inconnu",IF($I11=99,"Interrompu", $D11)), 0),"Non requis") -> Non requis | N11: =IF(INTRO!$E$42="Endémique", IF(AND($J11>1,$J11<5), IF($J11=4, "Inconnu", E11+F11), 0),"Non requis") -> 61847 | O11: =IF(INTRO!$E$44="Endémique", IF(AND($K11>0,$K11<5), IF($K11=4,"Inconnu", IF($K11=1, $F11*0.33, IF($K11=2, $F11*0.5+$G11*0.2, SUM(F11:G11)))), 0),"Non requis") -> Non requis | P11: 1 | R11: 1 | T11: MDA2 (DEC+ALB) | V11: MDA 2 | X11: 11751 | Y11: Centre
A12: =IF(INTRO!$E$34<>0,INTRO!$E$34,"") -> COMORES | B12: NGAZIDJA | C12: Hamahamet-Mboinkou | D12: 37980 | E12: =IF(INTRO!$E$48="","",ROUND($D12*INTRO!$E$48,0)) -> 3213 | F12: =IF(INTRO!$E$49="","",ROUND($D12*INTRO!$E$49,0)) -> 9480 | G12: =IF(INTRO!$E$50="","",ROUND($D12*INTRO!$E$50,0)) -> 23312 | H12: 1 | J12: 1 | L12: =IF(INTRO!$E$38="Endémique", IF($H12>0, IF($H12=4,"Inconnu", IF($H12=99,"Interrompu", $D12)), 0),"Non requis") -> 37980 | M12: =IF(INTRO!$E$40="Endémique", IF($I12>0, IF($I12=4,"Inconnu",IF($I12=99,"Interrompu", $D12)), 0),"Non requis") -> Non requis | N12: =IF(INTRO!$E$42="Endémique", IF(AND($J12>1,$J12<5), IF($J12=4, "Inconnu", E12+F12), 0),"Non requis") -> 0 | O12: =IF(INTRO!$E$44="Endémique", IF(AND($K12>0,$K12<5), IF($K12=4,"Inconnu", IF($K12=1, $F12*0.33, IF($K12=2, $F12*0.5+$G12*0.2, SUM(F12:G12)))), 0),"Non requis") -> Non requis | P12: 1 | R12: 0 | T12: MDA2 (DEC+ALB) | V12: MDA 2 | X12: 11748 | Y12: Hamahamet-Mboinkou
A13: =IF(INTRO!$E$34<>0,INTRO!$E$34,"") -> COMORES | B13: NGAZIDJA | C13: Hambou | D13: 23603 | E13: =IF(INTRO!$E$48="","",ROUND($D13*INTRO!$E$48,0)) -> 1997 | F13: =IF(INTRO!$E$49="","",ROUND($D13*INTRO!$E$49,0)) -> 5891 | G13: =IF(INTRO!$E$50="","",ROUND($D13*INTRO!$E$50,0)) -> 14488 | H13: 1 | J13: 2 | L13: =IF(INTRO!$E$38="Endémique", IF($H13>0, IF($H13=4,"Inconnu", IF($H13=99,"Interrompu", $D13)), 0),"Non requis") -> 23603 | M13: =IF(INTRO!$E$40="Endémique", IF($I13>0, IF($I13=4,"Inconnu",IF($I13=99,"Interrompu", $D13)), 0),"Non requis") -> Non requis | N13: =IF(INTRO!$E$42="Endémique", IF(AND($J13>1,$J13<5), IF($J13=4, "Inconnu", E13+F13), 0),"Non requis") -> 7888 | O13: =IF(INTRO!$E$44="Endémique", IF(AND($K13>0,$K13<5), IF($K13=4,"Inconnu", IF($K13=1, $F13*0.33, IF($K13=2, $F13*0.5+$G13*0.2, SUM(F13:G13)))), 0),"Non requis") -> Non requis | P13: 1 | R13: 1 | T13: MDA2 (DEC+ALB) | V13: MDA 2 | X13: 11750 | Y13: Hambou
A14: =IF(INTRO!$E$34<>0,INTRO!$E$34,"") -> COMORES | B14: NGAZIDJA | C14: Mitsamiouli-Mboudé | D14: 58200 | E14: =IF(INTRO!$E$48="","",ROUND($D14*INTRO!$E$48,0)) -> 4924 | F14: =IF(INTRO!$E$49="","",ROUND($D14*INTRO!$E$49,0)) -> 14527 | G14: =IF(INTRO!$E$50="","",ROUND($D14*INTRO!$E$50,0)) -> 35723 | H14: 1 | J14: 2 | L14: =IF(INTRO!$E$38="Endémique", IF($H14>0, IF($H14=4,"Inconnu", IF($H14=99,"Interrompu", $D14)), 0),"Non requis") -> 58200 | M14: =IF(INTRO!$E$40="Endémique", IF($I14>0, IF($I14=4,"Inconnu",IF($I14=99,"Interrompu", $D14)), 0),"Non requis") -> Non requis | N14: =IF(INTRO!$E$42="Endémique", IF(AND($J14>1,$J14<5), IF($J14=4, "Inconnu", E14+F14), 0),"Non requis") -> 19451 | O14: =IF(INTRO!$E$44="Endémique", IF(AND($K14>0,$K14<5), IF($K14=4,"Inconnu", IF($K14=1, $F14*0.33, IF($K14=2, $F14*0.5+$G14*0.2, SUM(F14:G14)))), 0),"Non requis") -> Non requis | P14: 1 | R14: 1 | T14: MDA2 (DEC+ALB) | V14: MDA 2 | X14: 11749 | Y14: Mitsamiouli-Mboudé
A15: =IF(INTRO!$E$34<>0,INTRO!$E$34,"") -> COMORES | B15: NGAZIDJA | C15: Oichili-Dimani | D15: 27252 | E15: =IF(INTRO!$E$48="","",ROUND($D15*INTRO!$E$48,0)) -> 2306 | F15: =IF(INTRO!$E$49="","",ROUND($D15*INTRO!$E$49,0)) -> 6802 | G15: =IF(INTRO!$E$50="","",ROUND($D15*INTRO!$E$50,0)) -> 16727 | H15: 1 | J15: 1 | L15: =IF(INTRO!$E$38="Endémique", IF($H15>0, IF($H15=4,"Inconnu", IF($H15=99,"Interrompu", $D15)), 0),"Non requis") -> 27252 | M15: =IF(INTRO!$E$40="Endémique", IF($I15>0, IF($I15=4,"Inconnu",IF($I15=99,"Interrompu", $D15)), 0),"Non requis") -> Non requis | N15: =IF(INTRO!$E$42="Endémique", IF(AND($J15>1,$J15<5), IF($J15=4, "Inconnu", E15+F15), 0),"Non requis") -> 0 | O15: =IF(INTRO!$E$44="Endémique", IF(AND($K15>0,$K15<5), IF($K15=4,"Inconnu", IF($K15=1, $F15*0.33, IF($K15=2, $F15*0.5+$G15*0.2, SUM(F15:G15)))), 0),"Non requis") -> Non requis | P15: 1 | R15: 0 | T15: MDA2 (DEC+ALB) | V15: MDA 2 | X15: 11752 | Y15: Oichili-Dimani
A16: =IF(INTRO!$E$34<>0,INTRO!$E$34,"") -> COMORES | B16: NDZUWANI | C16: Domoni | D16: 66470 | E16: =IF(INTRO!$E$48="","",ROUND($D16*INTRO!$E$48,0)) -> 5623 | F16: =IF(INTRO!$E$49="","",ROUND($D16*INTRO!$E$49,0)) -> 16591 | G16: =IF(INTRO!$E$50="","",ROUND($D16*INTRO!$E$50,0)) -> 40799 | H16: 1 | J16: 3 | L16: =IF(INTRO!$E$38="Endémique", IF($H16>0, IF($H16=4,"Inconnu", IF($H16=99,"Interrompu", $D16)), 0),"Non requis") -> 66470 | M16: =IF(INTRO!$E$40="Endémique", IF($I16>0, IF($I16=4,"Inconnu",IF($I16=99,"Interrompu", $D16)), 0),"Non requis") -> Non requis | N16: =IF(INTRO!$E$42="Endémique", IF(AND($J16>1,$J16<5), IF($J16=4, "Inconnu", E16+F16), 0),"Non requis") -> 22214 | O16: =IF(INTRO!$E$44="Endémique", IF(AND($K16>0,$K16<5), IF($K16=4,"Inconnu", IF($K16=1, $F16*0.33, IF($K16=2, $F16*0.5+$G16*0.2, SUM(F16:G16)))), 0),"Non requis") -> Non requis | P16: 1 | R16: 1 | T16: MDA2 (DEC+ALB) | V16: MDA 2 | W16: T3 | X16: 11754 | Y16: Domoni
A17: =IF(INTRO!$E$34<>0,INTRO!$E$34,"") -> COMORES | B17: NDZUWANI | C17: Mremani | D17: 68226 | E17: =IF(INTRO!$E$48="","",ROUND($D17*INTRO!$E$48,0)) -> 5772 | F17: =IF(INTRO!$E$49="","",ROUND($D17*INTRO!$E$49,0)) -> 17029 | G17: =IF(INTRO!$E$50="","",ROUND($D17*INTRO!$E$50,0)) -> 41877 | H17: 1 | J17: 3 | L17: =IF(INTRO!$E$38="Endémique", IF($H17>0, IF($H17=4,"Inconnu", IF($H17=99,"Interrompu", $D17)), 0),"Non requis") -> 68226 | M17: =IF(INTRO!$E$40="Endémique", IF($I17>0, IF($I17=4,"Inconnu",IF($I17=99,"Interrompu", $D17)), 0),"Non requis") -> Non requis | N17: =IF(INTRO!$E$42="Endémique", IF(AND($J17>1,$J17<5), IF($J17=4, "Inconnu", E17+F17), 0),"Non requis") -> 22801 | O17: =IF(INTRO!$E$44="Endémique", IF(AND($K17>0,$K17<5), IF($K17=4,"Inconnu", IF($K17=1, $F17*0.33, IF($K17=2, $F17*0.5+$G17*0.2, SUM(F17:G17)))), 0),"Non requis") -> Non requis | P17: 1 | R17: 1 | T17: MDA2 (DEC+ALB) | V17: MDA 2 | W17: T3 | X17: 11755 | Y17: Mremani
A18: =IF(INTRO!$E$34<>0,INTRO!$E$34,"") -> COMORES | B18: NDZUWANI | C18: Mutsamudu | D18: 64738 | E18: =IF(INTRO!$E$48="","",ROUND($D18*INTRO!$E$48,0)) -> 5477 | F18: =IF(INTRO!$E$49="","",ROUND($D18*INTRO!$E$49,0)) -> 16159 | G18: =IF(INTRO!$E$50="","",ROUND($D18*INTRO!$E$50,0)) -> 39736 | H18: 1 | J18: 3 | L18: =IF(INTRO!$E$38="Endémique", IF($H18>0, IF($H18=4,"Inconnu", IF($H18=99,"Interrompu", $D18)), 0),"Non requis") -> 64738 | M18: =IF(INTRO!$E$40="Endémique", IF($I18>0, IF($I18=4,"Inconnu",IF($I18=99,"Interrompu", $D18)), 0),"Non requis") -> Non requis | N18: =IF(INTRO!$E$42="Endémique", IF(AND($J18>1,$J18<5), IF($J18=4, "Inconnu", E18+F18), 0),"Non requis") -> 21636 | O18: =IF(INTRO!$E$44="Endémique", IF(AND($K18>0,$K18<5), IF($K18=4,"Inconnu", IF($K18=1, $F18*0.33, IF($K18=2, $F18*0.5+$G18*0.2, SUM(F18:G18)))), 0),"Non requis") -> Non requis | P18: 1 | R18: 1 | T18: MDA2 (DEC+ALB) | V18: MDA 2 | W18: T3 | X18: 11756 | Y18: Mutsamudu
A19: =IF(INTRO!$E$34<>0,INTRO!$E$34,"") -> COMORES | B19: NDZUWANI | C19: Ouani | D19: 49108 | E19: =IF(INTRO!$E$48="","",ROUND($D19*INTRO!$E$48,0)) -> 4155 | F19: =IF(INTRO!$E$49="","",ROUND($D19*INTRO!$E$49,0)) -> 12257 | G19: =IF(INTRO!$E$50="","",ROUND($D19*INTRO!$E$50,0)) -> 30142 | H19: 1 | J19: 3 | L19: =IF(INTRO!$E$38="Endémique", IF($H19>0, IF($H19=4,"Inconnu", IF($H19=99,"Interrompu", $D19)), 0),"Non requis") -> 49108 | M19: =IF(INTRO!$E$40="Endémique", IF($I19>0, IF($I19=4,"Inconnu",IF($I19=99,"Interrompu", $D19)), 0),"Non requis") -> Non requis | N19: =IF(INTRO!$E$42="Endémique", IF(AND($J19>1,$J19<5), IF($J19=4, "Inconnu", E19+F19), 0),"Non requis") -> 16412 | O19: =IF(INTRO!$E$44="Endémique", IF(AND($K19>0,$K19<5), IF($K19=4,"Inconnu", IF($K19=1, $F19*0.33, IF($K19=2, $F19*0.5+$G19*0.2, SUM(F19:G19)))), 0),"Non requis") -> Non requis | P19: 1 | R19: 1 | T19: MDA2 (DEC+ALB) | V19: MDA 2 | W19: T3 | X19: 11757 | Y19: Ouani
A20: =IF(INTRO!$E$34<>0,INTRO!$E$34,"") -> COMORES | B20: NDZUWANI | C20: Pomoni | D20: 38188 | E20: =IF(INTRO!$E$48="","",ROUND($D20*INTRO!$E$48,0)) -> 3231 | F20: =IF(INTRO!$E$49="","",ROUND($D20*INTRO!$E$49,0)) -> 9532 | G20: =IF(INTRO!$E$50="","",ROUND($D20*INTRO!$E$50,0)) -> 23440 | H20: 1 | J20: 3 | L20: =IF(INTRO!$E$38="Endémique", IF($H20>0, IF($H20=4,"Inconnu", IF($H20=99,"Interrompu", $D20)), 0),"Non requis") -> 38188 | M20: =IF(INTRO!$E$40="Endémique", IF($I20>0, IF($I20=4,"Inconnu",IF($I20=99,"Interrompu", $D20)), 0),"Non requis") -> Non requis | N20: =IF(INTRO!$E$42="Endémique", IF(AND($J20>1,$J20<5), IF($J20=4, "Inconnu", E20+F20), 0),"Non requis") -> 12763 | O20: =IF(INTRO!$E$44="Endémique", IF(AND($K20>0,$K20<5), IF($K20=4,"Inconnu", IF($K20=1, $F20*0.33, IF($K20=2, $F20*0.5+$G20*0.2, SUM(F20:G20)))), 0),"Non requis") -> Non requis | P20: 1 | R20: 1 | T20: MDA2 (DEC+ALB) | V20: MDA 2 | W20: T3 | X20: 11758 | Y20: Pomoni
A21: =IF(INTRO!$E$34<>0,INTRO!$E$34,"") -> COMORES | B21: NDZUWANI | C21: Sima | D21: 25444 | E21: =IF(INTRO!$E$48="","",ROUND($D21*INTRO!$E$48,0)) -> 2153 | F21: =IF(INTRO!$E$49="","",ROUND($D21*INTRO!$E$49,0)) -> 6351 | G21: =IF(INTRO!$E$50="","",ROUND($D21*INTRO!$E$50,0)) -> 15618 | H21: 1 | J21: 3 | L21: =IF(INTRO!$E$38="Endémique", IF($H21>0, IF($H21=4,"Inconnu", IF($H21=99,"Interrompu", $D21)), 0),"Non requis") -> 25444 | M21: =IF(INTRO!$E$40="Endémique", IF($I21>0, IF($I21=4,"Inconnu",IF($I21=99,"Interrompu", $D21)), 0),"Non requis") -> Non requis | N21: =IF(INTRO!$E$42="Endémique", IF(AND($J21>1,$J21<5), IF($J21=4, "Inconnu", E21+F21), 0),"Non requis") -> 8504 | O21: =IF(INTRO!$E$44="Endémique", IF(AND($K21>0,$K21<5), IF($K21=4,"Inconnu", IF($K21=1, $F21*0.33, IF($K21=2, $F21*0.5+$G21*0.2, SUM(F21:G21)))), 0),"Non requis") -> Non requis | P21: 1 | R21: 1 | T21: MDA2 (DEC+ALB) | V21: MDA 2 | W21: T3 | X21: 11759 | Y21: Sima
A22: =IF(INTRO!$E$34<>0,INTRO!$E$34,"") -> COMORES | B22: NDZUWANI | C22: Tsembehou | D22: 29102 | E22: =IF(INTRO!$E$48="","",ROUND($D22*INTRO!$E$48,0)) -> 2462 | F22: =IF(INTRO!$E$49="","",ROUND($D22*INTRO!$E$49,0)) -> 7264 | G22: =IF(INTRO!$E$50="","",ROUND($D22*INTRO!$E$50,0)) -> 17863 | H22: 1 | J22: 3 | L22: =IF(INTRO!$E$38="Endémique", IF($H22>0, IF($H22=4,"Inconnu", IF($H22=99,"Interrompu", $D22)), 0),"Non requis") -> 29102 | M22: =IF(INTRO!$E$40="Endémique", IF($I22>0, IF($I22=4,"Inconnu",IF($I22=99,"Interrompu", $D22)), 0),"Non requis") -> Non requis | N22: =IF(INTRO!$E$42="Endémique", IF(AND($J22>1,$J22<5), IF($J22=4, "Inconnu", E22+F22), 0),"Non requis") -> 9726 | O22: =IF(INTRO!$E$44="Endémique", IF(AND($K22>0,$K22<5), IF($K22=4,"Inconnu", IF($K22=1, $F22*0.33, IF($K22=2, $F22*0.5+$G22*0.2, SUM(F22:G22)))), 0),"Non requis") -> Non requis | P22: 1 | R22: 1 | T22: MDA2 (DEC+ALB) | V22: MDA 2 | W22: T3 | X22: 11760 | Y22: Tsembehou
A23: =IF(INTRO!$E$34<>0,INTRO!$E$34,"") -> COMORES | B23: MWALI | C23: Djando | D23: 9860 | E23: =IF(INTRO!$E$48="","",ROUND($D23*INTRO!$E$48,0)) -> 834 | F23: =IF(INTRO!$E$49="","",ROUND($D23*INTRO!$E$49,0)) -> 2461 | G23: =IF(INTRO!$E$50="","",ROUND($D23*INTRO!$E$50,0)) -> 6052 | H23: 1 | J23: 3 | L23: =IF(INTRO!$E$38="Endémique", IF($H23>0, IF($H23=4,"Inconnu", IF($H23=99,"Interrompu", $D23)), 0),"Non requis") -> 9860 | M23: =IF(INTRO!$E$40="Endémique", IF($I23>0, IF($I23=4,"Inconnu",IF($I23=99,"Interrompu", $D23)), 0),"Non requis") -> Non requis | N23: =IF(INTRO!$E$42="Endémique", IF(AND($J23>1,$J23<5), IF($J23=4, "Inconnu", E23+F23), 0),"Non requis") -> 3295 | O23: =IF(INTRO!$E$44="Endémique", IF(AND($K23>0,$K23<5), IF($K23=4,"Inconnu", IF($K23=1, $F23*0.33, IF($K23=2, $F23*0.5+$G23*0.2, SUM(F23:G23)))), 0),"Non requis") -> Non requis | P23: 1 | R23: 1 | T23: MDA2 (DEC+ALB) | V23: MDA 2 | W23: T3 | X23: 11746 | Y23: Djando
A24: =IF(INTRO!$E$34<>0,INTRO!$E$34,"") -> COMORES | B24: MWALI | C24: Fomboni | D24: 34832 | E24: =IF(INTRO!$E$48="","",ROUND($D24*INTRO!$E$48,0)) -> 2947 | F24: =IF(INTRO!$E$49="","",ROUND($D24*INTRO!$E$49,0)) -> 8694 | G24: =IF(INTRO!$E$50="","",ROUND($D24*INTRO!$E$50,0)) -> 21380 | H24: 1 | J24: 3 | L24: =IF(INTRO!$E$38="Endémique", IF($H24>0, IF($H24=4,"Inconnu", IF($H24=99,"Interrompu", $D24)), 0),"Non requis") -> 34832 | M24: =IF(INTRO!$E$40="Endémique", IF($I24>0, IF($I24=4,"Inconnu",IF($I24=99,"Interrompu", $D24)), 0),"Non requis") -> Non requis | N24: =IF(INTRO!$E$42="Endémique", IF(AND($J24>1,$J24<5), IF($J24=4, "Inconnu", E24+F24), 0),"Non requis") -> 11641 | O24: =IF(INTRO!$E$44="Endémique", IF(AND($K24>0,$K24<5), IF($K24=4,"Inconnu", IF($K24=1, $F24*0.33, IF($K24=2, $F24*0.5+$G24*0.2, SUM(F24:G24)))), 0),"Non requis") -> Non requis | P24: 1 | R24: 1 | T24: MDA2 (DEC+ALB) | V24: MDA 2 | W24: T3 | X24: 11744 | Y24: Fomboni
A25: =IF(INTRO!$E$34<>0,INTRO!$E$34,"") -> COMORES | B25: MWALI | C25: Nioumachoua | D25: 9698 | E25: =IF(INTRO!$E$48="","",ROUND($D25*INTRO!$E$48,0)) -> 820 | F25: =IF(INTRO!$E$49="","",ROUND($D25*INTRO!$E$49,0)) -> 2421 | G25: =IF(INTRO!$E$50="","",ROUND($D25*INTRO!$E$50,0)) -> 5953 | H25: 1 | J25: 3 | L25: =IF(INTRO!$E$38="Endémique", IF($H25>0, IF($H25=4,"Inconnu", IF($H25=99,"Interrompu", $D25)), 0),"Non requis") -> 9698 | M25: =IF(INTRO!$E$40="Endémique", IF($I25>0, IF($I25=4,"Inconnu",IF($I25=99,"Interrompu", $D25)), 0),"Non requis") -> Non requis | N25: =IF(INTRO!$E$42="Endémique", IF(AND($J25>1,$J25<5), IF($J25=4, "Inconnu", E25+F25), 0),"Non requis") -> 3241 | O25: =IF(INTRO!$E$44="Endémique", IF(AND($K25>0,$K25<5), IF($K25=4,"Inconnu", IF($K25=1, $F25*0.33, IF($K25=2, $F25*0.5+$G25*0.2, SUM(F25:G25)))), 0),"Non requis") -> Non requis | P25: 1 | R25: 1 | T25: MDA2 (DEC+ALB) | V25: MDA 2 | W25: T3 | X25: 11745 | Y25: Nioumachoua

Sheet MDA1 (hidden)
A1: MDA 1 - Ivermectine (IVM) et Albendazole (ALB)
A2: Structure administrative, population nécessitant une chimioprévention par groupe d'âge, population traitée par groupe d'âge et couverture
A4: TOTAL | G4: =SUM(G$9:G$1000) -> 0 | H4: =SUM(H$9:H$1000) -> 0 | I4: =SUM(I$9:I$1000) -> 0 | K4: =SUM(K$9:K$1000) -> 0 | L4: =SUM(L$9:L$1000) -> 0 | M4: =SUM(M$9:M$1000) -> 0 | O4: =IF(G4<>0, IF(K4/G4*100=0, "-", K4/G4*100), " ") ->  | P4: =IF(H4<>0, IF(L4/H4*100=0, "-", L4/H4*100), " ") ->  | Q4: =IF(I4<>0, IF(M4/I4*100=0, "-", M4/I4*100), " ") -> 
A6: Structure administrative du pays | D6: Mise en oeuvre de la CP | E6: Date | F6: Population ciblée pour MDA 1 | J6: Population traitée | N6: Couverture du Programme (%)
A7: Pays | B7: Région/Département | C7: District | F7: EAPréS | G7: EAS | H7: Adultes | I7: Total | J7: EAPréS | K7: EAS | L7: Adultes | M7: Total | N7: EAPréS | O7: EAS | P7: Adultes | Q7: Total
A9: =IF(COUNTRY_INFO!A9=0," ",COUNTRY_INFO!A9) -> COMORES | B9: =IF(COUNTRY_INFO!B9=0," ",COUNTRY_INFO!B9) -> NGAZIDJA | C9: =IF(COUNTRY_INFO!C9=0," ",COUNTRY_INFO!C9) -> Badjini-Est | D9: =IF(COUNTRY_INFO!$T$9:$T$1000="MDA1 (IVM+ALB)", COUNTRY_INFO!$T$9:$T$1000, " ") ->  | I9: =SUM(F9:H9) -> 0 | M9: =SUM(J9:L9) -> 0 | O9: =IF(G9<>0, IF(K9/G9*100=0, "-", K9/G9*100), " ") ->  | P9: =IF(H9<>0, IF(L9/H9*100=0, "-", L9/H9*100), " ") -> 
A10: =IF(COUNTRY_INFO!A10=0," ",COUNTRY_INFO!A10) -> COMORES | B10: =IF(COUNTRY_INFO!B10=0," ",COUNTRY_INFO!B10) -> NGAZIDJA | C10: =IF(COUNTRY_INFO!C10=0," ",COUNTRY_INFO!C10) -> Badjini-Ouest | D10: =IF(COUNTRY_INFO!$T$9:$T$1000="MDA1 (IVM+ALB)", COUNTRY_INFO!$T$9:$T$1000, " ") ->  | I10: =SUM(F10:H10) -> 0 | M10: =SUM(J10:L10) -> 0 | O10: =IF(G10<>0, IF(K10/G10*100=0, "-", K10/G10*100), " ") ->  | P10: =IF(H10<>0, IF(L10/H10*100=0, "-", L10/H10*100), " ") ->  | Q10: =IF(I10<>0, IF(M10/I10*100=0, "-", M10/I10*100), " ") -> 
A11: =IF(COUNTRY_INFO!A11=0," ",COUNTRY_INFO!A11) -> COMORES | B11: =IF(COUNTRY_INFO!B11=0," ",COUNTRY_INFO!B11) -> NGAZIDJA | C11: =IF(COUNTRY_INFO!C11=0," ",COUNTRY_INFO!C11) -> Centre | D11: =IF(COUNTRY_INFO!$T$9:$T$1000="MDA1 (IVM+ALB)", COUNTRY_INFO!$T$9:$T$1000, " ") ->  | I11: 0 | M11: 0
A12: =IF(COUNTRY_INFO!A12=0," ",COUNTRY_INFO!A12) -> COMORES | B12: =IF(COUNTRY_INFO!B12=0," ",COUNTRY_INFO!B12) -> NGAZIDJA | C12: =IF(COUNTRY_INFO!C12=0," ",COUNTRY_INFO!C12) -> Hamahamet-Mboinkou | D12: =IF(COUNTRY_INFO!$T$9:$T$1000="MDA1 (IVM+ALB)", COUNTRY_INFO!$T$9:$T$1000, " ") ->  | I12: 0 | M12: 0
A13: =IF(COUNTRY_INFO!A13=0," ",COUNTRY_INFO!A13) -> COMORES | B13: =IF(COUNTRY_INFO!B13=0," ",COUNTRY_INFO!B13) -> NGAZIDJA | C13: =IF(COUNTRY_INFO!C13=0," ",COUNTRY_INFO!C13) -> Hambou | D13: =IF(COUNTRY_INFO!$T$9:$T$1000="MDA1 (IVM+ALB)", COUNTRY_INFO!$T$9:$T$1000, " ") ->  | I13: 0 | M13: 0
A14: =IF(COUNTRY_INFO!A14=0," ",COUNTRY_INFO!A14) -> COMORES | B14: =IF(COUNTRY_INFO!B14=0," ",COUNTRY_INFO!B14) -> NGAZIDJA | C14: =IF(COUNTRY_INFO!C14=0," ",COUNTRY_INFO!C14) -> Mitsamiouli-Mboudé | D14: =IF(COUNTRY_INFO!$T$9:$T$1000="MDA1 (IVM+ALB)", COUNTRY_INFO!$T$9:$T$1000, " ") ->  | I14: 0 | M14: 0
A15: =IF(COUNTRY_INFO!A15=0," ",COUNTRY_INFO!A15) -> COMORES | B15: =IF(COUNTRY_INFO!B15=0," ",COUNTRY_INFO!B15) -> NGAZIDJA | C15: =IF(COUNTRY_INFO!C15=0," ",COUNTRY_INFO!C15) -> Oichili-Dimani | D15: =IF(COUNTRY_INFO!$T$9:$T$1000="MDA1 (IVM+ALB)", COUNTRY_INFO!$T$9:$T$1000, " ") ->  | I15: 0 | M15: 0
A16: =IF(COUNTRY_INFO!A16=0," ",COUNTRY_INFO!A16) -> COMORES | B16: =IF(COUNTRY_INFO!B16=0," ",COUNTRY_INFO!B16) -> NDZUWANI | C16: =IF(COUNTRY_INFO!C16=0," ",COUNTRY_INFO!C16) -> Domoni | D16: =IF(COUNTRY_INFO!$T$9:$T$1000="MDA1 (IVM+ALB)", COUNTRY_INFO!$T$9:$T$1000, " ") ->  | I16: 0 | M16: 0
A17: =IF(COUNTRY_INFO!A17=0," ",COUNTRY_INFO!A17) -> COMORES | B17: =IF(COUNTRY_INFO!B17=0," ",COUNTRY_INFO!B17) -> NDZUWANI | C17: =IF(COUNTRY_INFO!C17=0," ",COUNTRY_INFO!C17) -> Mremani | D17: =IF(COUNTRY_INFO!$T$9:$T$1000="MDA1 (IVM+ALB)", COUNTRY_INFO!$T$9:$T$1000, " ") ->  | I17: 0 | M17: 0
A18: =IF(COUNTRY_INFO!A18=0," ",COUNTRY_INFO!A18) -> COMORES | B18: =IF(COUNTRY_INFO!B18=0," ",COUNTRY_INFO!B18) -> NDZUWANI | C18: =IF(COUNTRY_INFO!C18=0," ",COUNTRY_INFO!C18) -> Mutsamudu | D18: =IF(COUNTRY_INFO!$T$9:$T$1000="MDA1 (IVM+ALB)", COUNTRY_INFO!$T$9:$T$1000, " ") ->  | I18: 0 | M18: 0
A19: =IF(COUNTRY_INFO!A19=0," ",COUNTRY_INFO!A19) -> COMORES | B19: =IF(COUNTRY_INFO!B19=0," ",COUNTRY_INFO!B19) -> NDZUWANI | C19: =IF(COUNTRY_INFO!C19=0," ",COUNTRY_INFO!C19) -> Ouani | D19: =IF(COUNTRY_INFO!$T$9:$T$1000="MDA1 (IVM+ALB)", COUNTRY_INFO!$T$9:$T$1000, " ") ->  | I19: 0 | M19: 0
A20: =IF(COUNTRY_INFO!A20=0," ",COUNTRY_INFO!A20) -> COMORES | B20: =IF(COUNTRY_INFO!B20=0," ",COUNTRY_INFO!B20) -> NDZUWANI | C20: =IF(COUNTRY_INFO!C20=0," ",COUNTRY_INFO!C20) -> Pomoni | D20: =IF(COUNTRY_INFO!$T$9:$T$1000="MDA1 (IVM+ALB)", COUNTRY_INFO!$T$9:$T$1000, " ") ->  | I20: 0 | M20: 0
A21: =IF(COUNTRY_INFO!A21=0," ",COUNTRY_INFO!A21) -> COMORES | B21: =IF(COUNTRY_INFO!B21=0," ",COUNTRY_INFO!B21) -> NDZUWANI | C21: =IF(COUNTRY_INFO!C21=0," ",COUNTRY_INFO!C21) -> Sima | D21: =IF(COUNTRY_INFO!$T$9:$T$1000="MDA1 (IVM+ALB)", COUNTRY_INFO!$T$9:$T$1000, " ") ->  | I21: 0 | M21: 0
A22: =IF(COUNTRY_INFO!A22=0," ",COUNTRY_INFO!A22) -> COMORES | B22: =IF(COUNTRY_INFO!B22=0," ",COUNTRY_INFO!B22) -> NDZUWANI | C22: =IF(COUNTRY_INFO!C22=0," ",COUNTRY_INFO!C22) -> Tsembehou | D22: =IF(COUNTRY_INFO!$T$9:$T$1000="MDA1 (IVM+ALB)", COUNTRY_INFO!$T$9:$T$1000, " ") ->  | I22: 0 | M22: 0
A23: =IF(COUNTRY_INFO!A23=0," ",COUNTRY_INFO!A23) -> COMORES | B23: =IF(COUNTRY_INFO!B23=0," ",COUNTRY_INFO!B23) -> MWALI | C23: =IF(COUNTRY_INFO!C23=0," ",COUNTRY_INFO!C23) -> Djando | D23: =IF(COUNTRY_INFO!$T$9:$T$1000="MDA1 (IVM+ALB)", COUNTRY_INFO!$T$9:$T$1000, " ") ->  | I23: 0 | M23: 0
A24: =IF(COUNTRY_INFO!A24=0," ",COUNTRY_INFO!A24) -> COMORES | B24: =IF(COUNTRY_INFO!B24=0," ",COUNTRY_INFO!B24) -> MWALI | C24: =IF(COUNTRY_INFO!C24=0," ",COUNTRY_INFO!C24) -> Fomboni | D24: =IF(COUNTRY_INFO!$T$9:$T$1000="MDA1 (IVM+ALB)", COUNTRY_INFO!$T$9:$T$1000, " ") ->  | I24: 0 | M24: 0
A25: =IF(COUNTRY_INFO!A25=0," ",COUNTRY_INFO!A25) -> COMORES | B25: =IF(COUNTRY_INFO!B25=0," ",COUNTRY_INFO!B25) -> MWALI | C25: =IF(COUNTRY_INFO!C25=0," ",COUNTRY_INFO!C25) -> Nioumachoua | D25: =IF(COUNTRY_INFO!$T$9:$T$1000="MDA1 (IVM+ALB)", COUNTRY_INFO!$T$9:$T$1000, " ") ->  | I25: 0 | M25: 0

Sheet MDA2
A1: MDA 2 - Diethylcarbamazine (DEC) + Albendazole (ALB)
A2: Structure administrative, population nécessitant une chimioprévention par groupe d'âge, population traitée par groupe d'âge et couverture
A4: TOTAL | F4: =SUM(F$9:F$1000) -> 66735 | G4: =SUM(G$9:G$1000) -> 196889 | H4: 484173 | I4: 747797 | J4: 62209.36082 | K4: 124418.7216 | L4: 316230.9175 | M4: 502859 | N4: =IF(F4<>0, IF(J4/F4*100=0, "-", J4/F4*100), " ") -> 93.21849228 | O4: =IF(G4<>0, IF(K4/G4*100=0, "-", K4/G4*100), " ") -> 63.19231732 | P4: =IF(H4<>0, IF(L4/H4*100=0, "-", L4/H4*100), " ") -> 65.31362086 | Q4: =IF(I4<>0, IF(M4/I4*100=0, "-", M4/I4*100), " ") -> 67.24538879
A6: Structure administrative du pays | D6: Mise en oeuvre de la CP | E6: Date | F6: Population ciblée pour MDA 2 | J6: Population traitée | N6: Couverture du Programme (%)
A7: Pays | B7: Région/Département | C7: District | F7: EAPréS | G7: EAS | H7: Adultes | I7: Total | J7: EAPréS | K7: EAS | L7: Adultes | M7: Total | N7: EAPréS | O7: EAS | P7: Adultes | Q7: Total
A9: =IF(COUNTRY_INFO!A9=0," ",COUNTRY_INFO!A9) -> COMORES | B9: =IF(COUNTRY_INFO!B9=0," ",COUNTRY_INFO!B9) -> NGAZIDJA | C9: =IF(COUNTRY_INFO!C9=0," ",COUNTRY_INFO!C9) -> Badjini-Est | D9: =IF(COUNTRY_INFO!$T$9:$T$1000="MDA2 (DEC+ALB)", COUNTRY_INFO!$T$9:$T$1000, " ") -> MDA2 (DEC+ALB) | E9: 1 au 03 Mars 2019 | F9: 2678 | G9: 7901 | H9: 19430 | I9: =SUM(F9:H9) -> 30009 | J9: 2971.670103 | K9: 5943.340206 | L9: 15105.98969 | M9: 24021 | N9: =IF(F9<>0, IF(J9/F9*100=0, "-", J9/F9*100), " ") -> 110.9660233 | O9: 75.22263266 | P9: 77.74570093 | Q9: 80.0459862
A10: =IF(COUNTRY_INFO!A10=0," ",COUNTRY_INFO!A10) -> COMORES | B10: =IF(COUNTRY_INFO!B10=0," ",COUNTRY_INFO!B10) -> NGAZIDJA | C10: =IF(COUNTRY_INFO!C10=0," ",COUNTRY_INFO!C10) -> Badjini-Ouest | D10: =IF(COUNTRY_INFO!$T$9:$T$1000="MDA2 (DEC+ALB)", COUNTRY_INFO!$T$9:$T$1000, " ") -> MDA2 (DEC+ALB) | E10: 1 au 03 Mars 2019 | F10: 2487 | G10: 7338 | H10: 18044 | I10: =SUM(F10:H10) -> 27869 | J10: 1743.587629 | K10: 3487.175258 | L10: 8863.237113 | M10: 14094 | N10: =IF(F10<>0, IF(J10/F10*100=0, "-", J10/F10*100), " ") -> 70.1080671 | O10: =IF(G10<>0, IF(K10/G10*100=0, "-", K10/G10*100), " ") -> 47.52214851 | P10: =IF(H10<>0, IF(L10/H10*100=0, "-", L10/H10*100), " ") -> 49.12013475 | Q10: =IF(I10<>0, IF(M10/I10*100=0, "-", M10/I10*100), " ") -> 50.5723205
A11: =IF(COUNTRY_INFO!A11=0," ",COUNTRY_INFO!A11) -> COMORES | B11: =IF(COUNTRY_INFO!B11=0," ",COUNTRY_INFO!B11) -> NGAZIDJA | C11: =IF(COUNTRY_INFO!C11=0," ",COUNTRY_INFO!C11) -> Centre | D11: =IF(COUNTRY_INFO!$T$9:$T$1000="MDA2 (DEC+ALB)", COUNTRY_INFO!$T$9:$T$1000, " ") -> MDA2 (DEC+ALB) | E11: 1 au 03 Mars 2019 | F11: 15656 | G11: 46191 | H11: 113589 | I11: 175436 | J11: 13043.01031 | K11: 26086.02062 | L11: 66301.96907 | M11: 105431 | N11: 83.30997898 | O11: 56.47424957 | P11: 58.37006143 | Q11: 60.09655943
A12: =IF(COUNTRY_INFO!A12=0," ",COUNTRY_INFO!A12) -> COMORES | B12: =IF(COUNTRY_INFO!B12=0," ",COUNTRY_INFO!B12) -> NGAZIDJA | C12: =IF(COUNTRY_INFO!C12=0," ",COUNTRY_INFO!C12) -> Hamahamet-Mboinkou | D12: =IF(COUNTRY_INFO!$T$9:$T$1000="MDA2 (DEC+ALB)", COUNTRY_INFO!$T$9:$T$1000, " ") -> MDA2 (DEC+ALB) | E12: 1 au 03 Mars 2019 | F12: 3213 | G12: 9480 | H12: 23312 | I12: 36005 | J12: 2498.845361 | K12: 4997.690722 | L12: 12702.46392 | M12: 20199 | N12: 77.77296486 | O12: 52.71825656 | P12: 54.48894954 | Q12: 56.10054159
A13: =IF(COUNTRY_INFO!A13=0," ",COUNTRY_INFO!A13) -> COMORES | B13: =IF(COUNTRY_INFO!B13=0," ",COUNTRY_INFO!B13) -> NGAZIDJA | C13: =IF(COUNTRY_INFO!C13=0," ",COUNTRY_INFO!C13) -> Hambou | D13: =IF(COUNTRY_INFO!$T$9:$T$1000="MDA2 (DEC+ALB)", COUNTRY_INFO!$T$9:$T$1000, " ") -> MDA2 (DEC+ALB) | E13: 1 au 03 Mars 2019 | F13: 1997 | G13: 5891 | H13: 14488 | I13: 22376 | J13: 1789.731959 | K13: 3579.463918 | L13: 9097.804124 | M13: 14467 | N13: 89.62102948 | O13: 60.76156709 | P13: 62.79544536 | Q13: 64.65409367
A14: =IF(COUNTRY_INFO!A14=0," ",COUNTRY_INFO!A14) -> COMORES | B14: =IF(COUNTRY_INFO!B14=0," ",COUNTRY_INFO!B14) -> NGAZIDJA | C14: =IF(COUNTRY_INFO!C14=0," ",COUNTRY_INFO!C14) -> Mitsamiouli-Mboudé | D14: =IF(COUNTRY_INFO!$T$9:$T$1000="MDA2 (DEC+ALB)", COUNTRY_INFO!$T$9:$T$1000, " ") -> MDA2 (DEC+ALB) | E14: 1 au 03 Mars 2019 | F14: 4924 | G14: 14527 | H14: 35723 | I14: 55174 | J14: 5135.505155 | K14: 10271.01031 | L14: 26105.48454 | M14: 41512 | N14: 104.2953931 | O14: 70.70290018 | P14: 73.07752578 | Q14: 75.2383369
A15: =IF(COUNTRY_INFO!A15=0," ",COUNTRY_INFO!A15) -> COMORES | B15: =IF(COUNTRY_INFO!B15=0," ",COUNTRY_INFO!B15) -> NGAZIDJA | C15: =IF(COUNTRY_INFO!C15=0," ",COUNTRY_INFO!C15) -> Oichili-Dimani | D15: =IF(COUNTRY_INFO!$T$9:$T$1000="MDA2 (DEC+ALB)", COUNTRY_INFO!$T$9:$T$1000, " ") -> MDA2 (DEC+ALB) | E15: 1 au 03 Mars 2019 | F15: 2306 | G15: 6802 | H15: 16727 | I15: 25835 | J15: 2300.907216 | K15: 4601.814433 | L15: 11696.27835 | M15: 18599 | N15: 99.77915076 | O15: 67.65384347 | P15: 69.92454326 | Q15: 71.99148442
A16: =IF(COUNTRY_INFO!A16=0," ",COUNTRY_INFO!A16) -> COMORES | B16: =IF(COUNTRY_INFO!B16=0," ",COUNTRY_INFO!B16) -> NDZUWANI | C16: =IF(COUNTRY_INFO!C16=0," ",COUNTRY_INFO!C16) -> Domoni | D16: =IF(COUNTRY_INFO!$T$9:$T$1000="MDA2 (DEC+ALB)", COUNTRY_INFO!$T$9:$T$1000, " ") -> MDA2 (DEC+ALB) | E16: 26 au 28 janvier 2019 | F16: 5623 | G16: 16591 | H16: 40799 | I16: 63013 | J16: 4925.814433 | K16: 9851.628866 | L16: 25039.5567 | M16: 39817 | N16: 87.60118145 | O16: 59.37935547 | P16: 61.37296674 | Q16: 63.18854839
A17: =IF(COUNTRY_INFO!A17=0," ",COUNTRY_INFO!A17) -> COMORES | B17: =IF(COUNTRY_INFO!B17=0," ",COUNTRY_INFO!B17) -> NDZUWANI | C17: =IF(COUNTRY_INFO!C17=0," ",COUNTRY_INFO!C17) -> Mremani | D17: =IF(COUNTRY_INFO!$T$9:$T$1000="MDA2 (DEC+ALB)", COUNTRY_INFO!$T$9:$T$1000, " ") -> MDA2 (DEC+ALB) | E17: 26 au 28 janvier 2019 | F17: 5772 | G17: 17029 | H17: 41877 | I17: 64678 | J17: 6422.969072 | K17: 12845.93814 | L17: 32650.09278 | M17: 51919 | N17: 111.2780505 | O17: 75.43565767 | P17: 77.96664705 | Q17: 80.27304493
A18: =IF(COUNTRY_INFO!A18=0," ",COUNTRY_INFO!A18) -> COMORES | B18: =IF(COUNTRY_INFO!B18=0," ",COUNTRY_INFO!B18) -> NDZUWANI | C18: =IF(COUNTRY_INFO!C18=0," ",COUNTRY_INFO!C18) -> Mutsamudu | D18: =IF(COUNTRY_INFO!$T$9:$T$1000="MDA2 (DEC+ALB)", COUNTRY_INFO!$T$9:$T$1000, " ") -> MDA2 (DEC+ALB) | E18: 26 au 28 janvier 2019 | F18: 5477 | G18: 16159 | H18: 39736 | I18: 61372 | J18: 5349.649485 | K18: 10699.29897 | L18: 27194.05155 | M18: 43243 | N18: 97.67481257 | O18: 66.21263054 | P18: 68.43681182 | Q18: 70.46047057
A19: =IF(COUNTRY_INFO!A19=0," ",COUNTRY_INFO!A19) -> COMORES | B19: =IF(COUNTRY_INFO!B19=0," ",COUNTRY_INFO!B19) -> NDZUWANI | C19: =IF(COUNTRY_INFO!C19=0," ",COUNTRY_INFO!C19) -> Ouani | D19: =IF(COUNTRY_INFO!$T$9:$T$1000="MDA2 (DEC+ALB)", COUNTRY_INFO!$T$9:$T$1000, " ") -> MDA2 (DEC+ALB) | E19: 26 au 28 janvier 2019 | F19: 4155 | G19: 12257 | H19: 30142 | I19: 46554 | J19: 4026.309278 | K19: 8052.618557 | L19: 20467.07216 | M19: 32546 | N19: 96.90275038 | O19: 65.6981199 | P19: 67.90217028 | Q19: 69.9102118
A20: =IF(COUNTRY_INFO!A20=0," ",COUNTRY_INFO!A20) -> COMORES | B20: =IF(COUNTRY_INFO!B20=0," ",COUNTRY_INFO!B20) -> NDZUWANI | C20: =IF(COUNTRY_INFO!C20=0," ",COUNTRY_INFO!C20) -> Pomoni | D20: =IF(COUNTRY_INFO!$T$9:$T$1000="MDA2 (DEC+ALB)", COUNTRY_INFO!$T$9:$T$1000, " ") -> MDA2 (DEC+ALB) | E20: 26 au 28 janvier 2019 | F20: 3231 | G20: 9532 | H20: 23440 | I20: 36203 | J20: 3263.257732 | K20: 6526.515464 | L20: 16588.2268 | M20: 26378 | N20: 100.9983823 | O20: 68.46952858 | P20: 70.76888568 | Q20: 72.86136508
A21: =IF(COUNTRY_INFO!A21=0," ",COUNTRY_INFO!A21) -> COMORES | B21: =IF(COUNTRY_INFO!B21=0," ",COUNTRY_INFO!B21) -> NDZUWANI | C21: =IF(COUNTRY_INFO!C21=0," ",COUNTRY_INFO!C21) -> Sima | D21: =IF(COUNTRY_INFO!$T$9:$T$1000="MDA2 (DEC+ALB)", COUNTRY_INFO!$T$9:$T$1000, " ") -> MDA2 (DEC+ALB) | E21: 26 au 28 janvier 2019 | F21: 2153 | G21: 6351 | H21: 15618 | I21: 24122 | J21: 2172.123711 | K21: 4344.247423 | L21: 11041.62887 | M21: 17558 | N21: 100.8882355 | O21: 68.40257318 | P21: 70.69809749 | Q21: 72.78832601
A22: =IF(COUNTRY_INFO!A22=0," ",COUNTRY_INFO!A22) -> COMORES | B22: =IF(COUNTRY_INFO!B22=0," ",COUNTRY_INFO!B22) -> NDZUWANI | C22: =IF(COUNTRY_INFO!C22=0," ",COUNTRY_INFO!C22) -> Tsembehou | D22: =IF(COUNTRY_INFO!$T$9:$T$1000="MDA2 (DEC+ALB)", COUNTRY_INFO!$T$9:$T$1000, " ") -> MDA2 (DEC+ALB) | E22: 26 au 28 janvier 2019 | F22: 2462 | G22: 7264 | H22: 17863 | I22: 27589 | J22: 2101.85567 | K22: 4203.71134 | L22: 10684.43299 | M22: 16990 | N22: 85.37187937 | O22: 57.8704755 | P22: 59.81320601 | Q22: 61.58251477
A23: =IF(COUNTRY_INFO!A23=0," ",COUNTRY_INFO!A23) -> COMORES | B23: =IF(COUNTRY_INFO!B23=0," ",COUNTRY_INFO!B23) -> MWALI | C23: =IF(COUNTRY_INFO!C23=0," ",COUNTRY_INFO!C23) -> Djando | D23: =IF(COUNTRY_INFO!$T$9:$T$1000="MDA2 (DEC+ALB)", COUNTRY_INFO!$T$9:$T$1000, " ") -> MDA2 (DEC+ALB) | E23: 7 au 9 février 2019 | F23: 834 | G23: 2461 | H23: 6052 | I23: 9347 | J23: 615.9587629 | K23: 1231.917526 | L23: 3131.123711 | M23: 4979 | N23: 73.85596677 | O23: 50.05759958 | P23: 51.73700779 | Q23: 53.26842837
A24: =IF(COUNTRY_INFO!A24=0," ",COUNTRY_INFO!A24) -> COMORES | B24: =IF(COUNTRY_INFO!B24=0," ",COUNTRY_INFO!B24) -> MWALI | C24: =IF(COUNTRY_INFO!C24=0," ",COUNTRY_INFO!C24) -> Fomboni | D24: =IF(COUNTRY_INFO!$T$9:$T$1000="MDA2 (DEC+ALB)", COUNTRY_INFO!$T$9:$T$1000, " ") -> MDA2 (DEC+ALB) | E24: 7 au 9 février 2019 | F24: 2947 | G24: 8694 | H24: 21380 | I24: 33021 | J24: 3060.742268 | K24: 6121.484536 | L24: 15558.7732 | M24: 24741 | N24: 103.8595951 | O24: 70.41045015 | P24: 72.77255938 | Q24: 74.9250477
A25: =IF(COUNTRY_INFO!A25=0," ",COUNTRY_INFO!A25) -> COMORES | B25: =IF(COUNTRY_INFO!B25=0," ",COUNTRY_INFO!B25) -> MWALI | C25: =IF(COUNTRY_INFO!C25=0," ",COUNTRY_INFO!C25) -> Nioumachoua | D25: =IF(COUNTRY_INFO!$T$9:$T$1000="MDA2 (DEC+ALB)", COUNTRY_INFO!$T$9:$T$1000, " ") -> MDA2 (DEC+ALB) | E25: 7 au 9 février 2019 | F25: 820 | G25: 2421 | H25: 5953 | I25: 9194 | J25: 787.4226804 | K25: 1574.845361 | L25: 4002.731959 | M25: 6365 | N25: 96.02715615 | O25: 65.04937467 | P25: 67.23890406 | Q25: 69.22993256

Sheet MDA3 (hidden)
A1: MDA 3 - Ivermectine (IVM)
A2: Structure administrative, population nécessitant une chimioprévention par groupe d'âge, population traitée par groupe d'âge et couverture
A4: TOTAL | F4: =SUM(F$9:F$1000) -> 0 | G4: 0 | H4: 0 | I4: 0 | J4: 0 | K4: 0 | L4: 0 | M4: 0 | N4: 0 | O4: 0 | P4: 0 | Q4: 0 | R4: =IF(F4<>0, IF(O4/F4*100=0, "-", O4/F4*100), " ") ->  | S4: =IF(G4<>0, IF(P4/G4*100=0, "-", P4/G4*100), " ") ->  | T4: =IF(H4<>0, IF(Q4/H4*100=0, "-", Q4/H4*100), " ") -> 
A6: Structure administrative du pays | D6: Mise en oeuvre de la CP | E6: Date | F6: Population ciblée pour MDA 3 | I6: Population traitée - tournée 1 | L6: Population traitée - tournée 2 | O6: Population traitée | R6: Couverture du Programme (%)
A7: Pays | B7: Région/Département | C7: District | F7: EAS | G7: Adultes | H7: Total | I7: EAS | J7: Adultes | K7: Total | L7: EAS | M7: Adultes | N7: Total | O7: EAS | P7: Adultes | Q7: Total | R7: EAS | S7: Adultes | T7: Total
A9: =IF(COUNTRY_INFO!A9=0," ",COUNTRY_INFO!A9) -> COMORES | B9: =IF(COUNTRY_INFO!B9=0," ",COUNTRY_INFO!B9) -> NGAZIDJA | C9: =IF(COUNTRY_INFO!C9=0," ",COUNTRY_INFO!C9) -> Badjini-Est | D9: =IF(COUNTRY_INFO!$T$9:$T$1000="MDA3 (IVM)", COUNTRY_INFO!$T$9:$T$1000, " ") ->  | H9: =SUM(F9:G9) -> 0 | K9: =SUM(I9:J9) -> 0 | N9: =SUM(L9:M9) -> 0 | O9: =MAX(I9,L9) -> 0 | P9: 0 | Q9: =SUM(O9:P9) -> 0 | R9: =IF(F9<>0, IF(MAX(I9,L9)/F9*100=0, "-", MAX(I9,L9)/F9*100), " ") ->  | T9: =IF(H9<>0, IF((MAX(I9,L9)+MAX(J9,M9))/H9*100=0, "-",(MAX(I9,L9)+MAX(J9,M9))/H9*100), " ") -> 
A10: =IF(COUNTRY_INFO!A10=0," ",COUNTRY_INFO!A10) -> COMORES | B10: =IF(COUNTRY_INFO!B10=0," ",COUNTRY_INFO!B10) -> NGAZIDJA | C10: =IF(COUNTRY_INFO!C10=0," ",COUNTRY_INFO!C10) -> Badjini-Ouest | D10: =IF(COUNTRY_INFO!$T$9:$T$1000="MDA3 (IVM)", COUNTRY_INFO!$T$9:$T$1000, " ") ->  | H10: =SUM(F10:G10) -> 0 | K10: =SUM(I10:J10) -> 0 | N10: =SUM(L10:M10) -> 0 | O10: =MAX(I10,L10) -> 0 | P10: =MAX(J10,M10) -> 0 | Q10: =SUM(O10:P10) -> 0 | R10: =IF(F10<>0, IF(MAX(I10,L10)/F10*100=0, "-", MAX(I10,L10)/F10*100), " ") ->  | S10: =IF(G10<>0, IF(MAX(J10,M10)/G10*100=0, "-", MAX(J10,M10)/G10*100), " ") ->  | T10: =IF(H10<>0, IF((MAX(I10,L10)+MAX(J10,M10))/H10*100=0, "-",(MAX(I10,L10)+MAX(J10,M10))/H10*100), " ") -> 
A11: =IF(COUNTRY_INFO!A11=0," ",COUNTRY_INFO!A11) -> COMORES | B11: =IF(COUNTRY_INFO!B11=0," ",COUNTRY_INFO!B11) -> NGAZIDJA | C11: =IF(COUNTRY_INFO!C11=0," ",COUNTRY_INFO!C11) -> Centre | D11: =IF(COUNTRY_INFO!$T$9:$T$1000="MDA3 (IVM)", COUNTRY_INFO!$T$9:$T$1000, " ") ->  | H11: 0 | K11: 0 | N11: 0 | O11: 0 | P11: 0 | Q11: 0
A12: =IF(COUNTRY_INFO!A12=0," ",COUNTRY_INFO!A12) -> COMORES | B12: =IF(COUNTRY_INFO!B12=0," ",COUNTRY_INFO!B12) -> NGAZIDJA | C12: =IF(COUNTRY_INFO!C12=0," ",COUNTRY_INFO!C12) -> Hamahamet-Mboinkou | D12: =IF(COUNTRY_INFO!$T$9:$T$1000="MDA3 (IVM)", COUNTRY_INFO!$T$9:$T$1000, " ") ->  | H12: 0 | K12: 0 | N12: 0 | O12: 0 | P12: 0 | Q12: 0
A13: =IF(COUNTRY_INFO!A13=0," ",COUNTRY_INFO!A13) -> COMORES | B13: =IF(COUNTRY_INFO!B13=0," ",COUNTRY_INFO!B13) -> NGAZIDJA | C13: =IF(COUNTRY_INFO!C13=0," ",COUNTRY_INFO!C13) -> Hambou | D13: =IF(COUNTRY_INFO!$T$9:$T$1000="MDA3 (IVM)", COUNTRY_INFO!$T$9:$T$1000, " ") ->  | H13: 0 | K13: 0 | N13: 0 | O13: 0 | P13: 0 | Q13: 0
A14: =IF(COUNTRY_INFO!A14=0," ",COUNTRY_INFO!A14) -> COMORES | B14: =IF(COUNTRY_INFO!B14=0," ",COUNTRY_INFO!B14) -> NGAZIDJA | C14: =IF(COUNTRY_INFO!C14=0," ",COUNTRY_INFO!C14) -> Mitsamiouli-Mboudé | D14: =IF(COUNTRY_INFO!$T$9:$T$1000="MDA3 (IVM)", COUNTRY_INFO!$T$9:$T$1000, " ") ->  | H14: 0 | K14: 0 | N14: 0 | O14: 0 | P14: 0 | Q14: 0
A15: =IF(COUNTRY_INFO!A15=0," ",COUNTRY_INFO!A15) -> COMORES | B15: =IF(COUNTRY_INFO!B15=0," ",COUNTRY_INFO!B15) -> NGAZIDJA | C15: =IF(COUNTRY_INFO!C15=0," ",COUNTRY_INFO!C15) -> Oichili-Dimani | D15: =IF(COUNTRY_INFO!$T$9:$T$1000="MDA3 (IVM)", COUNTRY_INFO!$T$9:$T$1000, " ") ->  | H15: 0 | K15: 0 | N15: 0 | O15: 0 | P15: 0 | Q15: 0
A16: =IF(COUNTRY_INFO!A16=0," ",COUNTRY_INFO!A16) -> COMORES | B16: =IF(COUNTRY_INFO!B16=0," ",COUNTRY_INFO!B16) -> NDZUWANI | C16: =IF(COUNTRY_INFO!C16=0," ",COUNTRY_INFO!C16) -> Domoni | D16: =IF(COUNTRY_INFO!$T$9:$T$1000="MDA3 (IVM)", COUNTRY_INFO!$T$9:$T$1000, " ") ->  | H16: 0 | K16: 0 | N16: 0 | O16: 0 | P16: 0 | Q16: 0
A17: =IF(COUNTRY_INFO!A17=0," ",COUNTRY_INFO!A17) -> COMORES | B17: =IF(COUNTRY_INFO!B17=0," ",COUNTRY_INFO!B17) -> NDZUWANI | C17: =IF(COUNTRY_INFO!C17=0," ",COUNTRY_INFO!C17) -> Mremani | D17: =IF(COUNTRY_INFO!$T$9:$T$1000="MDA3 (IVM)", COUNTRY_INFO!$T$9:$T$1000, " ") ->  | H17: 0 | K17: 0 | N17: 0 | O17: 0 | P17: 0 | Q17: 0
A18: =IF(COUNTRY_INFO!A18=0," ",COUNTRY_INFO!A18) -> COMORES | B18: =IF(COUNTRY_INFO!B18=0," ",COUNTRY_INFO!B18) -> NDZUWANI | C18: =IF(COUNTRY_INFO!C18=0," ",COUNTRY_INFO!C18) -> Mutsamudu | D18: =IF(COUNTRY_INFO!$T$9:$T$1000="MDA3 (IVM)", COUNTRY_INFO!$T$9:$T$1000, " ") ->  | H18: 0 | K18: 0 | N18: 0 | O18: 0 | P18: 0 | Q18: 0
A19: =IF(COUNTRY_INFO!A19=0," ",COUNTRY_INFO!A19) -> COMORES | B19: =IF(COUNTRY_INFO!B19=0," ",COUNTRY_INFO!B19) -> NDZUWANI | C19: =IF(COUNTRY_INFO!C19=0," ",COUNTRY_INFO!C19) -> Ouani | D19: =IF(COUNTRY_INFO!$T$9:$T$1000="MDA3 (IVM)", COUNTRY_INFO!$T$9:$T$1000, " ") ->  | H19: 0 | K19: 0 | N19: 0 | O19: 0 | P19: 0 | Q19: 0
A20: =IF(COUNTRY_INFO!A20=0," ",COUNTRY_INFO!A20) -> COMORES | B20: =IF(COUNTRY_INFO!B20=0," ",COUNTRY_INFO!B20) -> NDZUWANI | C20: =IF(COUNTRY_INFO!C20=0," ",COUNTRY_INFO!C20) -> Pomoni | D20: =IF(COUNTRY_INFO!$T$9:$T$1000="MDA3 (IVM)", COUNTRY_INFO!$T$9:$T$1000, " ") ->  | H20: 0 | K20: 0 | N20: 0 | O20: 0 | P20: 0 | Q20: 0
A21: =IF(COUNTRY_INFO!A21=0," ",COUNTRY_INFO!A21) -> COMORES | B21: =IF(COUNTRY_INFO!B21=0," ",COUNTRY_INFO!B21) -> NDZUWANI | C21: =IF(COUNTRY_INFO!C21=0," ",COUNTRY_INFO!C21) -> Sima | D21: =IF(COUNTRY_INFO!$T$9:$T$1000="MDA3 (IVM)", COUNTRY_INFO!$T$9:$T$1000, " ") ->  | H21: 0 | K21: 0 | N21: 0 | O21: 0 | P21: 0 | Q21: 0
A22: =IF(COUNTRY_INFO!A22=0," ",COUNTRY_INFO!A22) -> COMORES | B22: =IF(COUNTRY_INFO!B22=0," ",COUNTRY_INFO!B22) -> NDZUWANI | C22: =IF(COUNTRY_INFO!C22=0," ",COUNTRY_INFO!C22) -> Tsembehou | D22: =IF(COUNTRY_INFO!$T$9:$T$1000="MDA3 (IVM)", COUNTRY_INFO!$T$9:$T$1000, " ") ->  | H22: 0 | K22: 0 | N22: 0 | O22: 0 | P22: 0 | Q22: 0
A23: =IF(COUNTRY_INFO!A23=0," ",COUNTRY_INFO!A23) -> COMORES | B23: =IF(COUNTRY_INFO!B23=0," ",COUNTRY_INFO!B23) -> MWALI | C23: =IF(COUNTRY_INFO!C23=0," ",COUNTRY_INFO!C23) -> Djando | D23: =IF(COUNTRY_INFO!$T$9:$T$1000="MDA3 (IVM)", COUNTRY_INFO!$T$9:$T$1000, " ") ->  | H23: 0 | K23: 0 | N23: 0 | O23: 0 | P23: 0 | Q23: 0
A24: =IF(COUNTRY_INFO!A24=0," ",COUNTRY_INFO!A24) -> COMORES | B24: =IF(COUNTRY_INFO!B24=0," ",COUNTRY_INFO!B24) -> MWALI | C24: =IF(COUNTRY_INFO!C24=0," ",COUNTRY_INFO!C24) -> Fomboni | D24: =IF(COUNTRY_INFO!$T$9:$T$1000="MDA3 (IVM)", COUNTRY_INFO!$T$9:$T$1000, " ") ->  | H24: 0 | K24: 0 | N24: 0 | O24: 0 | P24: 0 | Q24: 0
A25: =IF(COUNTRY_INFO!A25=0," ",COUNTRY_INFO!A25) -> COMORES | B25: =IF(COUNTRY_INFO!B25=0," ",COUNTRY_INFO!B25) -> MWALI | C25: =IF(COUNTRY_INFO!C25=0," ",COUNTRY_INFO!C25) -> Nioumachoua | D25: =IF(COUNTRY_INFO!$T$9:$T$1000="MDA3 (IVM)", COUNTRY_INFO!$T$9:$T$1000, " ") ->  | H25: 0 | K25: 0 | N25: 0 | O25: 0 | P25: 0 | Q25: 0

Sheet T1 (hidden)
A1: T 1 - Praziquantel (PZQ) et Albendazole (ALB) ou Mebendazole (MBD)
A2: Structure administrative, population nécessitant une chimioprévention par groupe d'âge, population traitée par groupe d'âge et couverture
A4: TOTAL | G4: =SUM(G$9:G$1000) -> 0 | H4: 0 | I4: 0 | J4: 0 | K4: =SUM(K$9:K$1000) -> 0 | L4: 0 | M4: 0 | N4: 0 | O4: 0 | P4: =IF(G4<>0, IF(L4/G4*100=0, "-", L4/G4*100), " ") ->  | Q4: =IF(OR(I4<>0,H4<>0), IF(M4/MAX(H4,I4)*100=0, "-", M4/MAX(H4,I4)*100), " ") ->  | R4: =IF(J4<>0, IF(N4/J4*100=0, "-", N4/J4*100), " ") ->  | S4: =IF(K4<>0, IF(O4/K4*100=0, "-", O4/K4*100), " ") -> 
A6: Structure administrative du pays | D6: Mise en oeuvre de la CP | E6: Médica-ment | F6: Date | G6: Population ciblée pour T1 | L6: Population traitée | P6: Couverture du Programme (%)
A7: Pays | B7: Région/Département | C7: District | G7: EAPréS (ALB) | H7: EAS (ALB) | I7: EAS (PZQ) | J7: Adultes (PZQ) | K7: Total | L7: EAPréS | M7: EAS | N7: Adultes | O7: Total | P7: EAPréS | Q7: EAS | R7: Adultes | S7: Total
A9: =IF(COUNTRY_INFO!A9=0," ",COUNTRY_INFO!A9) -> COMORES | B9: =IF(COUNTRY_INFO!B9=0," ",COUNTRY_INFO!B9) -> NGAZIDJA | C9: =IF(COUNTRY_INFO!C9=0," ",COUNTRY_INFO!C9) -> Badjini-Est | D9: =IF(OR(COUNTRY_INFO!$T$9:$T$1000="T1 (PZQ+ALB/MBD)",COUNTRY_INFO!$U$9:$U$1000="T1 (PZQ+ALB/MBD)"), "T1 (PZQ+ALB/MBD)", " ") ->  | K9: =MAX(H9:I9)+G9+J9 -> 0 | O9: =SUM(L9:N9) -> 0 | P9: =IF(G9<>0, IF(L9/G9*100=0, "-", L9/G9*100), " ") ->  | Q9: =IF(OR(I9<>0,H9<>0), IF(M9/MAX(H9,I9)*100=0, "-", M9/MAX(H9,I9)*100), " ") ->  | R9: =IF(J9<>0, IF(N9/J9*100=0, "-", N9/J9*100), " ") -> 
A10: =IF(COUNTRY_INFO!A10=0," ",COUNTRY_INFO!A10) -> COMORES | B10: =IF(COUNTRY_INFO!B10=0," ",COUNTRY_INFO!B10) -> NGAZIDJA | C10: =IF(COUNTRY_INFO!C10=0," ",COUNTRY_INFO!C10) -> Badjini-Ouest | D10: =IF(OR(COUNTRY_INFO!$T$9:$T$1000="T1 (PZQ+ALB/MBD)",COUNTRY_INFO!$U$9:$U$1000="T1 (PZQ+ALB/MBD)"), "T1 (PZQ+ALB/MBD)", " ") ->  | K10: =MAX(H10:I10)+G10+J10 -> 0 | O10: =SUM(L10:N10) -> 0 | P10: =IF(G10<>0, IF(L10/G10*100=0, "-", L10/G10*100), " ") ->  | Q10: =IF(OR(I10<>0,H10<>0), IF(M10/MAX(H10,I10)*100=0, "-", M10/MAX(H10,I10)*100), " ") ->  | R10: =IF(J10<>0, IF(N10/J10*100=0, "-", N10/J10*100), " ") ->  | S10: =IF(K10<>0, IF(O10/K10*100=0, "-", O10/K10*100), " ") -> 
A11: =IF(COUNTRY_INFO!A11=0," ",COUNTRY_INFO!A11) -> COMORES | B11: =IF(COUNTRY_INFO!B11=0," ",COUNTRY_INFO!B11) -> NGAZIDJA | C11: =IF(COUNTRY_INFO!C11=0," ",COUNTRY_INFO!C11) -> Centre | D11: =IF(OR(COUNTRY_INFO!$T$9:$T$1000="T1 (PZQ+ALB/MBD)",COUNTRY_INFO!$U$9:$U$1000="T1 (PZQ+ALB/MBD)"), "T1 (PZQ+ALB/MBD)", " ") ->  | K11: 0 | O11: 0
A12: =IF(COUNTRY_INFO!A12=0," ",COUNTRY_INFO!A12) -> COMORES | B12: =IF(COUNTRY_INFO!B12=0," ",COUNTRY_INFO!B12) -> NGAZIDJA | C12: =IF(COUNTRY_INFO!C12=0," ",COUNTRY_INFO!C12) -> Hamahamet-Mboinkou | D12: =IF(OR(COUNTRY_INFO!$T$9:$T$1000="T1 (PZQ+ALB/MBD)",COUNTRY_INFO!$U$9:$U$1000="T1 (PZQ+ALB/MBD)"), "T1 (PZQ+ALB/MBD)", " ") ->  | K12: 0 | O12: 0
A13: =IF(COUNTRY_INFO!A13=0," ",COUNTRY_INFO!A13) -> COMORES | B13: =IF(COUNTRY_INFO!B13=0," ",COUNTRY_INFO!B13) -> NGAZIDJA | C13: =IF(COUNTRY_INFO!C13=0," ",COUNTRY_INFO!C13) -> Hambou | D13: =IF(OR(COUNTRY_INFO!$T$9:$T$1000="T1 (PZQ+ALB/MBD)",COUNTRY_INFO!$U$9:$U$1000="T1 (PZQ+ALB/MBD)"), "T1 (PZQ+ALB/MBD)", " ") ->  | K13: 0 | O13: 0
A14: =IF(COUNTRY_INFO!A14=0," ",COUNTRY_INFO!A14) -> COMORES | B14: =IF(COUNTRY_INFO!B14=0," ",COUNTRY_INFO!B14) -> NGAZIDJA | C14: =IF(COUNTRY_INFO!C14=0," ",COUNTRY_INFO!C14) -> Mitsamiouli-Mboudé | D14: =IF(OR(COUNTRY_INFO!$T$9:$T$1000="T1 (PZQ+ALB/MBD)",COUNTRY_INFO!$U$9:$U$1000="T1 (PZQ+ALB/MBD)"), "T1 (PZQ+ALB/MBD)", " ") ->  | K14: 0 | O14: 0
A15: =IF(COUNTRY_INFO!A15=0," ",COUNTRY_INFO!A15) -> COMORES | B15: =IF(COUNTRY_INFO!B15=0," ",COUNTRY_INFO!B15) -> NGAZIDJA | C15: =IF(COUNTRY_INFO!C15=0," ",COUNTRY_INFO!C15) -> Oichili-Dimani | D15: =IF(OR(COUNTRY_INFO!$T$9:$T$1000="T1 (PZQ+ALB/MBD)",COUNTRY_INFO!$U$9:$U$1000="T1 (PZQ+ALB/MBD)"), "T1 (PZQ+ALB/MBD)", " ") ->  | K15: 0 | O15: 0
A16: =IF(COUNTRY_INFO!A16=0," ",COUNTRY_INFO!A16) -> COMORES | B16: =IF(COUNTRY_INFO!B16=0," ",COUNTRY_INFO!B16) -> NDZUWANI | C16: =IF(COUNTRY_INFO!C16=0," ",COUNTRY_INFO!C16) -> Domoni | D16: =IF(OR(COUNTRY_INFO!$T$9:$T$1000="T1 (PZQ+ALB/MBD)",COUNTRY_INFO!$U$9:$U$1000="T1 (PZQ+ALB/MBD)"), "T1 (PZQ+ALB/MBD)", " ") ->  | K16: 0 | O16: 0
A17: =IF(COUNTRY_INFO!A17=0," ",COUNTRY_INFO!A17) -> COMORES | B17: =IF(COUNTRY_INFO!B17=0," ",COUNTRY_INFO!B17) -> NDZUWANI | C17: =IF(COUNTRY_INFO!C17=0," ",COUNTRY_INFO!C17) -> Mremani | D17: =IF(OR(COUNTRY_INFO!$T$9:$T$1000="T1 (PZQ+ALB/MBD)",COUNTRY_INFO!$U$9:$U$1000="T1 (PZQ+ALB/MBD)"), "T1 (PZQ+ALB/MBD)", " ") ->  | K17: 0 | O17: 0
A18: =IF(COUNTRY_INFO!A18=0," ",COUNTRY_INFO!A18) -> COMORES | B18: =IF(COUNTRY_INFO!B18=0," ",COUNTRY_INFO!B18) -> NDZUWANI | C18: =IF(COUNTRY_INFO!C18=0," ",COUNTRY_INFO!C18) -> Mutsamudu | D18: =IF(OR(COUNTRY_INFO!$T$9:$T$1000="T1 (PZQ+ALB/MBD)",COUNTRY_INFO!$U$9:$U$1000="T1 (PZQ+ALB/MBD)"), "T1 (PZQ+ALB/MBD)", " ") ->  | K18: 0 | O18: 0
A19: =IF(COUNTRY_INFO!A19=0," ",COUNTRY_INFO!A19) -> COMORES | B19: =IF(COUNTRY_INFO!B19=0," ",COUNTRY_INFO!B19) -> NDZUWANI | C19: =IF(COUNTRY_INFO!C19=0," ",COUNTRY_INFO!C19) -> Ouani | D19: =IF(OR(COUNTRY_INFO!$T$9:$T$1000="T1 (PZQ+ALB/MBD)",COUNTRY_INFO!$U$9:$U$1000="T1 (PZQ+ALB/MBD)"), "T1 (PZQ+ALB/MBD)", " ") ->  | K19: 0 | O19: 0
A20: =IF(COUNTRY_INFO!A20=0," ",COUNTRY_INFO!A20) -> COMORES | B20: =IF(COUNTRY_INFO!B20=0," ",COUNTRY_INFO!B20) -> NDZUWANI | C20: =IF(COUNTRY_INFO!C20=0," ",COUNTRY_INFO!C20) -> Pomoni | D20: =IF(OR(COUNTRY_INFO!$T$9:$T$1000="T1 (PZQ+ALB/MBD)",COUNTRY_INFO!$U$9:$U$1000="T1 (PZQ+ALB/MBD)"), "T1 (PZQ+ALB/MBD)", " ") ->  | K20: 0 | O20: 0
A21: =IF(COUNTRY_INFO!A21=0," ",COUNTRY_INFO!A21) -> COMORES | B21: =IF(COUNTRY_INFO!B21=0," ",COUNTRY_INFO!B21) -> NDZUWANI | C21: =IF(COUNTRY_INFO!C21=0," ",COUNTRY_INFO!C21) -> Sima | D21: =IF(OR(COUNTRY_INFO!$T$9:$T$1000="T1 (PZQ+ALB/MBD)",COUNTRY_INFO!$U$9:$U$1000="T1 (PZQ+ALB/MBD)"), "T1 (PZQ+ALB/MBD)", " ") ->  | K21: 0 | O21: 0
A22: =IF(COUNTRY_INFO!A22=0," ",COUNTRY_INFO!A22) -> COMORES | B22: =IF(COUNTRY_INFO!B22=0," ",COUNTRY_INFO!B22) -> NDZUWANI | C22: =IF(COUNTRY_INFO!C22=0," ",COUNTRY_INFO!C22) -> Tsembehou | D22: =IF(OR(COUNTRY_INFO!$T$9:$T$1000="T1 (PZQ+ALB/MBD)",COUNTRY_INFO!$U$9:$U$1000="T1 (PZQ+ALB/MBD)"), "T1 (PZQ+ALB/MBD)", " ") ->  | K22: 0 | O22: 0
A23: =IF(COUNTRY_INFO!A23=0," ",COUNTRY_INFO!A23) -> COMORES | B23: =IF(COUNTRY_INFO!B23=0," ",COUNTRY_INFO!B23) -> MWALI | C23: =IF(COUNTRY_INFO!C23=0," ",COUNTRY_INFO!C23) -> Djando | D23: =IF(OR(COUNTRY_INFO!$T$9:$T$1000="T1 (PZQ+ALB/MBD)",COUNTRY_INFO!$U$9:$U$1000="T1 (PZQ+ALB/MBD)"), "T1 (PZQ+ALB/MBD)", " ") ->  | K23: 0 | O23: 0
A24: =IF(COUNTRY_INFO!A24=0," ",COUNTRY_INFO!A24) -> COMORES | B24: =IF(COUNTRY_INFO!B24=0," ",COUNTRY_INFO!B24) -> MWALI | C24: =IF(COUNTRY_INFO!C24=0," ",COUNTRY_INFO!C24) -> Fomboni | D24: =IF(OR(COUNTRY_INFO!$T$9:$T$1000="T1 (PZQ+ALB/MBD)",COUNTRY_INFO!$U$9:$U$1000="T1 (PZQ+ALB/MBD)"), "T1 (PZQ+ALB/MBD)", " ") ->  | K24: 0 | O24: 0
A25: =IF(COUNTRY_INFO!A25=0," ",COUNTRY_INFO!A25) -> COMORES | B25: =IF(COUNTRY_INFO!B25=0," ",COUNTRY_INFO!B25) -> MWALI | C25: =IF(COUNTRY_INFO!C25=0," ",COUNTRY_INFO!C25) -> Nioumachoua | D25: =IF(OR(COUNTRY_INFO!$T$9:$T$1000="T1 (PZQ+ALB/MBD)",COUNTRY_INFO!$U$9:$U$1000="T1 (PZQ+ALB/MBD)"), "T1 (PZQ+ALB/MBD)", " ") ->  | K25: 0 | O25: 0

Sheet T2 (hidden)
A1: T 2 - Praziquantel (PZQ)
A2: Structure administrative, population nécessitant une chimioprévention par groupe d'âge, population traitée par groupe d'âge et couverture
A4: TOTAL | F4: =SUM(F$9:F$1000) -> 0 | G4: 0 | H4: 0 | I4: 0 | J4: 0 | K4: 0 | L4: 0 | M4: 0 | N4: =IF(F4<>0, IF(J4/F4*100=0, "-", J4/F4*100), " ") ->  | O4: =IF(G4<>0, IF(K4/G4*100=0, "-", K4/G4*100), " ") ->  | P4: =IF(H4<>0, IF(L4/H4*100=0, "-", L4/H4*100), " ") ->  | Q4: =IF(I4<>0, IF(M4/I4*100=0, "-", M4/I4*100), " ") -> 
A6: Structure administrative du pays | D6: Mise en oeuvre de la CP | E6: Date | F6: Population ciblée pour T2 | J6: Population traitée | N6: Couverture du Programme (%)
A7: Pays | B7: Région/Département | C7: District | F7: EAPréS | G7: EAS | H7: Adultes | I7: Total | J7: EAPréS | K7: EAS | L7: Adultes | M7: Total | N7: EAPréS | O7: EAS | P7: Adultes | Q7: Total
A9: =IF(COUNTRY_INFO!A9=0," ",COUNTRY_INFO!A9) -> COMORES | B9: =IF(COUNTRY_INFO!B9=0," ",COUNTRY_INFO!B9) -> NGAZIDJA | C9: =IF(COUNTRY_INFO!C9=0," ",COUNTRY_INFO!C9) -> Badjini-Est | D9: =IF(OR(COUNTRY_INFO!$T$9:$T$1000="T2 (PZQ)",COUNTRY_INFO!$U$9:$U$1000="T2 (PZQ)"), "T2 (PZQ)", " ") ->  | I9: =SUM(F9:H9) -> 0 | M9: =SUM(J9:L9) -> 0 | N9: =IF(F9<>0, IF(J9/F9*100=0, "-", J9/F9*100), " ") -> 
A10: =IF(COUNTRY_INFO!A10=0," ",COUNTRY_INFO!A10) -> COMORES | B10: =IF(COUNTRY_INFO!B10=0," ",COUNTRY_INFO!B10) -> NGAZIDJA | C10: =IF(COUNTRY_INFO!C10=0," ",COUNTRY_INFO!C10) -> Badjini-Ouest | D10: =IF(OR(COUNTRY_INFO!$T$9:$T$1000="T2 (PZQ)",COUNTRY_INFO!$U$9:$U$1000="T2 (PZQ)"), "T2 (PZQ)", " ") ->  | I10: =SUM(F10:H10) -> 0 | M10: =SUM(J10:L10) -> 0 | N10: =IF(F10<>0, IF(J10/F10*100=0, "-", J10/F10*100), " ") ->  | O10: =IF(G10<>0, IF(K10/G10*100=0, "-", K10/G10*100), " ") ->  | P10: =IF(H10<>0, IF(L10/H10*100=0, "-", L10/H10*100), " ") ->  | Q10: =IF(I10<>0, IF(M10/I10*100=0, "-", M10/I10*100), " ") -> 
A11: =IF(COUNTRY_INFO!A11=0," ",COUNTRY_INFO!A11) -> COMORES | B11: =IF(COUNTRY_INFO!B11=0," ",COUNTRY_INFO!B11) -> NGAZIDJA | C11: =IF(COUNTRY_INFO!C11=0," ",COUNTRY_INFO!C11) -> Centre | D11: =IF(OR(COUNTRY_INFO!$T$9:$T$1000="T2 (PZQ)",COUNTRY_INFO!$U$9:$U$1000="T2 (PZQ)"), "T2 (PZQ)", " ") ->  | I11: 0 | M11: 0
A12: =IF(COUNTRY_INFO!A12=0," ",COUNTRY_INFO!A12) -> COMORES | B12: =IF(COUNTRY_INFO!B12=0," ",COUNTRY_INFO!B12) -> NGAZIDJA | C12: =IF(COUNTRY_INFO!C12=0," ",COUNTRY_INFO!C12) -> Hamahamet-Mboinkou | D12: =IF(OR(COUNTRY_INFO!$T$9:$T$1000="T2 (PZQ)",COUNTRY_INFO!$U$9:$U$1000="T2 (PZQ)"), "T2 (PZQ)", " ") ->  | I12: 0 | M12: 0
A13: =IF(COUNTRY_INFO!A13=0," ",COUNTRY_INFO!A13) -> COMORES | B13: =IF(COUNTRY_INFO!B13=0," ",COUNTRY_INFO!B13) -> NGAZIDJA | C13: =IF(COUNTRY_INFO!C13=0," ",COUNTRY_INFO!C13) -> Hambou | D13: =IF(OR(COUNTRY_INFO!$T$9:$T$1000="T2 (PZQ)",COUNTRY_INFO!$U$9:$U$1000="T2 (PZQ)"), "T2 (PZQ)", " ") ->  | I13: 0 | M13: 0
A14: =IF(COUNTRY_INFO!A14=0," ",COUNTRY_INFO!A14) -> COMORES | B14: =IF(COUNTRY_INFO!B14=0," ",COUNTRY_INFO!B14) -> NGAZIDJA | C14: =IF(COUNTRY_INFO!C14=0," ",COUNTRY_INFO!C14) -> Mitsamiouli-Mboudé | D14: =IF(OR(COUNTRY_INFO!$T$9:$T$1000="T2 (PZQ)",COUNTRY_INFO!$U$9:$U$1000="T2 (PZQ)"), "T2 (PZQ)", " ") ->  | I14: 0 | M14: 0
A15: =IF(COUNTRY_INFO!A15=0," ",COUNTRY_INFO!A15) -> COMORES | B15: =IF(COUNTRY_INFO!B15=0," ",COUNTRY_INFO!B15) -> NGAZIDJA | C15: =IF(COUNTRY_INFO!C15=0," ",COUNTRY_INFO!C15) -> Oichili-Dimani | D15: =IF(OR(COUNTRY_INFO!$T$9:$T$1000="T2 (PZQ)",COUNTRY_INFO!$U$9:$U$1000="T2 (PZQ)"), "T2 (PZQ)", " ") ->  | I15: 0 | M15: 0
A16: =IF(COUNTRY_INFO!A16=0," ",COUNTRY_INFO!A16) -> COMORES | B16: =IF(COUNTRY_INFO!B16=0," ",COUNTRY_INFO!B16) -> NDZUWANI | C16: =IF(COUNTRY_INFO!C16=0," ",COUNTRY_INFO!C16) -> Domoni | D16: =IF(OR(COUNTRY_INFO!$T$9:$T$1000="T2 (PZQ)",COUNTRY_INFO!$U$9:$U$1000="T2 (PZQ)"), "T2 (PZQ)", " ") ->  | I16: 0 | M16: 0
A17: =IF(COUNTRY_INFO!A17=0," ",COUNTRY_INFO!A17) -> COMORES | B17: =IF(COUNTRY_INFO!B17=0," ",COUNTRY_INFO!B17) -> NDZUWANI | C17: =IF(COUNTRY_INFO!C17=0," ",COUNTRY_INFO!C17) -> Mremani | D17: =IF(OR(COUNTRY_INFO!$T$9:$T$1000="T2 (PZQ)",COUNTRY_INFO!$U$9:$U$1000="T2 (PZQ)"), "T2 (PZQ)", " ") ->  | I17: 0 | M17: 0
A18: =IF(COUNTRY_INFO!A18=0," ",COUNTRY_INFO!A18) -> COMORES | B18: =IF(COUNTRY_INFO!B18=0," ",COUNTRY_INFO!B18) -> NDZUWANI | C18: =IF(COUNTRY_INFO!C18=0," ",COUNTRY_INFO!C18) -> Mutsamudu | D18: =IF(OR(COUNTRY_INFO!$T$9:$T$1000="T2 (PZQ)",COUNTRY_INFO!$U$9:$U$1000="T2 (PZQ)"), "T2 (PZQ)", " ") ->  | I18: 0 | M18: 0
A19: =IF(COUNTRY_INFO!A19=0," ",COUNTRY_INFO!A19) -> COMORES | B19: =IF(COUNTRY_INFO!B19=0," ",COUNTRY_INFO!B19) -> NDZUWANI | C19: =IF(COUNTRY_INFO!C19=0," ",COUNTRY_INFO!C19) -> Ouani | D19: =IF(OR(COUNTRY_INFO!$T$9:$T$1000="T2 (PZQ)",COUNTRY_INFO!$U$9:$U$1000="T2 (PZQ)"), "T2 (PZQ)", " ") ->  | I19: 0 | M19: 0
A20: =IF(COUNTRY_INFO!A20=0," ",COUNTRY_INFO!A20) -> COMORES | B20: =IF(COUNTRY_INFO!B20=0," ",COUNTRY_INFO!B20) -> NDZUWANI | C20: =IF(COUNTRY_INFO!C20=0," ",COUNTRY_INFO!C20) -> Pomoni | D20: =IF(OR(COUNTRY_INFO!$T$9:$T$1000="T2 (PZQ)",COUNTRY_INFO!$U$9:$U$1000="T2 (PZQ)"), "T2 (PZQ)", " ") ->  | I20: 0 | M20: 0
A21: =IF(COUNTRY_INFO!A21=0," ",COUNTRY_INFO!A21) -> COMORES | B21: =IF(COUNTRY_INFO!B21=0," ",COUNTRY_INFO!B21) -> NDZUWANI | C21: =IF(COUNTRY_INFO!C21=0," ",COUNTRY_INFO!C21) -> Sima | D21: =IF(OR(COUNTRY_INFO!$T$9:$T$1000="T2 (PZQ)",COUNTRY_INFO!$U$9:$U$1000="T2 (PZQ)"), "T2 (PZQ)", " ") ->  | I21: 0 | M21: 0
A22: =IF(COUNTRY_INFO!A22=0," ",COUNTRY_INFO!A22) -> COMORES | B22: =IF(COUNTRY_INFO!B22=0," ",COUNTRY_INFO!B22) -> NDZUWANI | C22: =IF(COUNTRY_INFO!C22=0," ",COUNTRY_INFO!C22) -> Tsembehou | D22: =IF(OR(COUNTRY_INFO!$T$9:$T$1000="T2 (PZQ)",COUNTRY_INFO!$U$9:$U$1000="T2 (PZQ)"), "T2 (PZQ)", " ") ->  | I22: 0 | M22: 0
A23: =IF(COUNTRY_INFO!A23=0," ",COUNTRY_INFO!A23) -> COMORES | B23: =IF(COUNTRY_INFO!B23=0," ",COUNTRY_INFO!B23) -> MWALI | C23: =IF(COUNTRY_INFO!C23=0," ",COUNTRY_INFO!C23) -> Djando | D23: =IF(OR(COUNTRY_INFO!$T$9:$T$1000="T2 (PZQ)",COUNTRY_INFO!$U$9:$U$1000="T2 (PZQ)"), "T2 (PZQ)", " ") ->  | I23: 0 | M23: 0
A24: =IF(COUNTRY_INFO!A24=0," ",COUNTRY_INFO!A24) -> COMORES | B24: =IF(COUNTRY_INFO!B24=0," ",COUNTRY_INFO!B24) -> MWALI | C24: =IF(COUNTRY_INFO!C24=0," ",COUNTRY_INFO!C24) -> Fomboni | D24: =IF(OR(COUNTRY_INFO!$T$9:$T$1000="T2 (PZQ)",COUNTRY_INFO!$U$9:$U$1000="T2 (PZQ)"), "T2 (PZQ)", " ") ->  | I24: 0 | M24: 0
A25: =IF(COUNTRY_INFO!A25=0," ",COUNTRY_INFO!A25) -> COMORES | B25: =IF(COUNTRY_INFO!B25=0," ",COUNTRY_INFO!B25) -> MWALI | C25: =IF(COUNTRY_INFO!C25=0," ",COUNTRY_INFO!C25) -> Nioumachoua | D25: =IF(OR(COUNTRY_INFO!$T$9:$T$1000="T2 (PZQ)",COUNTRY_INFO!$U$9:$U$1000="T2 (PZQ)"), "T2 (PZQ)", " ") ->  | I25: 0 | M25: 0

Sheet T3_R1
A1: T 3 - Albendazole (ALB) ou Mebendazole (MBD) - Tournée 1
A2: Structure administrative, population nécessitant une chimioprévention par groupe d'âge, population traitée par groupe d'âge et couverture
A4: TOTAL | G4: =SUM(G$9:G$1000) -> 0 | H4: 0 | I4: 0 | J4: 0 | K4: 0 | L4: 0 | M4: 0 | N4: 0 | O4: =IF(G4<>0, IF(K4/G4*100=0, "-", K4/G4*100), " ") ->  | P4: =IF(H4<>0, IF(L4/H4*100=0, "-", L4/H4*100), " ") ->  | Q4: =IF(I4<>0, IF(M4/I4*100=0, "-", M4/I4*100), " ") ->  | R4: =IF(J4<>0, IF(N4/J4*100=0, "-", N4/J4*100), " ") -> 
A6: Structure administrative du pays | D6: Mise en oeuvre de la CP | E6: Médica-ment | F6: Date | G6: Population ciblée pour T3 | K6: Population traitée | O6: Couverture du Programme (%)
A7: Pays | B7: Région/Département | C7: District | G7: EAPréS | H7: EAS | I7: Adultes | J7: Total | K7: EAPréS | L7: EAS | M7: Adultes | N7: Total | O7: EAPréS | P7: EAS | Q7: Adultes | R7: Total
A9: =IF(COUNTRY_INFO!A9=0," ",COUNTRY_INFO!A9) -> COMORES | B9: =IF(COUNTRY_INFO!B9=0," ",COUNTRY_INFO!B9) -> NGAZIDJA | C9: =IF(COUNTRY_INFO!C9=0," ",COUNTRY_INFO!C9) -> Badjini-Est | D9: =IF(OR(COUNTRY_INFO!$T$9:$T$1000="T3 (ALB/MBD)",COUNTRY_INFO!$U$9:$U$1000="T3 (ALB/MBD)"), "T3 (ALB/MBD)", " ") ->  | J9: =SUM(G9:I9) -> 0 | N9: =SUM(K9:M9) -> 0 | O9: =IF(G9<>0, IF(K9/G9*100=0, "-", K9/G9*100), " ") -> 
A10: =IF(COUNTRY_INFO!A10=0," ",COUNTRY_INFO!A10) -> COMORES | B10: =IF(COUNTRY_INFO!B10=0," ",COUNTRY_INFO!B10) -> NGAZIDJA | C10: =IF(COUNTRY_INFO!C10=0," ",COUNTRY_INFO!C10) -> Badjini-Ouest | D10: =IF(OR(COUNTRY_INFO!$T$9:$T$1000="T3 (ALB/MBD)",COUNTRY_INFO!$U$9:$U$1000="T3 (ALB/MBD)"), "T3 (ALB/MBD)", " ") ->  | J10: =SUM(G10:I10) -> 0 | N10: =SUM(K10:M10) -> 0 | O10: =IF(G10<>0, IF(K10/G10*100=0, "-", K10/G10*100), " ") ->  | P10: =IF(H10<>0, IF(L10/H10*100=0, "-", L10/H10*100), " ") ->  | Q10: =IF(I10<>0, IF(M10/I10*100=0, "-", M10/I10*100), " ") ->  | R10: =IF(J10<>0, IF(N10/J10*100=0, "-", N10/J10*100), " ") -> 
A11: =IF(COUNTRY_INFO!A11=0," ",COUNTRY_INFO!A11) -> COMORES | B11: =IF(COUNTRY_INFO!B11=0," ",COUNTRY_INFO!B11) -> NGAZIDJA | C11: =IF(COUNTRY_INFO!C11=0," ",COUNTRY_INFO!C11) -> Centre | D11: =IF(OR(COUNTRY_INFO!$T$9:$T$1000="T3 (ALB/MBD)",COUNTRY_INFO!$U$9:$U$1000="T3 (ALB/MBD)"), "T3 (ALB/MBD)", " ") ->  | J11: 0 | N11: 0
A12: =IF(COUNTRY_INFO!A12=0," ",COUNTRY_INFO!A12) -> COMORES | B12: =IF(COUNTRY_INFO!B12=0," ",COUNTRY_INFO!B12) -> NGAZIDJA | C12: =IF(COUNTRY_INFO!C12=0," ",COUNTRY_INFO!C12) -> Hamahamet-Mboinkou | D12: =IF(OR(COUNTRY_INFO!$T$9:$T$1000="T3 (ALB/MBD)",COUNTRY_INFO!$U$9:$U$1000="T3 (ALB/MBD)"), "T3 (ALB/MBD)", " ") ->  | J12: 0 | N12: 0
A13: =IF(COUNTRY_INFO!A13=0," ",COUNTRY_INFO!A13) -> COMORES | B13: =IF(COUNTRY_INFO!B13=0," ",COUNTRY_INFO!B13) -> NGAZIDJA | C13: =IF(COUNTRY_INFO!C13=0," ",COUNTRY_INFO!C13) -> Hambou | D13: =IF(OR(COUNTRY_INFO!$T$9:$T$1000="T3 (ALB/MBD)",COUNTRY_INFO!$U$9:$U$1000="T3 (ALB/MBD)"), "T3 (ALB/MBD)", " ") ->  | J13: 0 | N13: 0
A14: =IF(COUNTRY_INFO!A14=0," ",COUNTRY_INFO!A14) -> COMORES | B14: =IF(COUNTRY_INFO!B14=0," ",COUNTRY_INFO!B14) -> NGAZIDJA | C14: =IF(COUNTRY_INFO!C14=0," ",COUNTRY_INFO!C14) -> Mitsamiouli-Mboudé | D14: =IF(OR(COUNTRY_INFO!$T$9:$T$1000="T3 (ALB/MBD)",COUNTRY_INFO!$U$9:$U$1000="T3 (ALB/MBD)"), "T3 (ALB/MBD)", " ") ->  | J14: 0 | N14: 0
A15: =IF(COUNTRY_INFO!A15=0," ",COUNTRY_INFO!A15) -> COMORES | B15: =IF(COUNTRY_INFO!B15=0," ",COUNTRY_INFO!B15) -> NGAZIDJA | C15: =IF(COUNTRY_INFO!C15=0," ",COUNTRY_INFO!C15) -> Oichili-Dimani | D15: =IF(OR(COUNTRY_INFO!$T$9:$T$1000="T3 (ALB/MBD)",COUNTRY_INFO!$U$9:$U$1000="T3 (ALB/MBD)"), "T3 (ALB/MBD)", " ") ->  | J15: 0 | N15: 0
A16: =IF(COUNTRY_INFO!A16=0," ",COUNTRY_INFO!A16) -> COMORES | B16: =IF(COUNTRY_INFO!B16=0," ",COUNTRY_INFO!B16) -> NDZUWANI | C16: =IF(COUNTRY_INFO!C16=0," ",COUNTRY_INFO!C16) -> Domoni | D16: =IF(OR(COUNTRY_INFO!$T$9:$T$1000="T3 (ALB/MBD)",COUNTRY_INFO!$U$9:$U$1000="T3 (ALB/MBD)"), "T3 (ALB/MBD)", " ") ->  | J16: 0 | N16: 0
A17: =IF(COUNTRY_INFO!A17=0," ",COUNTRY_INFO!A17) -> COMORES | B17: =IF(COUNTRY_INFO!B17=0," ",COUNTRY_INFO!B17) -> NDZUWANI | C17: =IF(COUNTRY_INFO!C17=0," ",COUNTRY_INFO!C17) -> Mremani | D17: =IF(OR(COUNTRY_INFO!$T$9:$T$1000="T3 (ALB/MBD)",COUNTRY_INFO!$U$9:$U$1000="T3 (ALB/MBD)"), "T3 (ALB/MBD)", " ") ->  | J17: 0 | N17: 0
A18: =IF(COUNTRY_INFO!A18=0," ",COUNTRY_INFO!A18) -> COMORES | B18: =IF(COUNTRY_INFO!B18=0," ",COUNTRY_INFO!B18) -> NDZUWANI | C18: =IF(COUNTRY_INFO!C18=0," ",COUNTRY_INFO!C18) -> Mutsamudu | D18: =IF(OR(COUNTRY_INFO!$T$9:$T$1000="T3 (ALB/MBD)",COUNTRY_INFO!$U$9:$U$1000="T3 (ALB/MBD)"), "T3 (ALB/MBD)", " ") ->  | J18: 0 | N18: 0
A19: =IF(COUNTRY_INFO!A19=0," ",COUNTRY_INFO!A19) -> COMORES | B19: =IF(COUNTRY_INFO!B19=0," ",COUNTRY_INFO!B19) -> NDZUWANI | C19: =IF(COUNTRY_INFO!C19=0," ",COUNTRY_INFO!C19) -> Ouani | D19: =IF(OR(COUNTRY_INFO!$T$9:$T$1000="T3 (ALB/MBD)",COUNTRY_INFO!$U$9:$U$1000="T3 (ALB/MBD)"), "T3 (ALB/MBD)", " ") ->  | J19: 0 | N19: 0
A20: =IF(COUNTRY_INFO!A20=0," ",COUNTRY_INFO!A20) -> COMORES | B20: =IF(COUNTRY_INFO!B20=0," ",COUNTRY_INFO!B20) -> NDZUWANI | C20: =IF(COUNTRY_INFO!C20=0," ",COUNTRY_INFO!C20) -> Pomoni | D20: =IF(OR(COUNTRY_INFO!$T$9:$T$1000="T3 (ALB/MBD)",COUNTRY_INFO!$U$9:$U$1000="T3 (ALB/MBD)"), "T3 (ALB/MBD)", " ") ->  | J20: 0 | N20: 0
A21: =IF(COUNTRY_INFO!A21=0," ",COUNTRY_INFO!A21) -> COMORES | B21: =IF(COUNTRY_INFO!B21=0," ",COUNTRY_INFO!B21) -> NDZUWANI | C21: =IF(COUNTRY_INFO!C21=0," ",COUNTRY_INFO!C21) -> Sima | D21: =IF(OR(COUNTRY_INFO!$T$9:$T$1000="T3 (ALB/MBD)",COUNTRY_INFO!$U$9:$U$1000="T3 (ALB/MBD)"), "T3 (ALB/MBD)", " ") ->  | J21: 0 | N21: 0
A22: =IF(COUNTRY_INFO!A22=0," ",COUNTRY_INFO!A22) -> COMORES | B22: =IF(COUNTRY_INFO!B22=0," ",COUNTRY_INFO!B22) -> NDZUWANI | C22: =IF(COUNTRY_INFO!C22=0," ",COUNTRY_INFO!C22) -> Tsembehou | D22: =IF(OR(COUNTRY_INFO!$T$9:$T$1000="T3 (ALB/MBD)",COUNTRY_INFO!$U$9:$U$1000="T3 (ALB/MBD)"), "T3 (ALB/MBD)", " ") ->  | J22: 0 | N22: 0
A23: =IF(COUNTRY_INFO!A23=0," ",COUNTRY_INFO!A23) -> COMORES | B23: =IF(COUNTRY_INFO!B23=0," ",COUNTRY_INFO!B23) -> MWALI | C23: =IF(COUNTRY_INFO!C23=0," ",COUNTRY_INFO!C23) -> Djando | D23: =IF(OR(COUNTRY_INFO!$T$9:$T$1000="T3 (ALB/MBD)",COUNTRY_INFO!$U$9:$U$1000="T3 (ALB/MBD)"), "T3 (ALB/MBD)", " ") ->  | J23: 0 | N23: 0
A24: =IF(COUNTRY_INFO!A24=0," ",COUNTRY_INFO!A24) -> COMORES | B24: =IF(COUNTRY_INFO!B24=0," ",COUNTRY_INFO!B24) -> MWALI | C24: =IF(COUNTRY_INFO!C24=0," ",COUNTRY_INFO!C24) -> Fomboni | D24: =IF(OR(COUNTRY_INFO!$T$9:$T$1000="T3 (ALB/MBD)",COUNTRY_INFO!$U$9:$U$1000="T3 (ALB/MBD)"), "T3 (ALB/MBD)", " ") ->  | J24: 0 | N24: 0
A25: =IF(COUNTRY_INFO!A25=0," ",COUNTRY_INFO!A25) -> COMORES | B25: =IF(COUNTRY_INFO!B25=0," ",COUNTRY_INFO!B25) -> MWALI | C25: =IF(COUNTRY_INFO!C25=0," ",COUNTRY_INFO!C25) -> Nioumachoua | D25: =IF(OR(COUNTRY_INFO!$T$9:$T$1000="T3 (ALB/MBD)",COUNTRY_INFO!$U$9:$U$1000="T3 (ALB/MBD)"), "T3 (ALB/MBD)", " ") ->  | J25: 0 | N25: 0

Sheet T3_R2
A1: T 3 - Albendazole (ALB) ou Mebendazole (MBD) - Tournée 2
A2: Structure administrative, population nécessitant une chimioprévention par groupe d'âge, population traitée par groupe d'âge et couverture
A4: TOTAL | G4: =SUM(G$9:G$1000) -> 0 | H4: 0 | I4: 0 | J4: 0 | K4: 0 | L4: 0 | M4: 0 | N4: 0 | O4: =IF(G4<>0, IF(K4/G4*100=0, "-", K4/G4*100), " ") ->  | P4: =IF(H4<>0, IF(L4/H4*100=0, "-", L4/H4*100), " ") ->  | Q4: =IF(I4<>0, IF(M4/I4*100=0, "-", M4/I4*100), " ") ->  | R4: =IF(J4<>0, IF(N4/J4*100=0, "-", N4/J4*100), " ") -> 
A6: Structure administrative du pays | D6: Mise en oeuvre de la CP | E6: Médica-ment | F6: Date | G6: Population ciblée pour T3 | K6: Population traitée | O6: Couverture du Programme (%)
A7: Pays | B7: Région/Département | C7: District | G7: EAPréS | H7: EAS | I7: Adultes | J7: Total | K7: EAPréS | L7: EAS | M7: Adultes | N7: Total | O7: EAPréS | P7: EAS | Q7: Adultes | R7: Total
A9: =IF(COUNTRY_INFO!A9=0," ",COUNTRY_INFO!A9) -> COMORES | B9: =IF(COUNTRY_INFO!B9=0," ",COUNTRY_INFO!B9) -> NGAZIDJA | C9: =IF(COUNTRY_INFO!C9=0," ",COUNTRY_INFO!C9) -> Badjini-Est | D9: =IF(AND(COUNTRY_INFO!$T$9:$T$1000="T3 (ALB/MBD)",COUNTRY_INFO!$U$9:$U$1000="T3 (ALB/MBD)"), "T3 (ALB/MBD)", " ") ->  | J9: =SUM(G9:I9) -> 0 | N9: =SUM(K9:M9) -> 0 | O9: =IF(G9<>0, IF(K9/G9*100=0, "-", K9/G9*100), " ") -> 
A10: =IF(COUNTRY_INFO!A10=0," ",COUNTRY_INFO!A10) -> COMORES | B10: =IF(COUNTRY_INFO!B10=0," ",COUNTRY_INFO!B10) -> NGAZIDJA | C10: =IF(COUNTRY_INFO!C10=0," ",COUNTRY_INFO!C10) -> Badjini-Ouest | D10: =IF(AND(COUNTRY_INFO!$T$9:$T$1000="T3 (ALB/MBD)",COUNTRY_INFO!$U$9:$U$1000="T3 (ALB/MBD)"), "T3 (ALB/MBD)", " ") ->  | J10: =SUM(G10:I10) -> 0 | N10: =SUM(K10:M10) -> 0 | O10: =IF(G10<>0, IF(K10/G10*100=0, "-", K10/G10*100), " ") ->  | P10: =IF(H10<>0, IF(L10/H10*100=0, "-", L10/H10*100), " ") ->  | Q10: =IF(I10<>0, IF(M10/I10*100=0, "-", M10/I10*100), " ") ->  | R10: =IF(J10<>0, IF(N10/J10*100=0, "-", N10/J10*100), " ") -> 
A11: =IF(COUNTRY_INFO!A11=0," ",COUNTRY_INFO!A11) -> COMORES | B11: =IF(COUNTRY_INFO!B11=0," ",COUNTRY_INFO!B11) -> NGAZIDJA | C11: =IF(COUNTRY_INFO!C11=0," ",COUNTRY_INFO!C11) -> Centre | D11: =IF(AND(COUNTRY_INFO!$T$9:$T$1000="T3 (ALB/MBD)",COUNTRY_INFO!$U$9:$U$1000="T3 (ALB/MBD)"), "T3 (ALB/MBD)", " ") ->  | J11: 0 | N11: 0
A12: =IF(COUNTRY_INFO!A12=0," ",COUNTRY_INFO!A12) -> COMORES | B12: =IF(COUNTRY_INFO!B12=0," ",COUNTRY_INFO!B12) -> NGAZIDJA | C12: =IF(COUNTRY_INFO!C12=0," ",COUNTRY_INFO!C12) -> Hamahamet-Mboinkou | D12: =IF(AND(COUNTRY_INFO!$T$9:$T$1000="T3 (ALB/MBD)",COUNTRY_INFO!$U$9:$U$1000="T3 (ALB/MBD)"), "T3 (ALB/MBD)", " ") ->  | J12: 0 | N12: 0
A13: =IF(COUNTRY_INFO!A13=0," ",COUNTRY_INFO!A13) -> COMORES | B13: =IF(COUNTRY_INFO!B13=0," ",COUNTRY_INFO!B13) -> NGAZIDJA | C13: =IF(COUNTRY_INFO!C13=0," ",COUNTRY_INFO!C13) -> Hambou | D13: =IF(AND(COUNTRY_INFO!$T$9:$T$1000="T3 (ALB/MBD)",COUNTRY_INFO!$U$9:$U$1000="T3 (ALB/MBD)"), "T3 (ALB/MBD)", " ") ->  | J13: 0 | N13: 0
A14: =IF(COUNTRY_INFO!A14=0," ",COUNTRY_INFO!A14) -> COMORES | B14: =IF(COUNTRY_INFO!B14=0," ",COUNTRY_INFO!B14) -> NGAZIDJA | C14: =IF(COUNTRY_INFO!C14=0," ",COUNTRY_INFO!C14) -> Mitsamiouli-Mboudé | D14: =IF(AND(COUNTRY_INFO!$T$9:$T$1000="T3 (ALB/MBD)",COUNTRY_INFO!$U$9:$U$1000="T3 (ALB/MBD)"), "T3 (ALB/MBD)", " ") ->  | J14: 0 | N14: 0
A15: =IF(COUNTRY_INFO!A15=0," ",COUNTRY_INFO!A15) -> COMORES | B15: =IF(COUNTRY_INFO!B15=0," ",COUNTRY_INFO!B15) -> NGAZIDJA | C15: =IF(COUNTRY_INFO!C15=0," ",COUNTRY_INFO!C15) -> Oichili-Dimani | D15: =IF(AND(COUNTRY_INFO!$T$9:$T$1000="T3 (ALB/MBD)",COUNTRY_INFO!$U$9:$U$1000="T3 (ALB/MBD)"), "T3 (ALB/MBD)", " ") ->  | J15: 0 | N15: 0
A16: =IF(COUNTRY_INFO!A16=0," ",COUNTRY_INFO!A16) -> COMORES | B16: =IF(COUNTRY_INFO!B16=0," ",COUNTRY_INFO!B16) -> NDZUWANI | C16: =IF(COUNTRY_INFO!C16=0," ",COUNTRY_INFO!C16) -> Domoni | D16: =IF(AND(COUNTRY_INFO!$T$9:$T$1000="T3 (ALB/MBD)",COUNTRY_INFO!$U$9:$U$1000="T3 (ALB/MBD)"), "T3 (ALB/MBD)", " ") ->  | J16: 0 | N16: 0
A17: =IF(COUNTRY_INFO!A17=0," ",COUNTRY_INFO!A17) -> COMORES | B17: =IF(COUNTRY_INFO!B17=0," ",COUNTRY_INFO!B17) -> NDZUWANI | C17: =IF(COUNTRY_INFO!C17=0," ",COUNTRY_INFO!C17) -> Mremani | D17: =IF(AND(COUNTRY_INFO!$T$9:$T$1000="T3 (ALB/MBD)",COUNTRY_INFO!$U$9:$U$1000="T3 (ALB/MBD)"), "T3 (ALB/MBD)", " ") ->  | J17: 0 | N17: 0
A18: =IF(COUNTRY_INFO!A18=0," ",COUNTRY_INFO!A18) -> COMORES | B18: =IF(COUNTRY_INFO!B18=0," ",COUNTRY_INFO!B18) -> NDZUWANI | C18: =IF(COUNTRY_INFO!C18=0," ",COUNTRY_INFO!C18) -> Mutsamudu | D18: =IF(AND(COUNTRY_INFO!$T$9:$T$1000="T3 (ALB/MBD)",COUNTRY_INFO!$U$9:$U$1000="T3 (ALB/MBD)"), "T3 (ALB/MBD)", " ") ->  | J18: 0 | N18: 0
A19: =IF(COUNTRY_INFO!A19=0," ",COUNTRY_INFO!A19) -> COMORES | B19: =IF(COUNTRY_INFO!B19=0," ",COUNTRY_INFO!B19) -> NDZUWANI | C19: =IF(COUNTRY_INFO!C19=0," ",COUNTRY_INFO!C19) -> Ouani | D19: =IF(AND(COUNTRY_INFO!$T$9:$T$1000="T3 (ALB/MBD)",COUNTRY_INFO!$U$9:$U$1000="T3 (ALB/MBD)"), "T3 (ALB/MBD)", " ") ->  | J19: 0 | N19: 0
A20: =IF(COUNTRY_INFO!A20=0," ",COUNTRY_INFO!A20) -> COMORES | B20: =IF(COUNTRY_INFO!B20=0," ",COUNTRY_INFO!B20) -> NDZUWANI | C20: =IF(COUNTRY_INFO!C20=0," ",COUNTRY_INFO!C20) -> Pomoni | D20: =IF(AND(COUNTRY_INFO!$T$9:$T$1000="T3 (ALB/MBD)",COUNTRY_INFO!$U$9:$U$1000="T3 (ALB/MBD)"), "T3 (ALB/MBD)", " ") ->  | J20: 0 | N20: 0
A21: =IF(COUNTRY_INFO!A21=0," ",COUNTRY_INFO!A21) -> COMORES | B21: =IF(COUNTRY_INFO!B21=0," ",COUNTRY_INFO!B21) -> NDZUWANI | C21: =IF(COUNTRY_INFO!C21=0," ",COUNTRY_INFO!C21) -> Sima | D21: =IF(AND(COUNTRY_INFO!$T$9:$T$1000="T3 (ALB/MBD)",COUNTRY_INFO!$U$9:$U$1000="T3 (ALB/MBD)"), "T3 (ALB/MBD)", " ") ->  | J21: 0 | N21: 0
A22: =IF(COUNTRY_INFO!A22=0," ",COUNTRY_INFO!A22) -> COMORES | B22: =IF(COUNTRY_INFO!B22=0," ",COUNTRY_INFO!B22) -> NDZUWANI | C22: =IF(COUNTRY_INFO!C22=0," ",COUNTRY_INFO!C22) -> Tsembehou | D22: =IF(AND(COUNTRY_INFO!$T$9:$T$1000="T3 (ALB/MBD)",COUNTRY_INFO!$U$9:$U$1000="T3 (ALB/MBD)"), "T3 (ALB/MBD)", " ") ->  | J22: 0 | N22: 0
A23: =IF(COUNTRY_INFO!A23=0," ",COUNTRY_INFO!A23) -> COMORES | B23: =IF(COUNTRY_INFO!B23=0," ",COUNTRY_INFO!B23) -> MWALI | C23: =IF(COUNTRY_INFO!C23=0," ",COUNTRY_INFO!C23) -> Djando | D23: =IF(AND(COUNTRY_INFO!$T$9:$T$1000="T3 (ALB/MBD)",COUNTRY_INFO!$U$9:$U$1000="T3 (ALB/MBD)"), "T3 (ALB/MBD)", " ") ->  | J23: 0 | N23: 0
A24: =IF(COUNTRY_INFO!A24=0," ",COUNTRY_INFO!A24) -> COMORES | B24: =IF(COUNTRY_INFO!B24=0," ",COUNTRY_INFO!B24) -> MWALI | C24: =IF(COUNTRY_INFO!C24=0," ",COUNTRY_INFO!C24) -> Fomboni | D24: =IF(AND(COUNTRY_INFO!$T$9:$T$1000="T3 (ALB/MBD)",COUNTRY_INFO!$U$9:$U$1000="T3 (ALB/MBD)"), "T3 (ALB/MBD)", " ") ->  | J24: 0 | N24: 0
A25: =IF(COUNTRY_INFO!A25=0," ",COUNTRY_INFO!A25) -> COMORES | B25: =IF(COUNTRY_INFO!B25=0," ",COUNTRY_INFO!B25) -> MWALI | C25: =IF(COUNTRY_INFO!C25=0," ",COUNTRY_INFO!C25) -> Nioumachoua | D25: =IF(AND(COUNTRY_INFO!$T$9:$T$1000="T3 (ALB/MBD)",COUNTRY_INFO!$U$9:$U$1000="T3 (ALB/MBD)"), "T3 (ALB/MBD)", " ") ->  | J25: 0 | N25: 0

Sheet DISTRICT
A1: Nombre d'individus traités
A2: Structure administrative, population traitée par groupe d'âge et sexe
A4: TOTAL | D4: =SUM(D$9:D$1000) -> 788813 | E4: =SUM(E$9:E$1000) -> 264484 | F4: =SUM(F$9:F$1000) -> 238375 | G4: =SUM(G$9:G$1000) -> 502859 | H4: =SUM(H$9:H$1000) -> 502859 | I4: =IF(D4>0, IF(H4/D4*100<>0, H4/D4*100, "-"),0) -> 63.7488226 | J4: =SUM(J$9:J$1000) -> 0 | K4: =SUM(K$9:K$1000) -> 0 | L4: =SUM(L$9:L$1000) -> 0 | M4: =SUM(M$9:M$1000) -> 0 | N4: =SUM(N$9:N$1000) -> 0 | O4: =IF(J4>0, IF(N4/J4*100<>0, N4/J4*100, "-"),0) -> 0 | P4: =SUM(P$9:P$1000) -> 231998 | Q4: =SUM(Q$9:Q$1000) -> 0 | R4: =SUM(R$9:R$1000) -> 0 | S4: =SUM(S$9:S$1000) -> 502859 | T4: =SUM(T$9:T$1000) -> 54344.75258 | V4: 111332.0412 | X4: =SUM(X$9:X$1000) -> 165676.7938 | Y4: =IF(P4>0, IF(X4/P4*100<>0, X4/P4*100, "-"),0) -> 71.41302676 | Z4: =SUM(Z$9:Z$1000) -> 0 | AA4: 0 | AB4: 0 | AC4: 0 | AD4: 0 | AF4: 0 | AH4: 0 | AI4: =IF(Z4>0, IF(AH4/Z4*100<>0, AH4/Z4*100, "-"),0) -> 0
A6: Structure administrative du pays | D6: Population nécessitant la CP pour FL | E6: Population traitée pour la filariose lymphatique | J6: Population nécessitant la CP pour ONCHO | K6: Population traitée pour l'onchocercose | P6: Population nécessitant la CP pour STH | Q6: Population traitée pour les géohelminthiases | Z6: Population nécessitant la CP pour SCH | AA6: Population traitée pour la schistosomiase | AP6: =SUM(AP9:AP1000) -> 41016 | AQ6: 66735 | AR6: 196889 | AS6: 484173 | AT6: =SUM(AT9:AT1000) -> 788813 | AU6: =COUNTIF(AU9:AU1000,"Y") -> 17 | AV6: =SUM(AV9:AV1000) -> 62209.36082 | AW6: 124418.7216 | AX6: 316230.9175 | AY6: =SUM(AY9:AY1000) -> 502859 | AZ6: 62209.36082 | BA6: 124418.7216 | BB6: 316230.9175 | BC6: 502859 | BD6: =IF(AT6<>0,BC6/AT6,0) -> 0.637488226
A7: Pays | B7: Région/Département | C7: District | E7: Masculine | F7: Féminine | G7: Total traité | H7: Total traité ayant besoin de CP | I7: (%) | K7: Masculine | L7: Féminine | M7: Total traité | N7: Total traité ayant besoin de CP | O7: (%) | Q7: Masculine | R7: Féminine | S7: Total traité | T7: EAPréS traité ayant besoin de CP | U7: EAPréS (%) | V7: EAS traité ayant besoin de CP | W7: EAS (%) | X7: Total traité ayant besoin de CP | Y7: (%) | AA7: Masculine | AB7: Féminine | AC7: Total traité | AD7: EAS traité ayant besoin de CP | AE7: EAS (%) | AF7: Adultes traité ayant besoin de CP | AG7: Adultes (%) | AH7: Total traité ayant besoin de CP | AI7: (%) | AK7: LF | AL7: ONCHO | AM7: STH | AN7: SCH-SAC | AO7: SCH_Adults | AP7: <1 | AQ7: PreSAC | AR7: SAC | AS7: Adults | AT7: Total | AU7: Dis | AV7: PreSAC | AW7: SAC | AX7: Adults | AY7: Total | AZ7: PreSAC | BA7: SAC | BB7: Adults | BC7: Total | BD7: Coverage
A9: =IF(COUNTRY_INFO!A9=0," ",COUNTRY_INFO!A9) -> COMORES | B9: =IF(COUNTRY_INFO!B9=0," ",COUNTRY_INFO!B9) -> NGAZIDJA | C9: =IF(COUNTRY_INFO!C9=0," ",COUNTRY_INFO!C9) -> Badjini-Est | D9: =COUNTRY_INFO!L9 -> 31655 | E9: 12241 | F9: 11780 | G9: =MAX('MDA1'!M9,'MDA2'!M9) -> 24021 | H9: =IF(AND(COUNTRY_INFO!H9>0,COUNTRY_INFO!H9<4),IF(D9>MAX('MDA1'!M9,'MDA2'!M9),MAX('MDA1'!M9,'MDA2'!M9),D9),0) -> 24021 | I9: =IF(AND(COUNTRY_INFO!H9>0,COUNTRY_INFO!H9<4), IF(G9/D9*100<>0, IF(G9/D9*100>100,100,G9/D9*100), "-"),0) -> 75.88374664 | J9: =COUNTRY_INFO!M9 -> Non requis | M9: =MAX('MDA1'!M9,MAX('MDA3'!I9,'MDA3'!L9)+MAX('MDA3'!J9,'MDA3'!M9)) -> 0 | N9: =IF(AND(COUNTRY_INFO!I9>0,COUNTRY_INFO!I9<4),IF(J9>MAX('MDA1'!M9,MAX('MDA3'!I9,'MDA3'!L9)+MAX('MDA3'!J9,'MDA3'!M9)),MAX('MDA1'!M9,MAX('MDA3'!I9,'MDA3'!L9)+MAX('MDA3'!J9,'MDA3'!M9)),J9),0) -> 0 | O9: =IF(AND(COUNTRY_INFO!I9>0,COUNTRY_INFO!I9<4), IF(M9/J9*100<>0, IF(M9/J9*100>100,100,M9/J9*100), "-"),0) -> 0 | P9: =COUNTRY_INFO!N9 -> 10579 | S9: =SUM(MAX('MDA2'!J9, 'T1'!L9, MAX(T3_R1!K9, T3_R2!K9)), MAX('MDA1'!K9, 'MDA2'!K9, 'T1'!M9, MAX(T3_R1!L9, T3_R2!L9)), MAX('MDA1'!L9, 'MDA2'!L9, 'T1'!N9, MAX(T3_R1!M9, T3_R2!M9))) -> 24021 | T9: =IF(AND(COUNTRY_INFO!J9>1,COUNTRY_INFO!J9<4),IF(COUNTRY_INFO!E9>MAX('MDA2'!J9,'T1'!L9,MAX(T3_R1!K9,T3_R2!K9)),MAX('MDA2'!J9,'T1'!L9,MAX(T3_R1!K9,T3_R2!K9)),COUNTRY_INFO!E9),0) -> 2678 | U9: =IF(AND(COUNTRY_INFO!J9>1,COUNTRY_INFO!J9<4), IF(T9/COUNTRY_INFO!E9*100<>0, IF(T9/COUNTRY_INFO!E9*100>100,100,T9/COUNTRY_INFO!E9*100), "-"),0) -> 100 | V9: =IF(AND(COUNTRY_INFO!J9>1,COUNTRY_INFO!J9<4),IF(COUNTRY_INFO!F9>MAX('MDA1'!K9,'MDA2'!K9,'T1'!M9,MAX(T3_R1!L9,T3_R2!L9)),MAX('MDA1'!K9,'MDA2'!K9,'T1'!M9,MAX(T3_R1!L9,T3_R2!L9)),COUNTRY_INFO!F9),0) -> 5943.340206 | W9: =IF(AND(COUNTRY_INFO!J9>1,COUNTRY_INFO!J9<4), IF(V9/COUNTRY_INFO!F9*100<>0, IF(V9/COUNTRY_INFO!F9*100>100,100,V9/COUNTRY_INFO!F9*100), "-"),0) -> 75.22263266 | X9: =SUM(T9,V9) -> 8621.340206 | Y9: =IF(AND(COUNTRY_INFO!J9>1,COUNTRY_INFO!J9<4), IF(S9/P9*100<>0, IF(X9/P9*100>100,100,X9/P9*100), "-"),0) -> 81.49485023 | Z9: =COUNTRY_INFO!O9 -> Non requis | AC9: =MAX('T1'!L9,'T2'!J9)+MAX('T1'!M9,'T2'!K9)+MAX('T1'!N9,'T2'!L9) -> 0 | AD9: =IF(COUNTRY_INFO!K9=1,IF(COUNTRY_INFO!F9*0.33>MAX('T1'!M9,'T2'!K9),MAX('T1'!M9,'T2'!K9),COUNTRY_INFO!F9*0.33),IF(COUNTRY_INFO!K9=2,IF(COUNTRY_INFO!F9*0.5>MAX('T1'!M9,'T2'!K9),MAX('T1'!M9,'T2'!K9),COUNTRY_INFO!F9*0.5),IF(COUNTRY_INFO!K9=3,IF(COUNTRY_INFO!F9>MAX('T1'!M9,'T2'!K9),MAX('T1'!M9,'T2'!K9),COUNTRY_INFO!F9),0))) -> 0 | AE9: =IF(AND(COUNTRY_INFO!K9>0,COUNTRY_INFO!K9<4),IF(Z9>0,IF(COUNTRY_INFO!K9=1, AD9/(COUNTRY_INFO!F9*0.33)*100, IF(COUNTRY_INFO!K9=2, AD9/(COUNTRY_INFO!F9*0.5)*100, IF(COUNTRY_INFO!K9=3, AD9/COUNTRY_INFO!F9*100))),"-"),0) -> 0 | AF9: =IF(COUNTRY_INFO!K9=2,IF(COUNTRY_INFO!G9*0.2>MAX('T1'!N9,'T2'!L9),MAX('T1'!N9,'T2'!L9),COUNTRY_INFO!G9*0.2),IF(COUNTRY_INFO!K9=3,IF(COUNTRY_INFO!G9>MAX('T1'!N9,'T2'!L9),MAX('T1'!N9,'T2'!L9),COUNTRY_INFO!G9),0)) -> 0 | AG9: =IF(AND(COUNTRY_INFO!K9>0,COUNTRY_INFO!K9<4),IF(Z9>0,IF(COUNTRY_INFO!K9=1, 0, IF(COUNTRY_INFO!K9=2, AF9/(COUNTRY_INFO!G9*0.2)*100, IF(COUNTRY_INFO!K9=3, AF9/COUNTRY_INFO!G9*100))),"-"),0) -> 0 | AH9: =SUM(AD9,AF9) -> 0 | AI9: =IF(AND(COUNTRY_INFO!K9>0,COUNTRY_INFO!K9<4), IF(AC9/Z9*100<>0, IF(AH9/Z9*100>100,100,AH9/Z9*100), "-"),0) -> 0 | AK9: =IF(AND(D9<>0, D9<>"Inconnu",D9<>"Interrompu",D9<>"Non requis"),D9/COUNTRY_INFO!D9, 0) -> 1 | AL9: =IF(AND(J9<>0,J9<>"Inconnu",J9<>"Interrompu",J9<>"Non requis"),J9/COUNTRY_INFO!D9, 0) -> 0 | AM9: =IF(AND(P9<>0,P9<>"Inconnu",P9<>"Non requis"),P9/(COUNTRY_INFO!E9+COUNTRY_INFO!F9), 0) -> 1 | AN9: =IF(AND(Z9<>0,Z9<>"Inconnu",Z9<>"Non requis"),IF(COUNTRY_INFO!K9=1,1,IF(COUNTRY_INFO!K9=2,0.5*COUNTRY_INFO!F9/(0.5*COUNTRY_INFO!F9+0.2*COUNTRY_INFO!G9),IF(COUNTRY_INFO!K9=3,COUNTRY_INFO!F9/(COUNTRY_INFO!F9+COUNTRY_INFO!G9)))),0) -> 0 | AO9: =IF(AND(Z9<>0,Z9<>"Inconnu",Z9<>"Non requis"),IF(COUNTRY_INFO!K9=1,0,IF(COUNTRY_INFO!K9=2,0.2*COUNTRY_INFO!G9/(0.5*COUNTRY_INFO!F9+0.2*COUNTRY_INFO!G9),IF(COUNTRY_INFO!K9=3,COUNTRY_INFO!G9/(COUNTRY_INFO!F9+COUNTRY_INFO!G9)))),0) -> 0 | AP9: =MAX(COUNTRY_INFO!D9*AK9*PROFILE!$G$7,COUNTRY_INFO!D9*AL9*PROFILE!$G$7) -> 1645.968664 | AQ9: =MAX(COUNTRY_INFO!D9*AK9*PROFILE!$G$8,COUNTRY_INFO!D9*AL9*PROFILE!$G$8,COUNTRY_INFO!D9*AM9*PROFILE!$G$8) -> 2678.069993 | AR9: =MAX(COUNTRY_INFO!D9*AK9*PROFILE!$G$9,COUNTRY_INFO!D9*AL9*PROFILE!$G$9,COUNTRY_INFO!D9*AM9*PROFILE!$G$9,IF(AND(DISTRICT!Z9<>"Inconnu",Z9<>"Non requis"),COUNTRY_INFO!O9*DISTRICT!AN9,0)) -> 7901.139174 | AS9: =MAX(COUNTRY_INFO!D9*AK9*PROFILE!$G$10,COUNTRY_INFO!D9*AL9*PROFILE!$G$10,IF(AND(DISTRICT!Z9<>"Inconnu",Z9<>"Non requis"),COUNTRY_INFO!O9*DISTRICT!AO9,0)) -> 19429.82217 | AT9: =SUM(AP9:AS9) -> 31655 | AU9: =IF(COUNTIFS(AK9:AN9,">0")=0,0, IF(COUNTIFS(AK9:AN9,">0")<=IF(AND(OR(D9>=0,D9="Non requis",D9="Inconnu",D9="Interrompu"),D9>0,H9>0),1,0)+IF(AND(OR(J9>=0,J9="Non requis",J9="Inconnu",J9="Interrompu"),J9>0,N9>0),1,0)+IF(AND(OR(P9>=0,P9="Non requis",P9="Inconnu"),P9>0,X9>0),1,0)+IF(AND(OR(Z9>=0,Z9="Non requis",Z9="Inconnu"),Z9>0,AH9>0),1,0),"Y",0)) -> Y | AV9: =MAX('MDA2'!J9,'T1'!L9,'T2'!J9,T3_R1!K9,T3_R2!K9) -> 2971.670103 | AW9: =MAX('MDA1'!K9,'MDA2'!K9,'MDA3'!I9,'MDA3'!L9,'T1'!M9,'T2'!K9,T3_R1!L9,T3_R2!L9) -> 5943.340206 | AX9: =MAX('MDA1'!L9,'MDA2'!L9,'MDA3'!J9,'MDA3'!M9,'T1'!N9,'T2'!L9,T3_R1!M9,T3_R2!M9) -> 15105.98969 | AY9: =SUM(AV9:AX9) -> 24021 | AZ9: =MAX('MDA2'!J9,T9) -> 2971.670103 | BA9: =MAX('MDA1'!K9,'MDA2'!K9,'MDA3'!I9,'MDA3'!L9,V9,AD9) -> 5943.340206 | BB9: =MAX('MDA1'!L9,'MDA2'!L9,'MDA3'!J9,'MDA3'!M9,AF9) -> 15105.98969 | BC9: =IF(AT9<SUM(AZ9:BB9), AT9,SUM(AZ9:BB9)) -> 24021 | BD9: =IF(AT9<>0,BC9/AT9*100,0) -> 75.88374664
A10: =IF(COUNTRY_INFO!A10=0," ",COUNTRY_INFO!A10) -> COMORES | B10: =IF(COUNTRY_INFO!B10=0," ",COUNTRY_INFO!B10) -> NGAZIDJA | C10: =IF(COUNTRY_INFO!C10=0," ",COUNTRY_INFO!C10) -> Badjini-Ouest | D10: =COUNTRY_INFO!L10 -> 29398 | E10: 7329 | F10: 6765 | G10: =MAX('MDA1'!M10,'MDA2'!M10) -> 14094 | H10: =IF(AND(COUNTRY_INFO!H10>0,COUNTRY_INFO!H10<4),IF(D10>MAX('MDA1'!M10,'MDA2'!M10),MAX('MDA1'!M10,'MDA2'!M10),D10),0) -> 14094 | I10: =IF(AND(COUNTRY_INFO!H10>0,COUNTRY_INFO!H10<4), IF(G10/D10*100<>0, IF(G10/D10*100>100,100,G10/D10*100), "-"),0) -> 47.94203687 | J10: =COUNTRY_INFO!M10 -> Non requis | M10: =MAX('MDA1'!M10,MAX('MDA3'!I10,'MDA3'!L10)+MAX('MDA3'!J10,'MDA3'!M10)) -> 0 | N10: =IF(AND(COUNTRY_INFO!I10>0,COUNTRY_INFO!I10<4),IF(J10>MAX('MDA1'!M10,MAX('MDA3'!I10,'MDA3'!L10)+MAX('MDA3'!J10,'MDA3'!M10)),MAX('MDA1'!M10,MAX('MDA3'!I10,'MDA3'!L10)+MAX('MDA3'!J10,'MDA3'!M10)),J10),0) -> 0 | O10: =IF(AND(COUNTRY_INFO!I10>0,COUNTRY_INFO!I10<4), IF(M10/J10*100<>0, IF(M10/J10*100>100,100,M10/J10*100), "-"),0) -> 0 | P10: =COUNTRY_INFO!N10 -> 0 | S10: =SUM(MAX('MDA2'!J10, 'T1'!L10, MAX(T3_R1!K10, T3_R2!K10)), MAX('MDA1'!K10, 'MDA2'!K10, 'T1'!M10, MAX(T3_R1!L10, T3_R2!L10)), MAX('MDA1'!L10, 'MDA2'!L10, 'T1'!N10, MAX(T3_R1!M10, T3_R2!M10))) -> 14094 | T10: =IF(AND(COUNTRY_INFO!J10>1,COUNTRY_INFO!J10<4),IF(COUNTRY_INFO!E10>MAX('MDA2'!J10,'T1'!L10,MAX(T3_R1!K10,T3_R2!K10)),MAX('MDA2'!J10,'T1'!L10,MAX(T3_R1!K10,T3_R2!K10)),COUNTRY_INFO!E10),0) -> 0 | U10: =IF(AND(COUNTRY_INFO!J10>1,COUNTRY_INFO!J10<4), IF(T10/COUNTRY_INFO!E10*100<>0, IF(T10/COUNTRY_INFO!E10*100>100,100,T10/COUNTRY_INFO!E10*100), "-"),0) -> 0 | V10: =IF(AND(COUNTRY_INFO!J10>1,COUNTRY_INFO!J10<4),IF(COUNTRY_INFO!F10>MAX('MDA1'!K10,'MDA2'!K10,'T1'!M10,MAX(T3_R1!L10,T3_R2!L10)),MAX('MDA1'!K10,'MDA2'!K10,'T1'!M10,MAX(T3_R1!L10,T3_R2!L10)),COUNTRY_INFO!F10),0) -> 0 | W10: =IF(AND(COUNTRY_INFO!J10>1,COUNTRY_INFO!J10<4), IF(V10/COUNTRY_INFO!F10*100<>0, IF(V10/COUNTRY_INFO!F10*100>100,100,V10/COUNTRY_INFO!F10*100), "-"),0) -> 0 | X10: =SUM(T10,V10) -> 0 | Y10: =IF(AND(COUNTRY_INFO!J10>1,COUNTRY_INFO!J10<4), IF(S10/P10*100<>0, IF(X10/P10*100>100,100,X10/P10*100), "-"),0) -> 0 | Z10: =COUNTRY_INFO!O10 -> Non requis | AC10: =MAX('T1'!L10,'T2'!J10)+MAX('T1'!M10,'T2'!K10)+MAX('T1'!N10,'T2'!L10) -> 0 | AD10: =IF(COUNTRY_INFO!K10=1,IF(COUNTRY_INFO!F10*0.33>MAX('T1'!M10,'T2'!K10),MAX('T1'!M10,'T2'!K10),COUNTRY_INFO!F10*0.33),IF(COUNTRY_INFO!K10=2,IF(COUNTRY_INFO!F10*0.5>MAX('T1'!M10,'T2'!K10),MAX('T1'!M10,'T2'!K10),COUNTRY_INFO!F10*0.5),IF(COUNTRY_INFO!K10=3,IF(COUNTRY_INFO!F10>MAX('T1'!M10,'T2'!K10),MAX('T1'!M10,'T2'!K10),COUNTRY_INFO!F10),0))) -> 0 | AE10: =IF(AND(COUNTRY_INFO!K10>0,COUNTRY_INFO!K10<4),IF(Z10>0,IF(COUNTRY_INFO!K10=1, AD10/(COUNTRY_INFO!F10*0.33)*100, IF(COUNTRY_INFO!K10=2, AD10/(COUNTRY_INFO!F10*0.5)*100, IF(COUNTRY_INFO!K10=3, AD10/COUNTRY_INFO!F10*100))),"-"),0) -> 0 | AF10: =IF(COUNTRY_INFO!K10=2,IF(COUNTRY_INFO!G10*0.2>MAX('T1'!N10,'T2'!L10),MAX('T1'!N10,'T2'!L10),COUNTRY_INFO!G10*0.2),IF(COUNTRY_INFO!K10=3,IF(COUNTRY_INFO!G10>MAX('T1'!N10,'T2'!L10),MAX('T1'!N10,'T2'!L10),COUNTRY_INFO!G10),0)) -> 0 | AG10: =IF(AND(COUNTRY_INFO!K10>0,COUNTRY_INFO!K10<4),IF(Z10>0,IF(COUNTRY_INFO!K10=1, 0, IF(COUNTRY_INFO!K10=2, AF10/(COUNTRY_INFO!G10*0.2)*100, IF(COUNTRY_INFO!K10=3, AF10/COUNTRY_INFO!G10*100))),"-"),0) -> 0 | AH10: =SUM(AD10,AF10) -> 0 | AI10: =IF(AND(COUNTRY_INFO!K10>0,COUNTRY_INFO!K10<4), IF(AC10/Z10*100<>0, IF(AH10/Z10*100>100,100,AH10/Z10*100), "-"),0) -> 0 | AK10: =IF(AND(D10<>0, D10<>"Inconnu",D10<>"Interrompu",D10<>"Non requis"),D10/COUNTRY_INFO!D10, 0) -> 1 | AL10: =IF(AND(J10<>0,J10<>"Inconnu",J10<>"Interrompu",J10<>"Non requis"),J10/COUNTRY_INFO!D10, 0) -> 0 | AM10: =IF(AND(P10<>0,P10<>"Inconnu",P10<>"Non requis"),P10/(COUNTRY_INFO!E10+COUNTRY_INFO!F10), 0) -> 0 | AN10: =IF(AND(Z10<>0,Z10<>"Inconnu",Z10<>"Non requis"),IF(COUNTRY_INFO!K10=1,1,IF(COUNTRY_INFO!K10=2,0.5*COUNTRY_INFO!F10/(0.5*COUNTRY_INFO!F10+0.2*COUNTRY_INFO!G10),IF(COUNTRY_INFO!K10=3,COUNTRY_INFO!F10/(COUNTRY_INFO!F10+COUNTRY_INFO!G10)))),0) -> 0 | AO10: =IF(AND(Z10<>0,Z10<>"Inconnu",Z10<>"Non requis"),IF(COUNTRY_INFO!K10=1,0,IF(COUNTRY_INFO!K10=2,0.2*COUNTRY_INFO!G10/(0.5*COUNTRY_INFO!F10+0.2*COUNTRY_INFO!G10),IF(COUNTRY_INFO!K10=3,COUNTRY_INFO!G10/(COUNTRY_INFO!F10+COUNTRY_INFO!G10)))),0) -> 0 | AP10: =MAX(COUNTRY_INFO!D10*AK10*PROFILE!$G$7,COUNTRY_INFO!D10*AL10*PROFILE!$G$7) -> 1528.611177 | AQ10: =MAX(COUNTRY_INFO!D10*AK10*PROFILE!$G$8,COUNTRY_INFO!D10*AL10*PROFILE!$G$8,COUNTRY_INFO!D10*AM10*PROFILE!$G$8) -> 2487.123729 | AR10: =MAX(COUNTRY_INFO!D10*AK10*PROFILE!$G$9,COUNTRY_INFO!D10*AL10*PROFILE!$G$9,COUNTRY_INFO!D10*AM10*PROFILE!$G$9,IF(AND(DISTRICT!Z10<>"Inconnu",Z10<>"Non requis"),COUNTRY_INFO!O10*DISTRICT!AN10,0)) -> 7337.788325 | AS10: =MAX(COUNTRY_INFO!D10*AK10*PROFILE!$G$10,COUNTRY_INFO!D10*AL10*PROFILE!$G$10,IF(AND(DISTRICT!Z10<>"Inconnu",Z10<>"Non requis"),COUNTRY_INFO!O10*DISTRICT!AO10,0)) -> 18044.47677 | AT10: =SUM(AP10:AS10) -> 29398 | AU10: Y | AV10: =MAX('MDA2'!J10,'T1'!L10,'T2'!J10,T3_R1!K10,T3_R2!K10) -> 1743.587629 | AW10: =MAX('MDA1'!K10,'MDA2'!K10,'MDA3'!I10,'MDA3'!L10,'T1'!M10,'T2'!K10,T3_R1!L10,T3_R2!L10) -> 3487.175258 | AX10: =MAX('MDA1'!L10,'MDA2'!L10,'MDA3'!J10,'MDA3'!M10,'T1'!N10,'T2'!L10,T3_R1!M10,T3_R2!M10) -> 8863.237113 | AY10: =SUM(AV10:AX10) -> 14094 | AZ10: =MAX('MDA2'!J10,T10) -> 1743.587629 | BA10: =MAX('MDA1'!K10,'MDA2'!K10,'MDA3'!I10,'MDA3'!L10,V10,AD10) -> 3487.175258 | BB10: =MAX('MDA1'!L10,'MDA2'!L10,'MDA3'!J10,'MDA3'!M10,AF10) -> 8863.237113 | BC10: 14094 | BD10: 47.94203687
A11: =IF(COUNTRY_INFO!A11=0," ",COUNTRY_INFO!A11) -> COMORES | B11: =IF(COUNTRY_INFO!B11=0," ",COUNTRY_INFO!B11) -> NGAZIDJA | C11: =IF(COUNTRY_INFO!C11=0," ",COUNTRY_INFO!C11) -> Centre | D11: =COUNTRY_INFO!L11 -> 185059 | E11: 55074 | F11: 50357 | G11: =MAX('MDA1'!M11,'MDA2'!M11) -> 105431 | H11: =IF(AND(COUNTRY_INFO!H11>0,COUNTRY_INFO!H11<4),IF(D11>MAX('MDA1'!M11,'MDA2'!M11),MAX('MDA1'!M11,'MDA2'!M11),D11),0) -> 105431 | I11: =IF(AND(COUNTRY_INFO!H11>0,COUNTRY_INFO!H11<4), IF(G11/D11*100<>0, IF(G11/D11*100>100,100,G11/D11*100), "-"),0) -> 56.97156042 | J11: =COUNTRY_INFO!M11 -> Non requis | M11: =MAX('MDA1'!M11,MAX('MDA3'!I11,'MDA3'!L11)+MAX('MDA3'!J11,'MDA3'!M11)) -> 0 | N11: =IF(AND(COUNTRY_INFO!I11>0,COUNTRY_INFO!I11<4),IF(J11>MAX('MDA1'!M11,MAX('MDA3'!I11,'MDA3'!L11)+MAX('MDA3'!J11,'MDA3'!M11)),MAX('MDA1'!M11,MAX('MDA3'!I11,'MDA3'!L11)+MAX('MDA3'!J11,'MDA3'!M11)),J11),0) -> 0 | O11: =IF(AND(COUNTRY_INFO!I11>0,COUNTRY_INFO!I11<4), IF(M11/J11*100<>0, IF(M11/J11*100>100,100,M11/J11*100), "-"),0) -> 0 | P11: =COUNTRY_INFO!N11 -> 61847 | S11: =SUM(MAX('MDA2'!J11, 'T1'!L11, MAX(T3_R1!K11, T3_R2!K11)), MAX('MDA1'!K11, 'MDA2'!K11, 'T1'!M11, MAX(T3_R1!L11, T3_R2!L11)), MAX('MDA1'!L11, 'MDA2'!L11, 'T1'!N11, MAX(T3_R1!M11, T3_R2!M11))) -> 105431 | T11: =IF(AND(COUNTRY_INFO!J11>1,COUNTRY_INFO!J11<4),IF(COUNTRY_INFO!E11>MAX('MDA2'!J11,'T1'!L11,MAX(T3_R1!K11,T3_R2!K11)),MAX('MDA2'!J11,'T1'!L11,MAX(T3_R1!K11,T3_R2!K11)),COUNTRY_INFO!E11),0) -> 13043.01031 | U11: =IF(AND(COUNTRY_INFO!J11>1,COUNTRY_INFO!J11<4), IF(T11/COUNTRY_INFO!E11*100<>0, IF(T11/COUNTRY_INFO!E11*100>100,100,T11/COUNTRY_INFO!E11*100), "-"),0) -> 83.30997898 | V11: =IF(AND(COUNTRY_INFO!J11>1,COUNTRY_INFO!J11<4),IF(COUNTRY_INFO!F11>MAX('MDA1'!K11,'MDA2'!K11,'T1'!M11,MAX(T3_R1!L11,T3_R2!L11)),MAX('MDA1'!K11,'MDA2'!K11,'T1'!M11,MAX(T3_R1!L11,T3_R2!L11)),COUNTRY_INFO!F11),0) -> 26086.02062 | W11: =IF(AND(COUNTRY_INFO!J11>1,COUNTRY_INFO!J11<4), IF(V11/COUNTRY_INFO!F11*100<>0, IF(V11/COUNTRY_INFO!F11*100>100,100,V11/COUNTRY_INFO!F11*100), "-"),0) -> 56.47424957 | X11: 39129.03093 | Y11: =IF(AND(COUNTRY_INFO!J11>1,COUNTRY_INFO!J11<4), IF(S11/P11*100<>0, IF(X11/P11*100>100,100,X11/P11*100), "-"),0) -> 63.26746799 | Z11: =COUNTRY_INFO!O11 -> Non requis | AC11: =MAX('T1'!L11,'T2'!J11)+MAX('T1'!M11,'T2'!K11)+MAX('T1'!N11,'T2'!L11) -> 0 | AD11: =IF(COUNTRY_INFO!K11=1,IF(COUNTRY_INFO!F11*0.33>MAX('T1'!M11,'T2'!K11),MAX('T1'!M11,'T2'!K11),COUNTRY_INFO!F11*0.33),IF(COUNTRY_INFO!K11=2,IF(COUNTRY_INFO!F11*0.5>MAX('T1'!M11,'T2'!K11),MAX('T1'!M11,'T2'!K11),COUNTRY_INFO!F11*0.5),IF(COUNTRY_INFO!K11=3,IF(COUNTRY_INFO!F11>MAX('T1'!M11,'T2'!K11),MAX('T1'!M11,'T2'!K11),COUNTRY_INFO!F11),0))) -> 0 | AE11: =IF(AND(COUNTRY_INFO!K11>0,COUNTRY_INFO!K11<4),IF(Z11>0,IF(COUNTRY_INFO!K11=1, AD11/(COUNTRY_INFO!F11*0.33)*100, IF(COUNTRY_INFO!K11=2, AD11/(COUNTRY_INFO!F11*0.5)*100, IF(COUNTRY_INFO!K11=3, AD11/COUNTRY_INFO!F11*100))),"-"),0) -> 0 | AF11: =IF(COUNTRY_INFO!K11=2,IF(COUNTRY_INFO!G11*0.2>MAX('T1'!N11,'T2'!L11),MAX('T1'!N11,'T2'!L11),COUNTRY_INFO!G11*0.2),IF(COUNTRY_INFO!K11=3,IF(COUNTRY_INFO!G11>MAX('T1'!N11,'T2'!L11),MAX('T1'!N11,'T2'!L11),COUNTRY_INFO!G11),0)) -> 0 | AG11: =IF(AND(COUNTRY_INFO!K11>0,COUNTRY_INFO!K11<4),IF(Z11>0,IF(COUNTRY_INFO!K11=1, 0, IF(COUNTRY_INFO!K11=2, AF11/(COUNTRY_INFO!G11*0.2)*100, IF(COUNTRY_INFO!K11=3, AF11/COUNTRY_INFO!G11*100))),"-"),0) -> 0 | AH11: 0 | AI11: =IF(AND(COUNTRY_INFO!K11>0,COUNTRY_INFO!K11<4), IF(AC11/Z11*100<>0, IF(AH11/Z11*100>100,100,AH11/Z11*100), "-"),0) -> 0 | AK11: =IF(AND(D11<>0, D11<>"Inconnu",D11<>"Interrompu",D11<>"Non requis"),D11/COUNTRY_INFO!D11, 0) -> 1 | AL11: =IF(AND(J11<>0,J11<>"Inconnu",J11<>"Interrompu",J11<>"Non requis"),J11/COUNTRY_INFO!D11, 0) -> 0 | AM11: =IF(AND(P11<>0,P11<>"Inconnu",P11<>"Non requis"),P11/(COUNTRY_INFO!E11+COUNTRY_INFO!F11), 0) -> 1 | AN11: =IF(AND(Z11<>0,Z11<>"Inconnu",Z11<>"Non requis"),IF(COUNTRY_INFO!K11=1,1,IF(COUNTRY_INFO!K11=2,0.5*COUNTRY_INFO!F11/(0.5*COUNTRY_INFO!F11+0.2*COUNTRY_INFO!G11),IF(COUNTRY_INFO!K11=3,COUNTRY_INFO!F11/(COUNTRY_INFO!F11+COUNTRY_INFO!G11)))),0) -> 0 | AO11: =IF(AND(Z11<>0,Z11<>"Inconnu",Z11<>"Non requis"),IF(COUNTRY_INFO!K11=1,0,IF(COUNTRY_INFO!K11=2,0.2*COUNTRY_INFO!G11/(0.5*COUNTRY_INFO!F11+0.2*COUNTRY_INFO!G11),IF(COUNTRY_INFO!K11=3,COUNTRY_INFO!G11/(COUNTRY_INFO!F11+COUNTRY_INFO!G11)))),0) -> 0 | AP11: =MAX(COUNTRY_INFO!D11*AK11*PROFILE!$G$7,COUNTRY_INFO!D11*AL11*PROFILE!$G$7) -> 9622.53404 | AQ11: =MAX(COUNTRY_INFO!D11*AK11*PROFILE!$G$8,COUNTRY_INFO!D11*AL11*PROFILE!$G$8,COUNTRY_INFO!D11*AM11*PROFILE!$G$8) -> 15656.32459 | AR11: =MAX(COUNTRY_INFO!D11*AK11*PROFILE!$G$9,COUNTRY_INFO!D11*AL11*PROFILE!$G$9,COUNTRY_INFO!D11*AM11*PROFILE!$G$9,IF(AND(DISTRICT!Z11<>"Inconnu",Z11<>"Non requis"),COUNTRY_INFO!O11*DISTRICT!AN11,0)) -> 46191.02557 | AS11: =MAX(COUNTRY_INFO!D11*AK11*PROFILE!$G$10,COUNTRY_INFO!D11*AL11*PROFILE!$G$10,IF(AND(DISTRICT!Z11<>"Inconnu",Z11<>"Non requis"),COUNTRY_INFO!O11*DISTRICT!AO11,0)) -> 113589.1158 | AT11: 185059 | AU11: Y | AV11: =MAX('MDA2'!J11,'T1'!L11,'T2'!J11,T3_R1!K11,T3_R2!K11) -> 13043.01031 | AW11: =MAX('MDA1'!K11,'MDA2'!K11,'MDA3'!I11,'MDA3'!L11,'T1'!M11,'T2'!K11,T3_R1!L11,T3_R2!L11) -> 26086.02062 | AX11: =MAX('MDA1'!L11,'MDA2'!L11,'MDA3'!J11,'MDA3'!M11,'T1'!N11,'T2'!L11,T3_R1!M11,T3_R2!M11) -> 66301.96907 | AY11: 105431 | AZ11: =MAX('MDA2'!J11,T11) -> 13043.01031 | BA11: =MAX('MDA1'!K11,'MDA2'!K11,'MDA3'!I11,'MDA3'!L11,V11,AD11) -> 26086.02062 | BB11: =MAX('MDA1'!L11,'MDA2'!L11,'MDA3'!J11,'MDA3'!M11,AF11) -> 66301.96907 | BC11: 105431 | BD11: 56.97156042
A12: =IF(COUNTRY_INFO!A12=0," ",COUNTRY_INFO!A12) -> COMORES | B12: =IF(COUNTRY_INFO!B12=0," ",COUNTRY_INFO!B12) -> NGAZIDJA | C12: =IF(COUNTRY_INFO!C12=0," ",COUNTRY_INFO!C12) -> Hamahamet-Mboinkou | D12: =COUNTRY_INFO!L12 -> 37980 | E12: 10172 | F12: 10027 | G12: =MAX('MDA1'!M12,'MDA2'!M12) -> 20199 | H12: =IF(AND(COUNTRY_INFO!H12>0,COUNTRY_INFO!H12<4),IF(D12>MAX('MDA1'!M12,'MDA2'!M12),MAX('MDA1'!M12,'MDA2'!M12),D12),0) -> 20199 | I12: =IF(AND(COUNTRY_INFO!H12>0,COUNTRY_INFO!H12<4), IF(G12/D12*100<>0, IF(G12/D12*100>100,100,G12/D12*100), "-"),0) -> 53.18325434 | J12: =COUNTRY_INFO!M12 -> Non requis | M12: =MAX('MDA1'!M12,MAX('MDA3'!I12,'MDA3'!L12)+MAX('MDA3'!J12,'MDA3'!M12)) -> 0 | N12: =IF(AND(COUNTRY_INFO!I12>0,COUNTRY_INFO!I12<4),IF(J12>MAX('MDA1'!M12,MAX('MDA3'!I12,'MDA3'!L12)+MAX('MDA3'!J12,'MDA3'!M12)),MAX('MDA1'!M12,MAX('MDA3'!I12,'MDA3'!L12)+MAX('MDA3'!J12,'MDA3'!M12)),J12),0) -> 0 | O12: =IF(AND(COUNTRY_INFO!I12>0,COUNTRY_INFO!I12<4), IF(M12/J12*100<>0, IF(M12/J12*100>100,100,M12/J12*100), "-"),0) -> 0 | P12: =COUNTRY_INFO!N12 -> 0 | S12: =SUM(MAX('MDA2'!J12, 'T1'!L12, MAX(T3_R1!K12, T3_R2!K12)), MAX('MDA1'!K12, 'MDA2'!K12, 'T1'!M12, MAX(T3_R1!L12, T3_R2!L12)), MAX('MDA1'!L12, 'MDA2'!L12, 'T1'!N12, MAX(T3_R1!M12, T3_R2!M12))) -> 20199 | T12: =IF(AND(COUNTRY_INFO!J12>1,COUNTRY_INFO!J12<4),IF(COUNTRY_INFO!E12>MAX('MDA2'!J12,'T1'!L12,MAX(T3_R1!K12,T3_R2!K12)),MAX('MDA2'!J12,'T1'!L12,MAX(T3_R1!K12,T3_R2!K12)),COUNTRY_INFO!E12),0) -> 0 | U12: =IF(AND(COUNTRY_INFO!J12>1,COUNTRY_INFO!J12<4), IF(T12/COUNTRY_INFO!E12*100<>0, IF(T12/COUNTRY_INFO!E12*100>100,100,T12/COUNTRY_INFO!E12*100), "-"),0) -> 0 | V12: =IF(AND(COUNTRY_INFO!J12>1,COUNTRY_INFO!J12<4),IF(COUNTRY_INFO!F12>MAX('MDA1'!K12,'MDA2'!K12,'T1'!M12,MAX(T3_R1!L12,T3_R2!L12)),MAX('MDA1'!K12,'MDA2'!K12,'T1'!M12,MAX(T3_R1!L12,T3_R2!L12)),COUNTRY_INFO!F12),0) -> 0 | W12: =IF(AND(COUNTRY_INFO!J12>1,COUNTRY_INFO!J12<4), IF(V12/COUNTRY_INFO!F12*100<>0, IF(V12/COUNTRY_INFO!F12*100>100,100,V12/COUNTRY_INFO!F12*100), "-"),0) -> 0 | X12: 0 | Y12: =IF(AND(COUNTRY_INFO!J12>1,COUNTRY_INFO!J12<4), IF(S12/P12*100<>0, IF(X12/P12*100>100,100,X12/P12*100), "-"),0) -> 0 | Z12: =COUNTRY_INFO!O12 -> Non requis | AC12: =MAX('T1'!L12,'T2'!J12)+MAX('T1'!M12,'T2'!K12)+MAX('T1'!N12,'T2'!L12) -> 0 | AD12: =IF(COUNTRY_INFO!K12=1,IF(COUNTRY_INFO!F12*0.33>MAX('T1'!M12,'T2'!K12),MAX('T1'!M12,'T2'!K12),COUNTRY_INFO!F12*0.33),IF(COUNTRY_INFO!K12=2,IF(COUNTRY_INFO!F12*0.5>MAX('T1'!M12,'T2'!K12),MAX('T1'!M12,'T2'!K12),COUNTRY_INFO!F12*0.5),IF(COUNTRY_INFO!K12=3,IF(COUNTRY_INFO!F12>MAX('T1'!M12,'T2'!K12),MAX('T1'!M12,'T2'!K12),COUNTRY_INFO!F12),0))) -> 0 | AE12: =IF(AND(COUNTRY_INFO!K12>0,COUNTRY_INFO!K12<4),IF(Z12>0,IF(COUNTRY_INFO!K12=1, AD12/(COUNTRY_INFO!F12*0.33)*100, IF(COUNTRY_INFO!K12=2, AD12/(COUNTRY_INFO!F12*0.5)*100, IF(COUNTRY_INFO!K12=3, AD12/COUNTRY_INFO!F12*100))),"-"),0) -> 0 | AF12: =IF(COUNTRY_INFO!K12=2,IF(COUNTRY_INFO!G12*0.2>MAX('T1'!N12,'T2'!L12),MAX('T1'!N12,'T2'!L12),COUNTRY_INFO!G12*0.2),IF(COUNTRY_INFO!K12=3,IF(COUNTRY_INFO!G12>MAX('T1'!N12,'T2'!L12),MAX('T1'!N12,'T2'!L12),COUNTRY_INFO!G12),0)) -> 0 | AG12: =IF(AND(COUNTRY_INFO!K12>0,COUNTRY_INFO!K12<4),IF(Z12>0,IF(COUNTRY_INFO!K12=1, 0, IF(COUNTRY_INFO!K12=2, AF12/(COUNTRY_INFO!G12*0.2)*100, IF(COUNTRY_INFO!K12=3, AF12/COUNTRY_INFO!G12*100))),"-"),0) -> 0 | AH12: 0 | AI12: =IF(AND(COUNTRY_INFO!K12>0,COUNTRY_INFO!K12<4), IF(AC12/Z12*100<>0, IF(AH12/Z12*100>100,100,AH12/Z12*100), "-"),0) -> 0 | AK12: =IF(AND(D12<>0, D12<>"Inconnu",D12<>"Interrompu",D12<>"Non requis"),D12/COUNTRY_INFO!D12, 0) -> 1 | AL12: =IF(AND(J12<>0,J12<>"Inconnu",J12<>"Interrompu",J12<>"Non requis"),J12/COUNTRY_INFO!D12, 0) -> 0 | AM12: =IF(AND(P12<>0,P12<>"Inconnu",P12<>"Non requis"),P12/(COUNTRY_INFO!E12+COUNTRY_INFO!F12), 0) -> 0 | AN12: =IF(AND(Z12<>0,Z12<>"Inconnu",Z12<>"Non requis"),IF(COUNTRY_INFO!K12=1,1,IF(COUNTRY_INFO!K12=2,0.5*COUNTRY_INFO!F12/(0.5*COUNTRY_INFO!F12+0.2*COUNTRY_INFO!G12),IF(COUNTRY_INFO!K12=3,COUNTRY_INFO!F12/(COUNTRY_INFO!F12+COUNTRY_INFO!G12)))),0) -> 0 | AO12: =IF(AND(Z12<>0,Z12<>"Inconnu",Z12<>"Non requis"),IF(COUNTRY_INFO!K12=1,0,IF(COUNTRY_INFO!K12=2,0.2*COUNTRY_INFO!G12/(0.5*COUNTRY_INFO!F12+0.2*COUNTRY_INFO!G12),IF(COUNTRY_INFO!K12=3,COUNTRY_INFO!G12/(COUNTRY_INFO!F12+COUNTRY_INFO!G12)))),0) -> 0 | AP12: =MAX(COUNTRY_INFO!D12*AK12*PROFILE!$G$7,COUNTRY_INFO!D12*AL12*PROFILE!$G$7) -> 1974.850414 | AQ12: =MAX(COUNTRY_INFO!D12*AK12*PROFILE!$G$8,COUNTRY_INFO!D12*AL12*PROFILE!$G$8,COUNTRY_INFO!D12*AM12*PROFILE!$G$8) -> 3213.17638 | AR12: =MAX(COUNTRY_INFO!D12*AK12*PROFILE!$G$9,COUNTRY_INFO!D12*AL12*PROFILE!$G$9,COUNTRY_INFO!D12*AM12*PROFILE!$G$9,IF(AND(DISTRICT!Z12<>"Inconnu",Z12<>"Non requis"),COUNTRY_INFO!O12*DISTRICT!AN12,0)) -> 9479.869399 | AS12: =MAX(COUNTRY_INFO!D12*AK12*PROFILE!$G$10,COUNTRY_INFO!D12*AL12*PROFILE!$G$10,IF(AND(DISTRICT!Z12<>"Inconnu",Z12<>"Non requis"),COUNTRY_INFO!O12*DISTRICT!AO12,0)) -> 23312.10381 | AT12: 37980 | AU12: Y | AV12: =MAX('MDA2'!J12,'T1'!L12,'T2'!J12,T3_R1!K12,T3_R2!K12) -> 2498.845361 | AW12: =MAX('MDA1'!K12,'MDA2'!K12,'MDA3'!I12,'MDA3'!L12,'T1'!M12,'T2'!K12,T3_R1!L12,T3_R2!L12) -> 4997.690722 | AX12: =MAX('MDA1'!L12,'MDA2'!L12,'MDA3'!J12,'MDA3'!M12,'T1'!N12,'T2'!L12,T3_R1!M12,T3_R2!M12) -> 12702.46392 | AY12: 20199 | AZ12: =MAX('MDA2'!J12,T12) -> 2498.845361 | BA12: =MAX('MDA1'!K12,'MDA2'!K12,'MDA3'!I12,'MDA3'!L12,V12,AD12) -> 4997.690722 | BB12: =MAX('MDA1'!L12,'MDA2'!L12,'MDA3'!J12,'MDA3'!M12,AF12) -> 12702.46392 | BC12: 20199 | BD12: 53.18325434
A13: =IF(COUNTRY_INFO!A13=0," ",COUNTRY_INFO!A13) -> COMORES | B13: =IF(COUNTRY_INFO!B13=0," ",COUNTRY_INFO!B13) -> NGAZIDJA | C13: =IF(COUNTRY_INFO!C13=0," ",COUNTRY_INFO!C13) -> Hambou | D13: =COUNTRY_INFO!L13 -> 23603 | E13: 7544 | F13: 6923 | G13: =MAX('MDA1'!M13,'MDA2'!M13) -> 14467 | H13: =IF(AND(COUNTRY_INFO!H13>0,COUNTRY_INFO!H13<4),IF(D13>MAX('MDA1'!M13,'MDA2'!M13),MAX('MDA1'!M13,'MDA2'!M13),D13),0) -> 14467 | I13: =IF(AND(COUNTRY_INFO!H13>0,COUNTRY_INFO!H13<4), IF(G13/D13*100<>0, IF(G13/D13*100>100,100,G13/D13*100), "-"),0) -> 61.29305597 | J13: =COUNTRY_INFO!M13 -> Non requis | M13: =MAX('MDA1'!M13,MAX('MDA3'!I13,'MDA3'!L13)+MAX('MDA3'!J13,'MDA3'!M13)) -> 0 | N13: =IF(AND(COUNTRY_INFO!I13>0,COUNTRY_INFO!I13<4),IF(J13>MAX('MDA1'!M13,MAX('MDA3'!I13,'MDA3'!L13)+MAX('MDA3'!J13,'MDA3'!M13)),MAX('MDA1'!M13,MAX('MDA3'!I13,'MDA3'!L13)+MAX('MDA3'!J13,'MDA3'!M13)),J13),0) -> 0 | O13: =IF(AND(COUNTRY_INFO!I13>0,COUNTRY_INFO!I13<4), IF(M13/J13*100<>0, IF(M13/J13*100>100,100,M13/J13*100), "-"),0) -> 0 | P13: =COUNTRY_INFO!N13 -> 7888 | S13: =SUM(MAX('MDA2'!J13, 'T1'!L13, MAX(T3_R1!K13, T3_R2!K13)), MAX('MDA1'!K13, 'MDA2'!K13, 'T1'!M13, MAX(T3_R1!L13, T3_R2!L13)), MAX('MDA1'!L13, 'MDA2'!L13, 'T1'!N13, MAX(T3_R1!M13, T3_R2!M13))) -> 14467 | T13: =IF(AND(COUNTRY_INFO!J13>1,COUNTRY_INFO!J13<4),IF(COUNTRY_INFO!E13>MAX('MDA2'!J13,'T1'!L13,MAX(T3_R1!K13,T3_R2!K13)),MAX('MDA2'!J13,'T1'!L13,MAX(T3_R1!K13,T3_R2!K13)),COUNTRY_INFO!E13),0) -> 1789.731959 | U13: =IF(AND(COUNTRY_INFO!J13>1,COUNTRY_INFO!J13<4), IF(T13/COUNTRY_INFO!E13*100<>0, IF(T13/COUNTRY_INFO!E13*100>100,100,T13/COUNTRY_INFO!E13*100), "-"),0) -> 89.62102948 | V13: =IF(AND(COUNTRY_INFO!J13>1,COUNTRY_INFO!J13<4),IF(COUNTRY_INFO!F13>MAX('MDA1'!K13,'MDA2'!K13,'T1'!M13,MAX(T3_R1!L13,T3_R2!L13)),MAX('MDA1'!K13,'MDA2'!K13,'T1'!M13,MAX(T3_R1!L13,T3_R2!L13)),COUNTRY_INFO!F13),0) -> 3579.463918 | W13: =IF(AND(COUNTRY_INFO!J13>1,COUNTRY_INFO!J13<4), IF(V13/COUNTRY_INFO!F13*100<>0, IF(V13/COUNTRY_INFO!F13*100>100,100,V13/COUNTRY_INFO!F13*100), "-"),0) -> 60.76156709 | X13: 5369.195876 | Y13: =IF(AND(COUNTRY_INFO!J13>1,COUNTRY_INFO!J13<4), IF(S13/P13*100<>0, IF(X13/P13*100>100,100,X13/P13*100), "-"),0) -> 68.06789904 | Z13: =COUNTRY_INFO!O13 -> Non requis | AC13: =MAX('T1'!L13,'T2'!J13)+MAX('T1'!M13,'T2'!K13)+MAX('T1'!N13,'T2'!L13) -> 0 | AD13: =IF(COUNTRY_INFO!K13=1,IF(COUNTRY_INFO!F13*0.33>MAX('T1'!M13,'T2'!K13),MAX('T1'!M13,'T2'!K13),COUNTRY_INFO!F13*0.33),IF(COUNTRY_INFO!K13=2,IF(COUNTRY_INFO!F13*0.5>MAX('T1'!M13,'T2'!K13),MAX('T1'!M13,'T2'!K13),COUNTRY_INFO!F13*0.5),IF(COUNTRY_INFO!K13=3,IF(COUNTRY_INFO!F13>MAX('T1'!M13,'T2'!K13),MAX('T1'!M13,'T2'!K13),COUNTRY_INFO!F13),0))) -> 0 | AE13: =IF(AND(COUNTRY_INFO!K13>0,COUNTRY_INFO!K13<4),IF(Z13>0,IF(COUNTRY_INFO!K13=1, AD13/(COUNTRY_INFO!F13*0.33)*100, IF(COUNTRY_INFO!K13=2, AD13/(COUNTRY_INFO!F13*0.5)*100, IF(COUNTRY_INFO!K13=3, AD13/COUNTRY_INFO!F13*100))),"-"),0) -> 0 | AF13: =IF(COUNTRY_INFO!K13=2,IF(COUNTRY_INFO!G13*0.2>MAX('T1'!N13,'T2'!L13),MAX('T1'!N13,'T2'!L13),COUNTRY_INFO!G13*0.2),IF(COUNTRY_INFO!K13=3,IF(COUNTRY_INFO!G13>MAX('T1'!N13,'T2'!L13),MAX('T1'!N13,'T2'!L13),COUNTRY_INFO!G13),0)) -> 0 | AG13: =IF(AND(COUNTRY_INFO!K13>0,COUNTRY_INFO!K13<4),IF(Z13>0,IF(COUNTRY_INFO!K13=1, 0, IF(COUNTRY_INFO!K13=2, AF13/(COUNTRY_INFO!G13*0.2)*100, IF(COUNTRY_INFO!K13=3, AF13/COUNTRY_INFO!G13*100))),"-"),0) -> 0 | AH13: 0 | AI13: =IF(AND(COUNTRY_INFO!K13>0,COUNTRY_INFO!K13<4), IF(AC13/Z13*100<>0, IF(AH13/Z13*100>100,100,AH13/Z13*100), "-"),0) -> 0 | AK13: =IF(AND(D13<>0, D13<>"Inconnu",D13<>"Interrompu",D13<>"Non requis"),D13/COUNTRY_INFO!D13, 0) -> 1 | AL13: =IF(AND(J13<>0,J13<>"Inconnu",J13<>"Interrompu",J13<>"Non requis"),J13/COUNTRY_INFO!D13, 0) -> 0 | AM13: =IF(AND(P13<>0,P13<>"Inconnu",P13<>"Non requis"),P13/(COUNTRY_INFO!E13+COUNTRY_INFO!F13), 0) -> 1 | AN13: =IF(AND(Z13<>0,Z13<>"Inconnu",Z13<>"Non requis"),IF(COUNTRY_INFO!K13=1,1,IF(COUNTRY_INFO!K13=2,0.5*COUNTRY_INFO!F13/(0.5*COUNTRY_INFO!F13+0.2*COUNTRY_INFO!G13),IF(COUNTRY_INFO!K13=3,COUNTRY_INFO!F13/(COUNTRY_INFO!F13+COUNTRY_INFO!G13)))),0) -> 0 | AO13: =IF(AND(Z13<>0,Z13<>"Inconnu",Z13<>"Non requis"),IF(COUNTRY_INFO!K13=1,0,IF(COUNTRY_INFO!K13=2,0.2*COUNTRY_INFO!G13/(0.5*COUNTRY_INFO!F13+0.2*COUNTRY_INFO!G13),IF(COUNTRY_INFO!K13=3,COUNTRY_INFO!G13/(COUNTRY_INFO!F13+COUNTRY_INFO!G13)))),0) -> 0 | AP13: =MAX(COUNTRY_INFO!D13*AK13*PROFILE!$G$7,COUNTRY_INFO!D13*AL13*PROFILE!$G$7) -> 1227.287897 | AQ13: =MAX(COUNTRY_INFO!D13*AK13*PROFILE!$G$8,COUNTRY_INFO!D13*AL13*PROFILE!$G$8,COUNTRY_INFO!D13*AM13*PROFILE!$G$8) -> 1996.856295 | AR13: =MAX(COUNTRY_INFO!D13*AK13*PROFILE!$G$9,COUNTRY_INFO!D13*AL13*PROFILE!$G$9,COUNTRY_INFO!D13*AM13*PROFILE!$G$9,IF(AND(DISTRICT!Z13<>"Inconnu",Z13<>"Non requis"),COUNTRY_INFO!O13*DISTRICT!AN13,0)) -> 5891.346957 | AS13: =MAX(COUNTRY_INFO!D13*AK13*PROFILE!$G$10,COUNTRY_INFO!D13*AL13*PROFILE!$G$10,IF(AND(DISTRICT!Z13<>"Inconnu",Z13<>"Non requis"),COUNTRY_INFO!O13*DISTRICT!AO13,0)) -> 14487.50885 | AT13: 23603 | AU13: Y | AV13: =MAX('MDA2'!J13,'T1'!L13,'T2'!J13,T3_R1!K13,T3_R2!K13) -> 1789.731959 | AW13: =MAX('MDA1'!K13,'MDA2'!K13,'MDA3'!I13,'MDA3'!L13,'T1'!M13,'T2'!K13,T3_R1!L13,T3_R2!L13) -> 3579.463918 | AX13: =MAX('MDA1'!L13,'MDA2'!L13,'MDA3'!J13,'MDA3'!M13,'T1'!N13,'T2'!L13,T3_R1!M13,T3_R2!M13) -> 9097.804124 | AY13: 14467 | AZ13: =MAX('MDA2'!J13,T13) -> 1789.731959 | BA13: =MAX('MDA1'!K13,'MDA2'!K13,'MDA3'!I13,'MDA3'!L13,V13,AD13) -> 3579.463918 | BB13: =MAX('MDA1'!L13,'MDA2'!L13,'MDA3'!J13,'MDA3'!M13,AF13) -> 9097.804124 | BC13: 14467 | BD13: 61.29305597
A14: =IF(COUNTRY_INFO!A14=0," ",COUNTRY_INFO!A14) -> COMORES | B14: =IF(COUNTRY_INFO!B14=0," ",COUNTRY_INFO!B14) -> NGAZIDJA | C14: =IF(COUNTRY_INFO!C14=0," ",COUNTRY_INFO!C14) -> Mitsamiouli-Mboudé | D14: =COUNTRY_INFO!L14 -> 58200 | E14: 21660 | F14: 19852 | G14: =MAX('MDA1'!M14,'MDA2'!M14) -> 41512 | H14: =IF(AND(COUNTRY_INFO!H14>0,COUNTRY_INFO!H14<4),IF(D14>MAX('MDA1'!M14,'MDA2'!M14),MAX('MDA1'!M14,'MDA2'!M14),D14),0) -> 41512 | I14: =IF(AND(COUNTRY_INFO!H14>0,COUNTRY_INFO!H14<4), IF(G14/D14*100<>0, IF(G14/D14*100>100,100,G14/D14*100), "-"),0) -> 71.32646048 | J14: =COUNTRY_INFO!M14 -> Non requis | M14: =MAX('MDA1'!M14,MAX('MDA3'!I14,'MDA3'!L14)+MAX('MDA3'!J14,'MDA3'!M14)) -> 0 | N14: =IF(AND(COUNTRY_INFO!I14>0,COUNTRY_INFO!I14<4),IF(J14>MAX('MDA1'!M14,MAX('MDA3'!I14,'MDA3'!L14)+MAX('MDA3'!J14,'MDA3'!M14)),MAX('MDA1'!M14,MAX('MDA3'!I14,'MDA3'!L14)+MAX('MDA3'!J14,'MDA3'!M14)),J14),0) -> 0 | O14: =IF(AND(COUNTRY_INFO!I14>0,COUNTRY_INFO!I14<4), IF(M14/J14*100<>0, IF(M14/J14*100>100,100,M14/J14*100), "-"),0) -> 0 | P14: =COUNTRY_INFO!N14 -> 19451 | S14: =SUM(MAX('MDA2'!J14, 'T1'!L14, MAX(T3_R1!K14, T3_R2!K14)), MAX('MDA1'!K14, 'MDA2'!K14, 'T1'!M14, MAX(T3_R1!L14, T3_R2!L14)), MAX('MDA1'!L14, 'MDA2'!L14, 'T1'!N14, MAX(T3_R1!M14, T3_R2!M14))) -> 41512 | T14: =IF(AND(COUNTRY_INFO!J14>1,COUNTRY_INFO!J14<4),IF(COUNTRY_INFO!E14>MAX('MDA2'!J14,'T1'!L14,MAX(T3_R1!K14,T3_R2!K14)),MAX('MDA2'!J14,'T1'!L14,MAX(T3_R1!K14,T3_R2!K14)),COUNTRY_INFO!E14),0) -> 4924 | U14: =IF(AND(COUNTRY_INFO!J14>1,COUNTRY_INFO!J14<4), IF(T14/COUNTRY_INFO!E14*100<>0, IF(T14/COUNTRY_INFO!E14*100>100,100,T14/COUNTRY_INFO!E14*100), "-"),0) -> 100 | V14: =IF(AND(COUNTRY_INFO!J14>1,COUNTRY_INFO!J14<4),IF(COUNTRY_INFO!F14>MAX('MDA1'!K14,'MDA2'!K14,'T1'!M14,MAX(T3_R1!L14,T3_R2!L14)),MAX('MDA1'!K14,'MDA2'!K14,'T1'!M14,MAX(T3_R1!L14,T3_R2!L14)),COUNTRY_INFO!F14),0) -> 10271.01031 | W14: =IF(AND(COUNTRY_INFO!J14>1,COUNTRY_INFO!J14<4), IF(V14/COUNTRY_INFO!F14*100<>0, IF(V14/COUNTRY_INFO!F14*100>100,100,V14/COUNTRY_INFO!F14*100), "-"),0) -> 70.70290018 | X14: 15195.01031 | Y14: =IF(AND(COUNTRY_INFO!J14>1,COUNTRY_INFO!J14<4), IF(S14/P14*100<>0, IF(X14/P14*100>100,100,X14/P14*100), "-"),0) -> 78.1194299 | Z14: =COUNTRY_INFO!O14 -> Non requis | AC14: =MAX('T1'!L14,'T2'!J14)+MAX('T1'!M14,'T2'!K14)+MAX('T1'!N14,'T2'!L14) -> 0 | AD14: =IF(COUNTRY_INFO!K14=1,IF(COUNTRY_INFO!F14*0.33>MAX('T1'!M14,'T2'!K14),MAX('T1'!M14,'T2'!K14),COUNTRY_INFO!F14*0.33),IF(COUNTRY_INFO!K14=2,IF(COUNTRY_INFO!F14*0.5>MAX('T1'!M14,'T2'!K14),MAX('T1'!M14,'T2'!K14),COUNTRY_INFO!F14*0.5),IF(COUNTRY_INFO!K14=3,IF(COUNTRY_INFO!F14>MAX('T1'!M14,'T2'!K14),MAX('T1'!M14,'T2'!K14),COUNTRY_INFO!F14),0))) -> 0 | AE14: =IF(AND(COUNTRY_INFO!K14>0,COUNTRY_INFO!K14<4),IF(Z14>0,IF(COUNTRY_INFO!K14=1, AD14/(COUNTRY_INFO!F14*0.33)*100, IF(COUNTRY_INFO!K14=2, AD14/(COUNTRY_INFO!F14*0.5)*100, IF(COUNTRY_INFO!K14=3, AD14/COUNTRY_INFO!F14*100))),"-"),0) -> 0 | AF14: =IF(COUNTRY_INFO!K14=2,IF(COUNTRY_INFO!G14*0.2>MAX('T1'!N14,'T2'!L14),MAX('T1'!N14,'T2'!L14),COUNTRY_INFO!G14*0.2),IF(COUNTRY_INFO!K14=3,IF(COUNTRY_INFO!G14>MAX('T1'!N14,'T2'!L14),MAX('T1'!N14,'T2'!L14),COUNTRY_INFO!G14),0)) -> 0 | AG14: =IF(AND(COUNTRY_INFO!K14>0,COUNTRY_INFO!K14<4),IF(Z14>0,IF(COUNTRY_INFO!K14=1, 0, IF(COUNTRY_INFO!K14=2, AF14/(COUNTRY_INFO!G14*0.2)*100, IF(COUNTRY_INFO!K14=3, AF14/COUNTRY_INFO!G14*100))),"-"),0) -> 0 | AH14: 0 | AI14: =IF(AND(COUNTRY_INFO!K14>0,COUNTRY_INFO!K14<4), IF(AC14/Z14*100<>0, IF(AH14/Z14*100>100,100,AH14/Z14*100), "-"),0) -> 0 | AK14: =IF(AND(D14<>0, D14<>"Inconnu",D14<>"Interrompu",D14<>"Non requis"),D14/COUNTRY_INFO!D14, 0) -> 1 | AL14: =IF(AND(J14<>0,J14<>"Inconnu",J14<>"Interrompu",J14<>"Non requis"),J14/COUNTRY_INFO!D14, 0) -> 0 | AM14: =IF(AND(P14<>0,P14<>"Inconnu",P14<>"Non requis"),P14/(COUNTRY_INFO!E14+COUNTRY_INFO!F14), 0) -> 1 | AN14: =IF(AND(Z14<>0,Z14<>"Inconnu",Z14<>"Non requis"),IF(COUNTRY_INFO!K14=1,1,IF(COUNTRY_INFO!K14=2,0.5*COUNTRY_INFO!F14/(0.5*COUNTRY_INFO!F14+0.2*COUNTRY_INFO!G14),IF(COUNTRY_INFO!K14=3,COUNTRY_INFO!F14/(COUNTRY_INFO!F14+COUNTRY_INFO!G14)))),0) -> 0 | AO14: =IF(AND(Z14<>0,Z14<>"Inconnu",Z14<>"Non requis"),IF(COUNTRY_INFO!K14=1,0,IF(COUNTRY_INFO!K14=2,0.2*COUNTRY_INFO!G14/(0.5*COUNTRY_INFO!F14+0.2*COUNTRY_INFO!G14),IF(COUNTRY_INFO!K14=3,COUNTRY_INFO!G14/(COUNTRY_INFO!F14+COUNTRY_INFO!G14)))),0) -> 0 | AP14: =MAX(COUNTRY_INFO!D14*AK14*PROFILE!$G$7,COUNTRY_INFO!D14*AL14*PROFILE!$G$7) -> 3026.232073 | AQ14: =MAX(COUNTRY_INFO!D14*AK14*PROFILE!$G$8,COUNTRY_INFO!D14*AL14*PROFILE!$G$8,COUNTRY_INFO!D14*AM14*PROFILE!$G$8) -> 4923.824785 | AR14: =MAX(COUNTRY_INFO!D14*AK14*PROFILE!$G$9,COUNTRY_INFO!D14*AL14*PROFILE!$G$9,COUNTRY_INFO!D14*AM14*PROFILE!$G$9,IF(AND(DISTRICT!Z14<>"Inconnu",Z14<>"Non requis"),COUNTRY_INFO!O14*DISTRICT!AN14,0)) -> 14526.81409 | AS14: =MAX(COUNTRY_INFO!D14*AK14*PROFILE!$G$10,COUNTRY_INFO!D14*AL14*PROFILE!$G$10,IF(AND(DISTRICT!Z14<>"Inconnu",Z14<>"Non requis"),COUNTRY_INFO!O14*DISTRICT!AO14,0)) -> 35723.12906 | AT14: 58200 | AU14: Y | AV14: =MAX('MDA2'!J14,'T1'!L14,'T2'!J14,T3_R1!K14,T3_R2!K14) -> 5135.505155 | AW14: =MAX('MDA1'!K14,'MDA2'!K14,'MDA3'!I14,'MDA3'!L14,'T1'!M14,'T2'!K14,T3_R1!L14,T3_R2!L14) -> 10271.01031 | AX14: =MAX('MDA1'!L14,'MDA2'!L14,'MDA3'!J14,'MDA3'!M14,'T1'!N14,'T2'!L14,T3_R1!M14,T3_R2!M14) -> 26105.48454 | AY14: 41512 | AZ14: =MAX('MDA2'!J14,T14) -> 5135.505155 | BA14: =MAX('MDA1'!K14,'MDA2'!K14,'MDA3'!I14,'MDA3'!L14,V14,AD14) -> 10271.01031 | BB14: =MAX('MDA1'!L14,'MDA2'!L14,'MDA3'!J14,'MDA3'!M14,AF14) -> 26105.48454 | BC14: 41512 | BD14: 71.32646048
A15: =IF(COUNTRY_INFO!A15=0," ",COUNTRY_INFO!A15) -> COMORES | B15: =IF(COUNTRY_INFO!B15=0," ",COUNTRY_INFO!B15) -> NGAZIDJA | C15: =IF(COUNTRY_INFO!C15=0," ",COUNTRY_INFO!C15) -> Oichili-Dimani | D15: =COUNTRY_INFO!L15 -> 27252 | E15: 9561 | F15: 9038 | G15: =MAX('MDA1'!M15,'MDA2'!M15) -> 18599 | H15: =IF(AND(COUNTRY_INFO!H15>0,COUNTRY_INFO!H15<4),IF(D15>MAX('MDA1'!M15,'MDA2'!M15),MAX('MDA1'!M15,'MDA2'!M15),D15),0) -> 18599 | I15: =IF(AND(COUNTRY_INFO!H15>0,COUNTRY_INFO!H15<4), IF(G15/D15*100<>0, IF(G15/D15*100>100,100,G15/D15*100), "-"),0) -> 68.24820197 | J15: =COUNTRY_INFO!M15 -> Non requis | M15: =MAX('MDA1'!M15,MAX('MDA3'!I15,'MDA3'!L15)+MAX('MDA3'!J15,'MDA3'!M15)) -> 0 | N15: =IF(AND(COUNTRY_INFO!I15>0,COUNTRY_INFO!I15<4),IF(J15>MAX('MDA1'!M15,MAX('MDA3'!I15,'MDA3'!L15)+MAX('MDA3'!J15,'MDA3'!M15)),MAX('MDA1'!M15,MAX('MDA3'!I15,'MDA3'!L15)+MAX('MDA3'!J15,'MDA3'!M15)),J15),0) -> 0 | O15: =IF(AND(COUNTRY_INFO!I15>0,COUNTRY_INFO!I15<4), IF(M15/J15*100<>0, IF(M15/J15*100>100,100,M15/J15*100), "-"),0) -> 0 | P15: =COUNTRY_INFO!N15 -> 0 | S15: =SUM(MAX('MDA2'!J15, 'T1'!L15, MAX(T3_R1!K15, T3_R2!K15)), MAX('MDA1'!K15, 'MDA2'!K15, 'T1'!M15, MAX(T3_R1!L15, T3_R2!L15)), MAX('MDA1'!L15, 'MDA2'!L15, 'T1'!N15, MAX(T3_R1!M15, T3_R2!M15))) -> 18599 | T15: =IF(AND(COUNTRY_INFO!J15>1,COUNTRY_INFO!J15<4),IF(COUNTRY_INFO!E15>MAX('MDA2'!J15,'T1'!L15,MAX(T3_R1!K15,T3_R2!K15)),MAX('MDA2'!J15,'T1'!L15,MAX(T3_R1!K15,T3_R2!K15)),COUNTRY_INFO!E15),0) -> 0 | U15: =IF(AND(COUNTRY_INFO!J15>1,COUNTRY_INFO!J15<4), IF(T15/COUNTRY_INFO!E15*100<>0, IF(T15/COUNTRY_INFO!E15*100>100,100,T15/COUNTRY_INFO!E15*100), "-"),0) -> 0 | V15: =IF(AND(COUNTRY_INFO!J15>1,COUNTRY_INFO!J15<4),IF(COUNTRY_INFO!F15>MAX('MDA1'!K15,'MDA2'!K15,'T1'!M15,MAX(T3_R1!L15,T3_R2!L15)),MAX('MDA1'!K15,'MDA2'!K15,'T1'!M15,MAX(T3_R1!L15,T3_R2!L15)),COUNTRY_INFO!F15),0) -> 0 | W15: =IF(AND(COUNTRY_INFO!J15>1,COUNTRY_INFO!J15<4), IF(V15/COUNTRY_INFO!F15*100<>0, IF(V15/COUNTRY_INFO!F15*100>100,100,V15/COUNTRY_INFO!F15*100), "-"),0) -> 0 | X15: 0 | Y15: =IF(AND(COUNTRY_INFO!J15>1,COUNTRY_INFO!J15<4), IF(S15/P15*100<>0, IF(X15/P15*100>100,100,X15/P15*100), "-"),0) -> 0 | Z15: =COUNTRY_INFO!O15 -> Non requis | AC15: =MAX('T1'!L15,'T2'!J15)+MAX('T1'!M15,'T2'!K15)+MAX('T1'!N15,'T2'!L15) -> 0 | AD15: =IF(COUNTRY_INFO!K15=1,IF(COUNTRY_INFO!F15*0.33>MAX('T1'!M15,'T2'!K15),MAX('T1'!M15,'T2'!K15),COUNTRY_INFO!F15*0.33),IF(COUNTRY_INFO!K15=2,IF(COUNTRY_INFO!F15*0.5>MAX('T1'!M15,'T2'!K15),MAX('T1'!M15,'T2'!K15),COUNTRY_INFO!F15*0.5),IF(COUNTRY_INFO!K15=3,IF(COUNTRY_INFO!F15>MAX('T1'!M15,'T2'!K15),MAX('T1'!M15,'T2'!K15),COUNTRY_INFO!F15),0))) -> 0 | AE15: =IF(AND(COUNTRY_INFO!K15>0,COUNTRY_INFO!K15<4),IF(Z15>0,IF(COUNTRY_INFO!K15=1, AD15/(COUNTRY_INFO!F15*0.33)*100, IF(COUNTRY_INFO!K15=2, AD15/(COUNTRY_INFO!F15*0.5)*100, IF(COUNTRY_INFO!K15=3, AD15/COUNTRY_INFO!F15*100))),"-"),0) -> 0 | AF15: =IF(COUNTRY_INFO!K15=2,IF(COUNTRY_INFO!G15*0.2>MAX('T1'!N15,'T2'!L15),MAX('T1'!N15,'T2'!L15),COUNTRY_INFO!G15*0.2),IF(COUNTRY_INFO!K15=3,IF(COUNTRY_INFO!G15>MAX('T1'!N15,'T2'!L15),MAX('T1'!N15,'T2'!L15),COUNTRY_INFO!G15),0)) -> 0 | AG15: =IF(AND(COUNTRY_INFO!K15>0,COUNTRY_INFO!K15<4),IF(Z15>0,IF(COUNTRY_INFO!K15=1, 0, IF(COUNTRY_INFO!K15=2, AF15/(COUNTRY_INFO!G15*0.2)*100, IF(COUNTRY_INFO!K15=3, AF15/COUNTRY_INFO!G15*100))),"-"),0) -> 0 | AH15: 0 | AI15: =IF(AND(COUNTRY_INFO!K15>0,COUNTRY_INFO!K15<4), IF(AC15/Z15*100<>0, IF(AH15/Z15*100>100,100,AH15/Z15*100), "-"),0) -> 0 | AK15: =IF(AND(D15<>0, D15<>"Inconnu",D15<>"Interrompu",D15<>"Non requis"),D15/COUNTRY_INFO!D15, 0) -> 1 | AL15: =IF(AND(J15<>0,J15<>"Inconnu",J15<>"Interrompu",J15<>"Non requis"),J15/COUNTRY_INFO!D15, 0) -> 0 | AM15: =IF(AND(P15<>0,P15<>"Inconnu",P15<>"Non requis"),P15/(COUNTRY_INFO!E15+COUNTRY_INFO!F15), 0) -> 0 | AN15: =IF(AND(Z15<>0,Z15<>"Inconnu",Z15<>"Non requis"),IF(COUNTRY_INFO!K15=1,1,IF(COUNTRY_INFO!K15=2,0.5*COUNTRY_INFO!F15/(0.5*COUNTRY_INFO!F15+0.2*COUNTRY_INFO!G15),IF(COUNTRY_INFO!K15=3,COUNTRY_INFO!F15/(COUNTRY_INFO!F15+COUNTRY_INFO!G15)))),0) -> 0 | AO15: =IF(AND(Z15<>0,Z15<>"Inconnu",Z15<>"Non requis"),IF(COUNTRY_INFO!K15=1,0,IF(COUNTRY_INFO!K15=2,0.2*COUNTRY_INFO!G15/(0.5*COUNTRY_INFO!F15+0.2*COUNTRY_INFO!G15),IF(COUNTRY_INFO!K15=3,COUNTRY_INFO!G15/(COUNTRY_INFO!F15+COUNTRY_INFO!G15)))),0) -> 0 | AP15: =MAX(COUNTRY_INFO!D15*AK15*PROFILE!$G$7,COUNTRY_INFO!D15*AL15*PROFILE!$G$7) -> 1417.025368 | AQ15: =MAX(COUNTRY_INFO!D15*AK15*PROFILE!$G$8,COUNTRY_INFO!D15*AL15*PROFILE!$G$8,COUNTRY_INFO!D15*AM15*PROFILE!$G$8) -> 2305.568265 | AR15: =MAX(COUNTRY_INFO!D15*AK15*PROFILE!$G$9,COUNTRY_INFO!D15*AL15*PROFILE!$G$9,COUNTRY_INFO!D15*AM15*PROFILE!$G$9,IF(AND(DISTRICT!Z15<>"Inconnu",Z15<>"Non requis"),COUNTRY_INFO!O15*DISTRICT!AN15,0)) -> 6802.143256 | AS15: =MAX(COUNTRY_INFO!D15*AK15*PROFILE!$G$10,COUNTRY_INFO!D15*AL15*PROFILE!$G$10,IF(AND(DISTRICT!Z15<>"Inconnu",Z15<>"Non requis"),COUNTRY_INFO!O15*DISTRICT!AO15,0)) -> 16727.26311 | AT15: 27252 | AU15: Y | AV15: =MAX('MDA2'!J15,'T1'!L15,'T2'!J15,T3_R1!K15,T3_R2!K15) -> 2300.907216 | AW15: =MAX('MDA1'!K15,'MDA2'!K15,'MDA3'!I15,'MDA3'!L15,'T1'!M15,'T2'!K15,T3_R1!L15,T3_R2!L15) -> 4601.814433 | AX15: =MAX('MDA1'!L15,'MDA2'!L15,'MDA3'!J15,'MDA3'!M15,'T1'!N15,'T2'!L15,T3_R1!M15,T3_R2!M15) -> 11696.27835 | AY15: 18599 | AZ15: =MAX('MDA2'!J15,T15) -> 2300.907216 | BA15: =MAX('MDA1'!K15,'MDA2'!K15,'MDA3'!I15,'MDA3'!L15,V15,AD15) -> 4601.814433 | BB15: =MAX('MDA1'!L15,'MDA2'!L15,'MDA3'!J15,'MDA3'!M15,AF15) -> 11696.27835 | BC15: 18599 | BD15: 68.24820197
A16: =IF(COUNTRY_INFO!A16=0," ",COUNTRY_INFO!A16) -> COMORES | B16: =IF(COUNTRY_INFO!B16=0," ",COUNTRY_INFO!B16) -> NDZUWANI | C16: =IF(COUNTRY_INFO!C16=0," ",COUNTRY_INFO!C16) -> Domoni | D16: =COUNTRY_INFO!L16 -> 66470 | E16: 21144 | F16: 18673 | G16: =MAX('MDA1'!M16,'MDA2'!M16) -> 39817 | H16: =IF(AND(COUNTRY_INFO!H16>0,COUNTRY_INFO!H16<4),IF(D16>MAX('MDA1'!M16,'MDA2'!M16),MAX('MDA1'!M16,'MDA2'!M16),D16),0) -> 39817 | I16: =IF(AND(COUNTRY_INFO!H16>0,COUNTRY_INFO!H16<4), IF(G16/D16*100<>0, IF(G16/D16*100>100,100,G16/D16*100), "-"),0) -> 59.90221152 | J16: =COUNTRY_INFO!M16 -> Non requis | M16: =MAX('MDA1'!M16,MAX('MDA3'!I16,'MDA3'!L16)+MAX('MDA3'!J16,'MDA3'!M16)) -> 0 | N16: =IF(AND(COUNTRY_INFO!I16>0,COUNTRY_INFO!I16<4),IF(J16>MAX('MDA1'!M16,MAX('MDA3'!I16,'MDA3'!L16)+MAX('MDA3'!J16,'MDA3'!M16)),MAX('MDA1'!M16,MAX('MDA3'!I16,'MDA3'!L16)+MAX('MDA3'!J16,'MDA3'!M16)),J16),0) -> 0 | O16: =IF(AND(COUNTRY_INFO!I16>0,COUNTRY_INFO!I16<4), IF(M16/J16*100<>0, IF(M16/J16*100>100,100,M16/J16*100), "-"),0) -> 0 | P16: =COUNTRY_INFO!N16 -> 22214 | S16: =SUM(MAX('MDA2'!J16, 'T1'!L16, MAX(T3_R1!K16, T3_R2!K16)), MAX('MDA1'!K16, 'MDA2'!K16, 'T1'!M16, MAX(T3_R1!L16, T3_R2!L16)), MAX('MDA1'!L16, 'MDA2'!L16, 'T1'!N16, MAX(T3_R1!M16, T3_R2!M16))) -> 39817 | T16: =IF(AND(COUNTRY_INFO!J16>1,COUNTRY_INFO!J16<4),IF(COUNTRY_INFO!E16>MAX('MDA2'!J16,'T1'!L16,MAX(T3_R1!K16,T3_R2!K16)),MAX('MDA2'!J16,'T1'!L16,MAX(T3_R1!K16,T3_R2!K16)),COUNTRY_INFO!E16),0) -> 4925.814433 | U16: =IF(AND(COUNTRY_INFO!J16>1,COUNTRY_INFO!J16<4), IF(T16/COUNTRY_INFO!E16*100<>0, IF(T16/COUNTRY_INFO!E16*100>100,100,T16/COUNTRY_INFO!E16*100), "-"),0) -> 87.60118145 | V16: =IF(AND(COUNTRY_INFO!J16>1,COUNTRY_INFO!J16<4),IF(COUNTRY_INFO!F16>MAX('MDA1'!K16,'MDA2'!K16,'T1'!M16,MAX(T3_R1!L16,T3_R2!L16)),MAX('MDA1'!K16,'MDA2'!K16,'T1'!M16,MAX(T3_R1!L16,T3_R2!L16)),COUNTRY_INFO!F16),0) -> 9851.628866 | W16: =IF(AND(COUNTRY_INFO!J16>1,COUNTRY_INFO!J16<4), IF(V16/COUNTRY_INFO!F16*100<>0, IF(V16/COUNTRY_INFO!F16*100>100,100,V16/COUNTRY_INFO!F16*100), "-"),0) -> 59.37935547 | X16: 14777.4433 | Y16: =IF(AND(COUNTRY_INFO!J16>1,COUNTRY_INFO!J16<4), IF(S16/P16*100<>0, IF(X16/P16*100>100,100,X16/P16*100), "-"),0) -> 66.5231084 | Z16: =COUNTRY_INFO!O16 -> Non requis | AC16: =MAX('T1'!L16,'T2'!J16)+MAX('T1'!M16,'T2'!K16)+MAX('T1'!N16,'T2'!L16) -> 0 | AD16: =IF(COUNTRY_INFO!K16=1,IF(COUNTRY_INFO!F16*0.33>MAX('T1'!M16,'T2'!K16),MAX('T1'!M16,'T2'!K16),COUNTRY_INFO!F16*0.33),IF(COUNTRY_INFO!K16=2,IF(COUNTRY_INFO!F16*0.5>MAX('T1'!M16,'T2'!K16),MAX('T1'!M16,'T2'!K16),COUNTRY_INFO!F16*0.5),IF(COUNTRY_INFO!K16=3,IF(COUNTRY_INFO!F16>MAX('T1'!M16,'T2'!K16),MAX('T1'!M16,'T2'!K16),COUNTRY_INFO!F16),0))) -> 0 | AE16: =IF(AND(COUNTRY_INFO!K16>0,COUNTRY_INFO!K16<4),IF(Z16>0,IF(COUNTRY_INFO!K16=1, AD16/(COUNTRY_INFO!F16*0.33)*100, IF(COUNTRY_INFO!K16=2, AD16/(COUNTRY_INFO!F16*0.5)*100, IF(COUNTRY_INFO!K16=3, AD16/COUNTRY_INFO!F16*100))),"-"),0) -> 0 | AF16: =IF(COUNTRY_INFO!K16=2,IF(COUNTRY_INFO!G16*0.2>MAX('T1'!N16,'T2'!L16),MAX('T1'!N16,'T2'!L16),COUNTRY_INFO!G16*0.2),IF(COUNTRY_INFO!K16=3,IF(COUNTRY_INFO!G16>MAX('T1'!N16,'T2'!L16),MAX('T1'!N16,'T2'!L16),COUNTRY_INFO!G16),0)) -> 0 | AG16: =IF(AND(COUNTRY_INFO!K16>0,COUNTRY_INFO!K16<4),IF(Z16>0,IF(COUNTRY_INFO!K16=1, 0, IF(COUNTRY_INFO!K16=2, AF16/(COUNTRY_INFO!G16*0.2)*100, IF(COUNTRY_INFO!K16=3, AF16/COUNTRY_INFO!G16*100))),"-"),0) -> 0 | AH16: 0 | AI16: =IF(AND(COUNTRY_INFO!K16>0,COUNTRY_INFO!K16<4), IF(AC16/Z16*100<>0, IF(AH16/Z16*100>100,100,AH16/Z16*100), "-"),0) -> 0 | AK16: =IF(AND(D16<>0, D16<>"Inconnu",D16<>"Interrompu",D16<>"Non requis"),D16/COUNTRY_INFO!D16, 0) -> 1 | AL16: =IF(AND(J16<>0,J16<>"Inconnu",J16<>"Interrompu",J16<>"Non requis"),J16/COUNTRY_INFO!D16, 0) -> 0 | AM16: =IF(AND(P16<>0,P16<>"Inconnu",P16<>"Non requis"),P16/(COUNTRY_INFO!E16+COUNTRY_INFO!F16), 0) -> 1 | AN16: =IF(AND(Z16<>0,Z16<>"Inconnu",Z16<>"Non requis"),IF(COUNTRY_INFO!K16=1,1,IF(COUNTRY_INFO!K16=2,0.5*COUNTRY_INFO!F16/(0.5*COUNTRY_INFO!F16+0.2*COUNTRY_INFO!G16),IF(COUNTRY_INFO!K16=3,COUNTRY_INFO!F16/(COUNTRY_INFO!F16+COUNTRY_INFO!G16)))),0) -> 0 | AO16: =IF(AND(Z16<>0,Z16<>"Inconnu",Z16<>"Non requis"),IF(COUNTRY_INFO!K16=1,0,IF(COUNTRY_INFO!K16=2,0.2*COUNTRY_INFO!G16/(0.5*COUNTRY_INFO!F16+0.2*COUNTRY_INFO!G16),IF(COUNTRY_INFO!K16=3,COUNTRY_INFO!G16/(COUNTRY_INFO!F16+COUNTRY_INFO!G16)))),0) -> 0 | AP16: =MAX(COUNTRY_INFO!D16*AK16*PROFILE!$G$7,COUNTRY_INFO!D16*AL16*PROFILE!$G$7) -> 3456.248211 | AQ16: =MAX(COUNTRY_INFO!D16*AK16*PROFILE!$G$8,COUNTRY_INFO!D16*AL16*PROFILE!$G$8,COUNTRY_INFO!D16*AM16*PROFILE!$G$8) -> 5623.481674 | AR16: =MAX(COUNTRY_INFO!D16*AK16*PROFILE!$G$9,COUNTRY_INFO!D16*AL16*PROFILE!$G$9,COUNTRY_INFO!D16*AM16*PROFILE!$G$9,IF(AND(DISTRICT!Z16<>"Inconnu",Z16<>"Non requis"),COUNTRY_INFO!O16*DISTRICT!AN16,0)) -> 16591.01946 | AS16: =MAX(COUNTRY_INFO!D16*AK16*PROFILE!$G$10,COUNTRY_INFO!D16*AL16*PROFILE!$G$10,IF(AND(DISTRICT!Z16<>"Inconnu",Z16<>"Non requis"),COUNTRY_INFO!O16*DISTRICT!AO16,0)) -> 40799.25066 | AT16: 66470 | AU16: Y | AV16: =MAX('MDA2'!J16,'T1'!L16,'T2'!J16,T3_R1!K16,T3_R2!K16) -> 4925.814433 | AW16: =MAX('MDA1'!K16,'MDA2'!K16,'MDA3'!I16,'MDA3'!L16,'T1'!M16,'T2'!K16,T3_R1!L16,T3_R2!L16) -> 9851.628866 | AX16: =MAX('MDA1'!L16,'MDA2'!L16,'MDA3'!J16,'MDA3'!M16,'T1'!N16,'T2'!L16,T3_R1!M16,T3_R2!M16) -> 25039.5567 | AY16: 39817 | AZ16: =MAX('MDA2'!J16,T16) -> 4925.814433 | BA16: =MAX('MDA1'!K16,'MDA2'!K16,'MDA3'!I16,'MDA3'!L16,V16,AD16) -> 9851.628866 | BB16: =MAX('MDA1'!L16,'MDA2'!L16,'MDA3'!J16,'MDA3'!M16,AF16) -> 25039.5567 | BC16: 39817 | BD16: 59.90221152
A17: =IF(COUNTRY_INFO!A17=0," ",COUNTRY_INFO!A17) -> COMORES | B17: =IF(COUNTRY_INFO!B17=0," ",COUNTRY_INFO!B17) -> NDZUWANI | C17: =IF(COUNTRY_INFO!C17=0," ",COUNTRY_INFO!C17) -> Mremani | D17: =COUNTRY_INFO!L17 -> 68226 | E17: 26790 | F17: 25129 | G17: =MAX('MDA1'!M17,'MDA2'!M17) -> 51919 | H17: =IF(AND(COUNTRY_INFO!H17>0,COUNTRY_INFO!H17<4),IF(D17>MAX('MDA1'!M17,'MDA2'!M17),MAX('MDA1'!M17,'MDA2'!M17),D17),0) -> 51919 | I17: =IF(AND(COUNTRY_INFO!H17>0,COUNTRY_INFO!H17<4), IF(G17/D17*100<>0, IF(G17/D17*100>100,100,G17/D17*100), "-"),0) -> 76.0985548 | J17: =COUNTRY_INFO!M17 -> Non requis | M17: =MAX('MDA1'!M17,MAX('MDA3'!I17,'MDA3'!L17)+MAX('MDA3'!J17,'MDA3'!M17)) -> 0 | N17: =IF(AND(COUNTRY_INFO!I17>0,COUNTRY_INFO!I17<4),IF(J17>MAX('MDA1'!M17,MAX('MDA3'!I17,'MDA3'!L17)+MAX('MDA3'!J17,'MDA3'!M17)),MAX('MDA1'!M17,MAX('MDA3'!I17,'MDA3'!L17)+MAX('MDA3'!J17,'MDA3'!M17)),J17),0) -> 0 | O17: =IF(AND(COUNTRY_INFO!I17>0,COUNTRY_INFO!I17<4), IF(M17/J17*100<>0, IF(M17/J17*100>100,100,M17/J17*100), "-"),0) -> 0 | P17: =COUNTRY_INFO!N17 -> 22801 | S17: =SUM(MAX('MDA2'!J17, 'T1'!L17, MAX(T3_R1!K17, T3_R2!K17)), MAX('MDA1'!K17, 'MDA2'!K17, 'T1'!M17, MAX(T3_R1!L17, T3_R2!L17)), MAX('MDA1'!L17, 'MDA2'!L17, 'T1'!N17, MAX(T3_R1!M17, T3_R2!M17))) -> 51919 | T17: =IF(AND(COUNTRY_INFO!J17>1,COUNTRY_INFO!J17<4),IF(COUNTRY_INFO!E17>MAX('MDA2'!J17,'T1'!L17,MAX(T3_R1!K17,T3_R2!K17)),MAX('MDA2'!J17,'T1'!L17,MAX(T3_R1!K17,T3_R2!K17)),COUNTRY_INFO!E17),0) -> 5772 | U17: =IF(AND(COUNTRY_INFO!J17>1,COUNTRY_INFO!J17<4), IF(T17/COUNTRY_INFO!E17*100<>0, IF(T17/COUNTRY_INFO!E17*100>100,100,T17/COUNTRY_INFO!E17*100), "-"),0) -> 100 | V17: =IF(AND(COUNTRY_INFO!J17>1,COUNTRY_INFO!J17<4),IF(COUNTRY_INFO!F17>MAX('MDA1'!K17,'MDA2'!K17,'T1'!M17,MAX(T3_R1!L17,T3_R2!L17)),MAX('MDA1'!K17,'MDA2'!K17,'T1'!M17,MAX(T3_R1!L17,T3_R2!L17)),COUNTRY_INFO!F17),0) -> 12845.93814 | W17: =IF(AND(COUNTRY_INFO!J17>1,COUNTRY_INFO!J17<4), IF(V17/COUNTRY_INFO!F17*100<>0, IF(V17/COUNTRY_INFO!F17*100>100,100,V17/COUNTRY_INFO!F17*100), "-"),0) -> 75.43565767 | X17: 18617.93814 | Y17: =IF(AND(COUNTRY_INFO!J17>1,COUNTRY_INFO!J17<4), IF(S17/P17*100<>0, IF(X17/P17*100>100,100,X17/P17*100), "-"),0) -> 81.65404212 | Z17: =COUNTRY_INFO!O17 -> Non requis | AC17: =MAX('T1'!L17,'T2'!J17)+MAX('T1'!M17,'T2'!K17)+MAX('T1'!N17,'T2'!L17) -> 0 | AD17: =IF(COUNTRY_INFO!K17=1,IF(COUNTRY_INFO!F17*0.33>MAX('T1'!M17,'T2'!K17),MAX('T1'!M17,'T2'!K17),COUNTRY_INFO!F17*0.33),IF(COUNTRY_INFO!K17=2,IF(COUNTRY_INFO!F17*0.5>MAX('T1'!M17,'T2'!K17),MAX('T1'!M17,'T2'!K17),COUNTRY_INFO!F17*0.5),IF(COUNTRY_INFO!K17=3,IF(COUNTRY_INFO!F17>MAX('T1'!M17,'T2'!K17),MAX('T1'!M17,'T2'!K17),COUNTRY_INFO!F17),0))) -> 0 | AE17: =IF(AND(COUNTRY_INFO!K17>0,COUNTRY_INFO!K17<4),IF(Z17>0,IF(COUNTRY_INFO!K17=1, AD17/(COUNTRY_INFO!F17*0.33)*100, IF(COUNTRY_INFO!K17=2, AD17/(COUNTRY_INFO!F17*0.5)*100, IF(COUNTRY_INFO!K17=3, AD17/COUNTRY_INFO!F17*100))),"-"),0) -> 0 | AF17: =IF(COUNTRY_INFO!K17=2,IF(COUNTRY_INFO!G17*0.2>MAX('T1'!N17,'T2'!L17),MAX('T1'!N17,'T2'!L17),COUNTRY_INFO!G17*0.2),IF(COUNTRY_INFO!K17=3,IF(COUNTRY_INFO!G17>MAX('T1'!N17,'T2'!L17),MAX('T1'!N17,'T2'!L17),COUNTRY_INFO!G17),0)) -> 0 | AG17: =IF(AND(COUNTRY_INFO!K17>0,COUNTRY_INFO!K17<4),IF(Z17>0,IF(COUNTRY_INFO!K17=1, 0, IF(COUNTRY_INFO!K17=2, AF17/(COUNTRY_INFO!G17*0.2)*100, IF(COUNTRY_INFO!K17=3, AF17/COUNTRY_INFO!G17*100))),"-"),0) -> 0 | AH17: 0 | AI17: =IF(AND(COUNTRY_INFO!K17>0,COUNTRY_INFO!K17<4), IF(AC17/Z17*100<>0, IF(AH17/Z17*100>100,100,AH17/Z17*100), "-"),0) -> 0 | AK17: =IF(AND(D17<>0, D17<>"Inconnu",D17<>"Interrompu",D17<>"Non requis"),D17/COUNTRY_INFO!D17, 0) -> 1 | AL17: =IF(AND(J17<>0,J17<>"Inconnu",J17<>"Interrompu",J17<>"Non requis"),J17/COUNTRY_INFO!D17, 0) -> 0 | AM17: =IF(AND(P17<>0,P17<>"Inconnu",P17<>"Non requis"),P17/(COUNTRY_INFO!E17+COUNTRY_INFO!F17), 0) -> 1 | AN17: =IF(AND(Z17<>0,Z17<>"Inconnu",Z17<>"Non requis"),IF(COUNTRY_INFO!K17=1,1,IF(COUNTRY_INFO!K17=2,0.5*COUNTRY_INFO!F17/(0.5*COUNTRY_INFO!F17+0.2*COUNTRY_INFO!G17),IF(COUNTRY_INFO!K17=3,COUNTRY_INFO!F17/(COUNTRY_INFO!F17+COUNTRY_INFO!G17)))),0) -> 0 | AO17: =IF(AND(Z17<>0,Z17<>"Inconnu",Z17<>"Non requis"),IF(COUNTRY_INFO!K17=1,0,IF(COUNTRY_INFO!K17=2,0.2*COUNTRY_INFO!G17/(0.5*COUNTRY_INFO!F17+0.2*COUNTRY_INFO!G17),IF(COUNTRY_INFO!K17=3,COUNTRY_INFO!G17/(COUNTRY_INFO!F17+COUNTRY_INFO!G17)))),0) -> 0 | AP17: =MAX(COUNTRY_INFO!D17*AK17*PROFILE!$G$7,COUNTRY_INFO!D17*AL17*PROFILE!$G$7) -> 3547.555144 | AQ17: =MAX(COUNTRY_INFO!D17*AK17*PROFILE!$G$8,COUNTRY_INFO!D17*AL17*PROFILE!$G$8,COUNTRY_INFO!D17*AM17*PROFILE!$G$8) -> 5772.042436 | AR17: =MAX(COUNTRY_INFO!D17*AK17*PROFILE!$G$9,COUNTRY_INFO!D17*AL17*PROFILE!$G$9,COUNTRY_INFO!D17*AM17*PROFILE!$G$9,IF(AND(DISTRICT!Z17<>"Inconnu",Z17<>"Non requis"),COUNTRY_INFO!O17*DISTRICT!AN17,0)) -> 17029.31989 | AS17: =MAX(COUNTRY_INFO!D17*AK17*PROFILE!$G$10,COUNTRY_INFO!D17*AL17*PROFILE!$G$10,IF(AND(DISTRICT!Z17<>"Inconnu",Z17<>"Non requis"),COUNTRY_INFO!O17*DISTRICT!AO17,0)) -> 41877.08253 | AT17: 68226 | AU17: Y | AV17: =MAX('MDA2'!J17,'T1'!L17,'T2'!J17,T3_R1!K17,T3_R2!K17) -> 6422.969072 | AW17: =MAX('MDA1'!K17,'MDA2'!K17,'MDA3'!I17,'MDA3'!L17,'T1'!M17,'T2'!K17,T3_R1!L17,T3_R2!L17) -> 12845.93814 | AX17: =MAX('MDA1'!L17,'MDA2'!L17,'MDA3'!J17,'MDA3'!M17,'T1'!N17,'T2'!L17,T3_R1!M17,T3_R2!M17) -> 32650.09278 | AY17: 51919 | AZ17: =MAX('MDA2'!J17,T17) -> 6422.969072 | BA17: =MAX('MDA1'!K17,'MDA2'!K17,'MDA3'!I17,'MDA3'!L17,V17,AD17) -> 12845.93814 | BB17: =MAX('MDA1'!L17,'MDA2'!L17,'MDA3'!J17,'MDA3'!M17,AF17) -> 32650.09278 | BC17: 51919 | BD17: 76.0985548
A18: =IF(COUNTRY_INFO!A18=0," ",COUNTRY_INFO!A18) -> COMORES | B18: =IF(COUNTRY_INFO!B18=0," ",COUNTRY_INFO!B18) -> NDZUWANI | C18: =IF(COUNTRY_INFO!C18=0," ",COUNTRY_INFO!C18) -> Mutsamudu | D18: =COUNTRY_INFO!L18 -> 64738 | E18: 23186 | F18: 20057 | G18: =MAX('MDA1'!M18,'MDA2'!M18) -> 43243 | H18: =IF(AND(COUNTRY_INFO!H18>0,COUNTRY_INFO!H18<4),IF(D18>MAX('MDA1'!M18,'MDA2'!M18),MAX('MDA1'!M18,'MDA2'!M18),D18),0) -> 43243 | I18: =IF(AND(COUNTRY_INFO!H18>0,COUNTRY_INFO!H18<4), IF(G18/D18*100<>0, IF(G18/D18*100>100,100,G18/D18*100), "-"),0) -> 66.79693534 | J18: =COUNTRY_INFO!M18 -> Non requis | M18: =MAX('MDA1'!M18,MAX('MDA3'!I18,'MDA3'!L18)+MAX('MDA3'!J18,'MDA3'!M18)) -> 0 | N18: =IF(AND(COUNTRY_INFO!I18>0,COUNTRY_INFO!I18<4),IF(J18>MAX('MDA1'!M18,MAX('MDA3'!I18,'MDA3'!L18)+MAX('MDA3'!J18,'MDA3'!M18)),MAX('MDA1'!M18,MAX('MDA3'!I18,'MDA3'!L18)+MAX('MDA3'!J18,'MDA3'!M18)),J18),0) -> 0 | O18: =IF(AND(COUNTRY_INFO!I18>0,COUNTRY_INFO!I18<4), IF(M18/J18*100<>0, IF(M18/J18*100>100,100,M18/J18*100), "-"),0) -> 0 | P18: =COUNTRY_INFO!N18 -> 21636 | S18: =SUM(MAX('MDA2'!J18, 'T1'!L18, MAX(T3_R1!K18, T3_R2!K18)), MAX('MDA1'!K18, 'MDA2'!K18, 'T1'!M18, MAX(T3_R1!L18, T3_R2!L18)), MAX('MDA1'!L18, 'MDA2'!L18, 'T1'!N18, MAX(T3_R1!M18, T3_R2!M18))) -> 43243 | T18: =IF(AND(COUNTRY_INFO!J18>1,COUNTRY_INFO!J18<4),IF(COUNTRY_INFO!E18>MAX('MDA2'!J18,'T1'!L18,MAX(T3_R1!K18,T3_R2!K18)),MAX('MDA2'!J18,'T1'!L18,MAX(T3_R1!K18,T3_R2!K18)),COUNTRY_INFO!E18),0) -> 5349.649485 | U18: =IF(AND(COUNTRY_INFO!J18>1,COUNTRY_INFO!J18<4), IF(T18/COUNTRY_INFO!E18*100<>0, IF(T18/COUNTRY_INFO!E18*100>100,100,T18/COUNTRY_INFO!E18*100), "-"),0) -> 97.67481257 | V18: =IF(AND(COUNTRY_INFO!J18>1,COUNTRY_INFO!J18<4),IF(COUNTRY_INFO!F18>MAX('MDA1'!K18,'MDA2'!K18,'T1'!M18,MAX(T3_R1!L18,T3_R2!L18)),MAX('MDA1'!K18,'MDA2'!K18,'T1'!M18,MAX(T3_R1!L18,T3_R2!L18)),COUNTRY_INFO!F18),0) -> 10699.29897 | W18: =IF(AND(COUNTRY_INFO!J18>1,COUNTRY_INFO!J18<4), IF(V18/COUNTRY_INFO!F18*100<>0, IF(V18/COUNTRY_INFO!F18*100>100,100,V18/COUNTRY_INFO!F18*100), "-"),0) -> 66.21263054 | X18: 16048.94845 | Y18: =IF(AND(COUNTRY_INFO!J18>1,COUNTRY_INFO!J18<4), IF(S18/P18*100<>0, IF(X18/P18*100>100,100,X18/P18*100), "-"),0) -> 74.17705885 | Z18: =COUNTRY_INFO!O18 -> Non requis | AC18: =MAX('T1'!L18,'T2'!J18)+MAX('T1'!M18,'T2'!K18)+MAX('T1'!N18,'T2'!L18) -> 0 | AD18: =IF(COUNTRY_INFO!K18=1,IF(COUNTRY_INFO!F18*0.33>MAX('T1'!M18,'T2'!K18),MAX('T1'!M18,'T2'!K18),COUNTRY_INFO!F18*0.33),IF(COUNTRY_INFO!K18=2,IF(COUNTRY_INFO!F18*0.5>MAX('T1'!M18,'T2'!K18),MAX('T1'!M18,'T2'!K18),COUNTRY_INFO!F18*0.5),IF(COUNTRY_INFO!K18=3,IF(COUNTRY_INFO!F18>MAX('T1'!M18,'T2'!K18),MAX('T1'!M18,'T2'!K18),COUNTRY_INFO!F18),0))) -> 0 | AE18: =IF(AND(COUNTRY_INFO!K18>0,COUNTRY_INFO!K18<4),IF(Z18>0,IF(COUNTRY_INFO!K18=1, AD18/(COUNTRY_INFO!F18*0.33)*100, IF(COUNTRY_INFO!K18=2, AD18/(COUNTRY_INFO!F18*0.5)*100, IF(COUNTRY_INFO!K18=3, AD18/COUNTRY_INFO!F18*100))),"-"),0) -> 0 | AF18: =IF(COUNTRY_INFO!K18=2,IF(COUNTRY_INFO!G18*0.2>MAX('T1'!N18,'T2'!L18),MAX('T1'!N18,'T2'!L18),COUNTRY_INFO!G18*0.2),IF(COUNTRY_INFO!K18=3,IF(COUNTRY_INFO!G18>MAX('T1'!N18,'T2'!L18),MAX('T1'!N18,'T2'!L18),COUNTRY_INFO!G18),0)) -> 0 | AG18: =IF(AND(COUNTRY_INFO!K18>0,COUNTRY_INFO!K18<4),IF(Z18>0,IF(COUNTRY_INFO!K18=1, 0, IF(COUNTRY_INFO!K18=2, AF18/(COUNTRY_INFO!G18*0.2)*100, IF(COUNTRY_INFO!K18=3, AF18/COUNTRY_INFO!G18*100))),"-"),0) -> 0 | AH18: 0 | AI18: =IF(AND(COUNTRY_INFO!K18>0,COUNTRY_INFO!K18<4), IF(AC18/Z18*100<>0, IF(AH18/Z18*100>100,100,AH18/Z18*100), "-"),0) -> 0 | AK18: =IF(AND(D18<>0, D18<>"Inconnu",D18<>"Interrompu",D18<>"Non requis"),D18/COUNTRY_INFO!D18, 0) -> 1 | AL18: =IF(AND(J18<>0,J18<>"Inconnu",J18<>"Interrompu",J18<>"Non requis"),J18/COUNTRY_INFO!D18, 0) -> 0 | AM18: =IF(AND(P18<>0,P18<>"Inconnu",P18<>"Non requis"),P18/(COUNTRY_INFO!E18+COUNTRY_INFO!F18), 0) -> 1 | AN18: =IF(AND(Z18<>0,Z18<>"Inconnu",Z18<>"Non requis"),IF(COUNTRY_INFO!K18=1,1,IF(COUNTRY_INFO!K18=2,0.5*COUNTRY_INFO!F18/(0.5*COUNTRY_INFO!F18+0.2*COUNTRY_INFO!G18),IF(COUNTRY_INFO!K18=3,COUNTRY_INFO!F18/(COUNTRY_INFO!F18+COUNTRY_INFO!G18)))),0) -> 0 | AO18: =IF(AND(Z18<>0,Z18<>"Inconnu",Z18<>"Non requis"),IF(COUNTRY_INFO!K18=1,0,IF(COUNTRY_INFO!K18=2,0.2*COUNTRY_INFO!G18/(0.5*COUNTRY_INFO!F18+0.2*COUNTRY_INFO!G18),IF(COUNTRY_INFO!K18=3,COUNTRY_INFO!G18/(COUNTRY_INFO!F18+COUNTRY_INFO!G18)))),0) -> 0 | AP18: =MAX(COUNTRY_INFO!D18*AK18*PROFILE!$G$7,COUNTRY_INFO!D18*AL18*PROFILE!$G$7) -> 3366.189208 | AQ18: =MAX(COUNTRY_INFO!D18*AK18*PROFILE!$G$8,COUNTRY_INFO!D18*AL18*PROFILE!$G$8,COUNTRY_INFO!D18*AM18*PROFILE!$G$8) -> 5476.951356 | AR18: =MAX(COUNTRY_INFO!D18*AK18*PROFILE!$G$9,COUNTRY_INFO!D18*AL18*PROFILE!$G$9,COUNTRY_INFO!D18*AM18*PROFILE!$G$9,IF(AND(DISTRICT!Z18<>"Inconnu",Z18<>"Non requis"),COUNTRY_INFO!O18*DISTRICT!AN18,0)) -> 16158.70946 | AS18: =MAX(COUNTRY_INFO!D18*AK18*PROFILE!$G$10,COUNTRY_INFO!D18*AL18*PROFILE!$G$10,IF(AND(DISTRICT!Z18<>"Inconnu",Z18<>"Non requis"),COUNTRY_INFO!O18*DISTRICT!AO18,0)) -> 39736.14998 | AT18: 64738 | AU18: Y | AV18: =MAX('MDA2'!J18,'T1'!L18,'T2'!J18,T3_R1!K18,T3_R2!K18) -> 5349.649485 | AW18: =MAX('MDA1'!K18,'MDA2'!K18,'MDA3'!I18,'MDA3'!L18,'T1'!M18,'T2'!K18,T3_R1!L18,T3_R2!L18) -> 10699.29897 | AX18: =MAX('MDA1'!L18,'MDA2'!L18,'MDA3'!J18,'MDA3'!M18,'T1'!N18,'T2'!L18,T3_R1!M18,T3_R2!M18) -> 27194.05155 | AY18: 43243 | AZ18: =MAX('MDA2'!J18,T18) -> 5349.649485 | BA18: =MAX('MDA1'!K18,'MDA2'!K18,'MDA3'!I18,'MDA3'!L18,V18,AD18) -> 10699.29897 | BB18: =MAX('MDA1'!L18,'MDA2'!L18,'MDA3'!J18,'MDA3'!M18,AF18) -> 27194.05155 | BC18: 43243 | BD18: 66.79693534
A19: =IF(COUNTRY_INFO!A19=0," ",COUNTRY_INFO!A19) -> COMORES | B19: =IF(COUNTRY_INFO!B19=0," ",COUNTRY_INFO!B19) -> NDZUWANI | C19: =IF(COUNTRY_INFO!C19=0," ",COUNTRY_INFO!C19) -> Ouani | D19: =COUNTRY_INFO!L19 -> 49108 | E19: 17412 | F19: 15134 | G19: =MAX('MDA1'!M19,'MDA2'!M19) -> 32546 | H19: =IF(AND(COUNTRY_INFO!H19>0,COUNTRY_INFO!H19<4),IF(D19>MAX('MDA1'!M19,'MDA2'!M19),MAX('MDA1'!M19,'MDA2'!M19),D19),0) -> 32546 | I19: =IF(AND(COUNTRY_INFO!H19>0,COUNTRY_INFO!H19<4), IF(G19/D19*100<>0, IF(G19/D19*100>100,100,G19/D19*100), "-"),0) -> 66.27433412 | J19: =COUNTRY_INFO!M19 -> Non requis | M19: =MAX('MDA1'!M19,MAX('MDA3'!I19,'MDA3'!L19)+MAX('MDA3'!J19,'MDA3'!M19)) -> 0 | N19: =IF(AND(COUNTRY_INFO!I19>0,COUNTRY_INFO!I19<4),IF(J19>MAX('MDA1'!M19,MAX('MDA3'!I19,'MDA3'!L19)+MAX('MDA3'!J19,'MDA3'!M19)),MAX('MDA1'!M19,MAX('MDA3'!I19,'MDA3'!L19)+MAX('MDA3'!J19,'MDA3'!M19)),J19),0) -> 0 | O19: =IF(AND(COUNTRY_INFO!I19>0,COUNTRY_INFO!I19<4), IF(M19/J19*100<>0, IF(M19/J19*100>100,100,M19/J19*100), "-"),0) -> 0 | P19: =COUNTRY_INFO!N19 -> 16412 | S19: =SUM(MAX('MDA2'!J19, 'T1'!L19, MAX(T3_R1!K19, T3_R2!K19)), MAX('MDA1'!K19, 'MDA2'!K19, 'T1'!M19, MAX(T3_R1!L19, T3_R2!L19)), MAX('MDA1'!L19, 'MDA2'!L19, 'T1'!N19, MAX(T3_R1!M19, T3_R2!M19))) -> 32546 | T19: =IF(AND(COUNTRY_INFO!J19>1,COUNTRY_INFO!J19<4),IF(COUNTRY_INFO!E19>MAX('MDA2'!J19,'T1'!L19,MAX(T3_R1!K19,T3_R2!K19)),MAX('MDA2'!J19,'T1'!L19,MAX(T3_R1!K19,T3_R2!K19)),COUNTRY_INFO!E19),0) -> 4026.309278 | U19: =IF(AND(COUNTRY_INFO!J19>1,COUNTRY_INFO!J19<4), IF(T19/COUNTRY_INFO!E19*100<>0, IF(T19/COUNTRY_INFO!E19*100>100,100,T19/COUNTRY_INFO!E19*100), "-"),0) -> 96.90275038 | V19: =IF(AND(COUNTRY_INFO!J19>1,COUNTRY_INFO!J19<4),IF(COUNTRY_INFO!F19>MAX('MDA1'!K19,'MDA2'!K19,'T1'!M19,MAX(T3_R1!L19,T3_R2!L19)),MAX('MDA1'!K19,'MDA2'!K19,'T1'!M19,MAX(T3_R1!L19,T3_R2!L19)),COUNTRY_INFO!F19),0) -> 8052.618557 | W19: =IF(AND(COUNTRY_INFO!J19>1,COUNTRY_INFO!J19<4), IF(V19/COUNTRY_INFO!F19*100<>0, IF(V19/COUNTRY_INFO!F19*100>100,100,V19/COUNTRY_INFO!F19*100), "-"),0) -> 65.6981199 | X19: 12078.92784 | Y19: =IF(AND(COUNTRY_INFO!J19>1,COUNTRY_INFO!J19<4), IF(S19/P19*100<>0, IF(X19/P19*100>100,100,X19/P19*100), "-"),0) -> 73.59814669 | Z19: =COUNTRY_INFO!O19 -> Non requis | AC19: =MAX('T1'!L19,'T2'!J19)+MAX('T1'!M19,'T2'!K19)+MAX('T1'!N19,'T2'!L19) -> 0 | AD19: =IF(COUNTRY_INFO!K19=1,IF(COUNTRY_INFO!F19*0.33>MAX('T1'!M19,'T2'!K19),MAX('T1'!M19,'T2'!K19),COUNTRY_INFO!F19*0.33),IF(COUNTRY_INFO!K19=2,IF(COUNTRY_INFO!F19*0.5>MAX('T1'!M19,'T2'!K19),MAX('T1'!M19,'T2'!K19),COUNTRY_INFO!F19*0.5),IF(COUNTRY_INFO!K19=3,IF(COUNTRY_INFO!F19>MAX('T1'!M19,'T2'!K19),MAX('T1'!M19,'T2'!K19),COUNTRY_INFO!F19),0))) -> 0 | AE19: =IF(AND(COUNTRY_INFO!K19>0,COUNTRY_INFO!K19<4),IF(Z19>0,IF(COUNTRY_INFO!K19=1, AD19/(COUNTRY_INFO!F19*0.33)*100, IF(COUNTRY_INFO!K19=2, AD19/(COUNTRY_INFO!F19*0.5)*100, IF(COUNTRY_INFO!K19=3, AD19/COUNTRY_INFO!F19*100))),"-"),0) -> 0 | AF19: =IF(COUNTRY_INFO!K19=2,IF(COUNTRY_INFO!G19*0.2>MAX('T1'!N19,'T2'!L19),MAX('T1'!N19,'T2'!L19),COUNTRY_INFO!G19*0.2),IF(COUNTRY_INFO!K19=3,IF(COUNTRY_INFO!G19>MAX('T1'!N19,'T2'!L19),MAX('T1'!N19,'T2'!L19),COUNTRY_INFO!G19),0)) -> 0 | AG19: =IF(AND(COUNTRY_INFO!K19>0,COUNTRY_INFO!K19<4),IF(Z19>0,IF(COUNTRY_INFO!K19=1, 0, IF(COUNTRY_INFO!K19=2, AF19/(COUNTRY_INFO!G19*0.2)*100, IF(COUNTRY_INFO!K19=3, AF19/COUNTRY_INFO!G19*100))),"-"),0) -> 0 | AH19: 0 | AI19: =IF(AND(COUNTRY_INFO!K19>0,COUNTRY_INFO!K19<4), IF(AC19/Z19*100<>0, IF(AH19/Z19*100>100,100,AH19/Z19*100), "-"),0) -> 0 | AK19: =IF(AND(D19<>0, D19<>"Inconnu",D19<>"Interrompu",D19<>"Non requis"),D19/COUNTRY_INFO!D19, 0) -> 1 | AL19: =IF(AND(J19<>0,J19<>"Inconnu",J19<>"Interrompu",J19<>"Non requis"),J19/COUNTRY_INFO!D19, 0) -> 0 | AM19: =IF(AND(P19<>0,P19<>"Inconnu",P19<>"Non requis"),P19/(COUNTRY_INFO!E19+COUNTRY_INFO!F19), 0) -> 1 | AN19: =IF(AND(Z19<>0,Z19<>"Inconnu",Z19<>"Non requis"),IF(COUNTRY_INFO!K19=1,1,IF(COUNTRY_INFO!K19=2,0.5*COUNTRY_INFO!F19/(0.5*COUNTRY_INFO!F19+0.2*COUNTRY_INFO!G19),IF(COUNTRY_INFO!K19=3,COUNTRY_INFO!F19/(COUNTRY_INFO!F19+COUNTRY_INFO!G19)))),0) -> 0 | AO19: =IF(AND(Z19<>0,Z19<>"Inconnu",Z19<>"Non requis"),IF(COUNTRY_INFO!K19=1,0,IF(COUNTRY_INFO!K19=2,0.2*COUNTRY_INFO!G19/(0.5*COUNTRY_INFO!F19+0.2*COUNTRY_INFO!G19),IF(COUNTRY_INFO!K19=3,COUNTRY_INFO!G19/(COUNTRY_INFO!F19+COUNTRY_INFO!G19)))),0) -> 0 | AP19: =MAX(COUNTRY_INFO!D19*AK19*PROFILE!$G$7,COUNTRY_INFO!D19*AL19*PROFILE!$G$7) -> 2553.474306 | AQ19: =MAX(COUNTRY_INFO!D19*AK19*PROFILE!$G$8,COUNTRY_INFO!D19*AL19*PROFILE!$G$8,COUNTRY_INFO!D19*AM19*PROFILE!$G$8) -> 4154.625215 | AR19: =MAX(COUNTRY_INFO!D19*AK19*PROFILE!$G$9,COUNTRY_INFO!D19*AL19*PROFILE!$G$9,COUNTRY_INFO!D19*AM19*PROFILE!$G$9,IF(AND(DISTRICT!Z19<>"Inconnu",Z19<>"Non requis"),COUNTRY_INFO!O19*DISTRICT!AN19,0)) -> 12257.43619 | AS19: =MAX(COUNTRY_INFO!D19*AK19*PROFILE!$G$10,COUNTRY_INFO!D19*AL19*PROFILE!$G$10,IF(AND(DISTRICT!Z19<>"Inconnu",Z19<>"Non requis"),COUNTRY_INFO!O19*DISTRICT!AO19,0)) -> 30142.46429 | AT19: 49108 | AU19: Y | AV19: =MAX('MDA2'!J19,'T1'!L19,'T2'!J19,T3_R1!K19,T3_R2!K19) -> 4026.309278 | AW19: =MAX('MDA1'!K19,'MDA2'!K19,'MDA3'!I19,'MDA3'!L19,'T1'!M19,'T2'!K19,T3_R1!L19,T3_R2!L19) -> 8052.618557 | AX19: =MAX('MDA1'!L19,'MDA2'!L19,'MDA3'!J19,'MDA3'!M19,'T1'!N19,'T2'!L19,T3_R1!M19,T3_R2!M19) -> 20467.07216 | AY19: 32546 | AZ19: =MAX('MDA2'!J19,T19) -> 4026.309278 | BA19: =MAX('MDA1'!K19,'MDA2'!K19,'MDA3'!I19,'MDA3'!L19,V19,AD19) -> 8052.618557 | BB19: =MAX('MDA1'!L19,'MDA2'!L19,'MDA3'!J19,'MDA3'!M19,AF19) -> 20467.07216 | BC19: 32546 | BD19: 66.27433412
A20: =IF(COUNTRY_INFO!A20=0," ",COUNTRY_INFO!A20) -> COMORES | B20: =IF(COUNTRY_INFO!B20=0," ",COUNTRY_INFO!B20) -> NDZUWANI | C20: =IF(COUNTRY_INFO!C20=0," ",COUNTRY_INFO!C20) -> Pomoni | D20: =COUNTRY_INFO!L20 -> 38188 | E20: 14289 | F20: 12089 | G20: =MAX('MDA1'!M20,'MDA2'!M20) -> 26378 | H20: =IF(AND(COUNTRY_INFO!H20>0,COUNTRY_INFO!H20<4),IF(D20>MAX('MDA1'!M20,'MDA2'!M20),MAX('MDA1'!M20,'MDA2'!M20),D20),0) -> 26378 | I20: =IF(AND(COUNTRY_INFO!H20>0,COUNTRY_INFO!H20<4), IF(G20/D20*100<>0, IF(G20/D20*100>100,100,G20/D20*100), "-"),0) -> 69.07405468 | J20: =COUNTRY_INFO!M20 -> Non requis | M20: =MAX('MDA1'!M20,MAX('MDA3'!I20,'MDA3'!L20)+MAX('MDA3'!J20,'MDA3'!M20)) -> 0 | N20: =IF(AND(COUNTRY_INFO!I20>0,COUNTRY_INFO!I20<4),IF(J20>MAX('MDA1'!M20,MAX('MDA3'!I20,'MDA3'!L20)+MAX('MDA3'!J20,'MDA3'!M20)),MAX('MDA1'!M20,MAX('MDA3'!I20,'MDA3'!L20)+MAX('MDA3'!J20,'MDA3'!M20)),J20),0) -> 0 | O20: =IF(AND(COUNTRY_INFO!I20>0,COUNTRY_INFO!I20<4), IF(M20/J20*100<>0, IF(M20/J20*100>100,100,M20/J20*100), "-"),0) -> 0 | P20: =COUNTRY_INFO!N20 -> 12763 | S20: =SUM(MAX('MDA2'!J20, 'T1'!L20, MAX(T3_R1!K20, T3_R2!K20)), MAX('MDA1'!K20, 'MDA2'!K20, 'T1'!M20, MAX(T3_R1!L20, T3_R2!L20)), MAX('MDA1'!L20, 'MDA2'!L20, 'T1'!N20, MAX(T3_R1!M20, T3_R2!M20))) -> 26378 | T20: =IF(AND(COUNTRY_INFO!J20>1,COUNTRY_INFO!J20<4),IF(COUNTRY_INFO!E20>MAX('MDA2'!J20,'T1'!L20,MAX(T3_R1!K20,T3_R2!K20)),MAX('MDA2'!J20,'T1'!L20,MAX(T3_R1!K20,T3_R2!K20)),COUNTRY_INFO!E20),0) -> 3231 | U20: =IF(AND(COUNTRY_INFO!J20>1,COUNTRY_INFO!J20<4), IF(T20/COUNTRY_INFO!E20*100<>0, IF(T20/COUNTRY_INFO!E20*100>100,100,T20/COUNTRY_INFO!E20*100), "-"),0) -> 100 | V20: =IF(AND(COUNTRY_INFO!J20>1,COUNTRY_INFO!J20<4),IF(COUNTRY_INFO!F20>MAX('MDA1'!K20,'MDA2'!K20,'T1'!M20,MAX(T3_R1!L20,T3_R2!L20)),MAX('MDA1'!K20,'MDA2'!K20,'T1'!M20,MAX(T3_R1!L20,T3_R2!L20)),COUNTRY_INFO!F20),0) -> 6526.515464 | W20: =IF(AND(COUNTRY_INFO!J20>1,COUNTRY_INFO!J20<4), IF(V20/COUNTRY_INFO!F20*100<>0, IF(V20/COUNTRY_INFO!F20*100>100,100,V20/COUNTRY_INFO!F20*100), "-"),0) -> 68.46952858 | X20: 9757.515464 | Y20: =IF(AND(COUNTRY_INFO!J20>1,COUNTRY_INFO!J20<4), IF(S20/P20*100<>0, IF(X20/P20*100>100,100,X20/P20*100), "-"),0) -> 76.45158242 | Z20: =COUNTRY_INFO!O20 -> Non requis | AC20: =MAX('T1'!L20,'T2'!J20)+MAX('T1'!M20,'T2'!K20)+MAX('T1'!N20,'T2'!L20) -> 0 | AD20: =IF(COUNTRY_INFO!K20=1,IF(COUNTRY_INFO!F20*0.33>MAX('T1'!M20,'T2'!K20),MAX('T1'!M20,'T2'!K20),COUNTRY_INFO!F20*0.33),IF(COUNTRY_INFO!K20=2,IF(COUNTRY_INFO!F20*0.5>MAX('T1'!M20,'T2'!K20),MAX('T1'!M20,'T2'!K20),COUNTRY_INFO!F20*0.5),IF(COUNTRY_INFO!K20=3,IF(COUNTRY_INFO!F20>MAX('T1'!M20,'T2'!K20),MAX('T1'!M20,'T2'!K20),COUNTRY_INFO!F20),0))) -> 0 | AE20: =IF(AND(COUNTRY_INFO!K20>0,COUNTRY_INFO!K20<4),IF(Z20>0,IF(COUNTRY_INFO!K20=1, AD20/(COUNTRY_INFO!F20*0.33)*100, IF(COUNTRY_INFO!K20=2, AD20/(COUNTRY_INFO!F20*0.5)*100, IF(COUNTRY_INFO!K20=3, AD20/COUNTRY_INFO!F20*100))),"-"),0) -> 0 | AF20: =IF(COUNTRY_INFO!K20=2,IF(COUNTRY_INFO!G20*0.2>MAX('T1'!N20,'T2'!L20),MAX('T1'!N20,'T2'!L20),COUNTRY_INFO!G20*0.2),IF(COUNTRY_INFO!K20=3,IF(COUNTRY_INFO!G20>MAX('T1'!N20,'T2'!L20),MAX('T1'!N20,'T2'!L20),COUNTRY_INFO!G20),0)) -> 0 | AG20: =IF(AND(COUNTRY_INFO!K20>0,COUNTRY_INFO!K20<4),IF(Z20>0,IF(COUNTRY_INFO!K20=1, 0, IF(COUNTRY_INFO!K20=2, AF20/(COUNTRY_INFO!G20*0.2)*100, IF(COUNTRY_INFO!K20=3, AF20/COUNTRY_INFO!G20*100))),"-"),0) -> 0 | AH20: 0 | AI20: =IF(AND(COUNTRY_INFO!K20>0,COUNTRY_INFO!K20<4), IF(AC20/Z20*100<>0, IF(AH20/Z20*100>100,100,AH20/Z20*100), "-"),0) -> 0 | AK20: =IF(AND(D20<>0, D20<>"Inconnu",D20<>"Interrompu",D20<>"Non requis"),D20/COUNTRY_INFO!D20, 0) -> 1 | AL20: =IF(AND(J20<>0,J20<>"Inconnu",J20<>"Interrompu",J20<>"Non requis"),J20/COUNTRY_INFO!D20, 0) -> 0 | AM20: =IF(AND(P20<>0,P20<>"Inconnu",P20<>"Non requis"),P20/(COUNTRY_INFO!E20+COUNTRY_INFO!F20), 0) -> 1 | AN20: =IF(AND(Z20<>0,Z20<>"Inconnu",Z20<>"Non requis"),IF(COUNTRY_INFO!K20=1,1,IF(COUNTRY_INFO!K20=2,0.5*COUNTRY_INFO!F20/(0.5*COUNTRY_INFO!F20+0.2*COUNTRY_INFO!G20),IF(COUNTRY_INFO!K20=3,COUNTRY_INFO!F20/(COUNTRY_INFO!F20+COUNTRY_INFO!G20)))),0) -> 0 | AO20: =IF(AND(Z20<>0,Z20<>"Inconnu",Z20<>"Non requis"),IF(COUNTRY_INFO!K20=1,0,IF(COUNTRY_INFO!K20=2,0.2*COUNTRY_INFO!G20/(0.5*COUNTRY_INFO!F20+0.2*COUNTRY_INFO!G20),IF(COUNTRY_INFO!K20=3,COUNTRY_INFO!G20/(COUNTRY_INFO!F20+COUNTRY_INFO!G20)))),0) -> 0 | AP20: =MAX(COUNTRY_INFO!D20*AK20*PROFILE!$G$7,COUNTRY_INFO!D20*AL20*PROFILE!$G$7) -> 1985.665814 | AQ20: =MAX(COUNTRY_INFO!D20*AK20*PROFILE!$G$8,COUNTRY_INFO!D20*AL20*PROFILE!$G$8,COUNTRY_INFO!D20*AM20*PROFILE!$G$8) -> 3230.773555 | AR20: =MAX(COUNTRY_INFO!D20*AK20*PROFILE!$G$9,COUNTRY_INFO!D20*AL20*PROFILE!$G$9,COUNTRY_INFO!D20*AM20*PROFILE!$G$9,IF(AND(DISTRICT!Z20<>"Inconnu",Z20<>"Non requis"),COUNTRY_INFO!O20*DISTRICT!AN20,0)) -> 9531.786535 | AS20: =MAX(COUNTRY_INFO!D20*AK20*PROFILE!$G$10,COUNTRY_INFO!D20*AL20*PROFILE!$G$10,IF(AND(DISTRICT!Z20<>"Inconnu",Z20<>"Non requis"),COUNTRY_INFO!O20*DISTRICT!AO20,0)) -> 23439.7741 | AT20: 38188 | AU20: Y | AV20: =MAX('MDA2'!J20,'T1'!L20,'T2'!J20,T3_R1!K20,T3_R2!K20) -> 3263.257732 | AW20: =MAX('MDA1'!K20,'MDA2'!K20,'MDA3'!I20,'MDA3'!L20,'T1'!M20,'T2'!K20,T3_R1!L20,T3_R2!L20) -> 6526.515464 | AX20: =MAX('MDA1'!L20,'MDA2'!L20,'MDA3'!J20,'MDA3'!M20,'T1'!N20,'T2'!L20,T3_R1!M20,T3_R2!M20) -> 16588.2268 | AY20: 26378 | AZ20: =MAX('MDA2'!J20,T20) -> 3263.257732 | BA20: =MAX('MDA1'!K20,'MDA2'!K20,'MDA3'!I20,'MDA3'!L20,V20,AD20) -> 6526.515464 | BB20: =MAX('MDA1'!L20,'MDA2'!L20,'MDA3'!J20,'MDA3'!M20,AF20) -> 16588.2268 | BC20: 26378 | BD20: 69.07405468
A21: =IF(COUNTRY_INFO!A21=0," ",COUNTRY_INFO!A21) -> COMORES | B21: =IF(COUNTRY_INFO!B21=0," ",COUNTRY_INFO!B21) -> NDZUWANI | C21: =IF(COUNTRY_INFO!C21=0," ",COUNTRY_INFO!C21) -> Sima | D21: =COUNTRY_INFO!L21 -> 25444 | E21: 9202 | F21: 8356 | G21: =MAX('MDA1'!M21,'MDA2'!M21) -> 17558 | H21: =IF(AND(COUNTRY_INFO!H21>0,COUNTRY_INFO!H21<4),IF(D21>MAX('MDA1'!M21,'MDA2'!M21),MAX('MDA1'!M21,'MDA2'!M21),D21),0) -> 17558 | I21: =IF(AND(COUNTRY_INFO!H21>0,COUNTRY_INFO!H21<4), IF(G21/D21*100<>0, IF(G21/D21*100>100,100,G21/D21*100), "-"),0) -> 69.00644553 | J21: =COUNTRY_INFO!M21 -> Non requis | M21: =MAX('MDA1'!M21,MAX('MDA3'!I21,'MDA3'!L21)+MAX('MDA3'!J21,'MDA3'!M21)) -> 0 | N21: =IF(AND(COUNTRY_INFO!I21>0,COUNTRY_INFO!I21<4),IF(J21>MAX('MDA1'!M21,MAX('MDA3'!I21,'MDA3'!L21)+MAX('MDA3'!J21,'MDA3'!M21)),MAX('MDA1'!M21,MAX('MDA3'!I21,'MDA3'!L21)+MAX('MDA3'!J21,'MDA3'!M21)),J21),0) -> 0 | O21: =IF(AND(COUNTRY_INFO!I21>0,COUNTRY_INFO!I21<4), IF(M21/J21*100<>0, IF(M21/J21*100>100,100,M21/J21*100), "-"),0) -> 0 | P21: =COUNTRY_INFO!N21 -> 8504 | S21: =SUM(MAX('MDA2'!J21, 'T1'!L21, MAX(T3_R1!K21, T3_R2!K21)), MAX('MDA1'!K21, 'MDA2'!K21, 'T1'!M21, MAX(T3_R1!L21, T3_R2!L21)), MAX('MDA1'!L21, 'MDA2'!L21, 'T1'!N21, MAX(T3_R1!M21, T3_R2!M21))) -> 17558 | T21: =IF(AND(COUNTRY_INFO!J21>1,COUNTRY_INFO!J21<4),IF(COUNTRY_INFO!E21>MAX('MDA2'!J21,'T1'!L21,MAX(T3_R1!K21,T3_R2!K21)),MAX('MDA2'!J21,'T1'!L21,MAX(T3_R1!K21,T3_R2!K21)),COUNTRY_INFO!E21),0) -> 2153 | U21: =IF(AND(COUNTRY_INFO!J21>1,COUNTRY_INFO!J21<4), IF(T21/COUNTRY_INFO!E21*100<>0, IF(T21/COUNTRY_INFO!E21*100>100,100,T21/COUNTRY_INFO!E21*100), "-"),0) -> 100 | V21: =IF(AND(COUNTRY_INFO!J21>1,COUNTRY_INFO!J21<4),IF(COUNTRY_INFO!F21>MAX('MDA1'!K21,'MDA2'!K21,'T1'!M21,MAX(T3_R1!L21,T3_R2!L21)),MAX('MDA1'!K21,'MDA2'!K21,'T1'!M21,MAX(T3_R1!L21,T3_R2!L21)),COUNTRY_INFO!F21),0) -> 4344.247423 | W21: =IF(AND(COUNTRY_INFO!J21>1,COUNTRY_INFO!J21<4), IF(V21/COUNTRY_INFO!F21*100<>0, IF(V21/COUNTRY_INFO!F21*100>100,100,V21/COUNTRY_INFO!F21*100), "-"),0) -> 68.40257318 | X21: 6497.247423 | Y21: =IF(AND(COUNTRY_INFO!J21>1,COUNTRY_INFO!J21<4), IF(S21/P21*100<>0, IF(X21/P21*100>100,100,X21/P21*100), "-"),0) -> 76.40225097 | Z21: =COUNTRY_INFO!O21 -> Non requis | AC21: =MAX('T1'!L21,'T2'!J21)+MAX('T1'!M21,'T2'!K21)+MAX('T1'!N21,'T2'!L21) -> 0 | AD21: =IF(COUNTRY_INFO!K21=1,IF(COUNTRY_INFO!F21*0.33>MAX('T1'!M21,'T2'!K21),MAX('T1'!M21,'T2'!K21),COUNTRY_INFO!F21*0.33),IF(COUNTRY_INFO!K21=2,IF(COUNTRY_INFO!F21*0.5>MAX('T1'!M21,'T2'!K21),MAX('T1'!M21,'T2'!K21),COUNTRY_INFO!F21*0.5),IF(COUNTRY_INFO!K21=3,IF(COUNTRY_INFO!F21>MAX('T1'!M21,'T2'!K21),MAX('T1'!M21,'T2'!K21),COUNTRY_INFO!F21),0))) -> 0 | AE21: =IF(AND(COUNTRY_INFO!K21>0,COUNTRY_INFO!K21<4),IF(Z21>0,IF(COUNTRY_INFO!K21=1, AD21/(COUNTRY_INFO!F21*0.33)*100, IF(COUNTRY_INFO!K21=2, AD21/(COUNTRY_INFO!F21*0.5)*100, IF(COUNTRY_INFO!K21=3, AD21/COUNTRY_INFO!F21*100))),"-"),0) -> 0 | AF21: =IF(COUNTRY_INFO!K21=2,IF(COUNTRY_INFO!G21*0.2>MAX('T1'!N21,'T2'!L21),MAX('T1'!N21,'T2'!L21),COUNTRY_INFO!G21*0.2),IF(COUNTRY_INFO!K21=3,IF(COUNTRY_INFO!G21>MAX('T1'!N21,'T2'!L21),MAX('T1'!N21,'T2'!L21),COUNTRY_INFO!G21),0)) -> 0 | AG21: =IF(AND(COUNTRY_INFO!K21>0,COUNTRY_INFO!K21<4),IF(Z21>0,IF(COUNTRY_INFO!K21=1, 0, IF(COUNTRY_INFO!K21=2, AF21/(COUNTRY_INFO!G21*0.2)*100, IF(COUNTRY_INFO!K21=3, AF21/COUNTRY_INFO!G21*100))),"-"),0) -> 0 | AH21: 0 | AI21: =IF(AND(COUNTRY_INFO!K21>0,COUNTRY_INFO!K21<4), IF(AC21/Z21*100<>0, IF(AH21/Z21*100>100,100,AH21/Z21*100), "-"),0) -> 0 | AK21: =IF(AND(D21<>0, D21<>"Inconnu",D21<>"Interrompu",D21<>"Non requis"),D21/COUNTRY_INFO!D21, 0) -> 1 | AL21: =IF(AND(J21<>0,J21<>"Inconnu",J21<>"Interrompu",J21<>"Non requis"),J21/COUNTRY_INFO!D21, 0) -> 0 | AM21: =IF(AND(P21<>0,P21<>"Inconnu",P21<>"Non requis"),P21/(COUNTRY_INFO!E21+COUNTRY_INFO!F21), 0) -> 1 | AN21: =IF(AND(Z21<>0,Z21<>"Inconnu",Z21<>"Non requis"),IF(COUNTRY_INFO!K21=1,1,IF(COUNTRY_INFO!K21=2,0.5*COUNTRY_INFO!F21/(0.5*COUNTRY_INFO!F21+0.2*COUNTRY_INFO!G21),IF(COUNTRY_INFO!K21=3,COUNTRY_INFO!F21/(COUNTRY_INFO!F21+COUNTRY_INFO!G21)))),0) -> 0 | AO21: =IF(AND(Z21<>0,Z21<>"Inconnu",Z21<>"Non requis"),IF(COUNTRY_INFO!K21=1,0,IF(COUNTRY_INFO!K21=2,0.2*COUNTRY_INFO!G21/(0.5*COUNTRY_INFO!F21+0.2*COUNTRY_INFO!G21),IF(COUNTRY_INFO!K21=3,COUNTRY_INFO!G21/(COUNTRY_INFO!F21+COUNTRY_INFO!G21)))),0) -> 0 | AP21: =MAX(COUNTRY_INFO!D21*AK21*PROFILE!$G$7,COUNTRY_INFO!D21*AL21*PROFILE!$G$7) -> 1323.014585 | AQ21: =MAX(COUNTRY_INFO!D21*AK21*PROFILE!$G$8,COUNTRY_INFO!D21*AL21*PROFILE!$G$8,COUNTRY_INFO!D21*AM21*PROFILE!$G$8) -> 2152.60821 | AR21: =MAX(COUNTRY_INFO!D21*AK21*PROFILE!$G$9,COUNTRY_INFO!D21*AL21*PROFILE!$G$9,COUNTRY_INFO!D21*AM21*PROFILE!$G$9,IF(AND(DISTRICT!Z21<>"Inconnu",Z21<>"Non requis"),COUNTRY_INFO!O21*DISTRICT!AN21,0)) -> 6350.863533 | AS21: =MAX(COUNTRY_INFO!D21*AK21*PROFILE!$G$10,COUNTRY_INFO!D21*AL21*PROFILE!$G$10,IF(AND(DISTRICT!Z21<>"Inconnu",Z21<>"Non requis"),COUNTRY_INFO!O21*DISTRICT!AO21,0)) -> 15617.51367 | AT21: 25444 | AU21: Y | AV21: =MAX('MDA2'!J21,'T1'!L21,'T2'!J21,T3_R1!K21,T3_R2!K21) -> 2172.123711 | AW21: =MAX('MDA1'!K21,'MDA2'!K21,'MDA3'!I21,'MDA3'!L21,'T1'!M21,'T2'!K21,T3_R1!L21,T3_R2!L21) -> 4344.247423 | AX21: =MAX('MDA1'!L21,'MDA2'!L21,'MDA3'!J21,'MDA3'!M21,'T1'!N21,'T2'!L21,T3_R1!M21,T3_R2!M21) -> 11041.62887 | AY21: 17558 | AZ21: =MAX('MDA2'!J21,T21) -> 2172.123711 | BA21: =MAX('MDA1'!K21,'MDA2'!K21,'MDA3'!I21,'MDA3'!L21,V21,AD21) -> 4344.247423 | BB21: =MAX('MDA1'!L21,'MDA2'!L21,'MDA3'!J21,'MDA3'!M21,AF21) -> 11041.62887 | BC21: 17558 | BD21: 69.00644553
A22: =IF(COUNTRY_INFO!A22=0," ",COUNTRY_INFO!A22) -> COMORES | B22: =IF(COUNTRY_INFO!B22=0," ",COUNTRY_INFO!B22) -> NDZUWANI | C22: =IF(COUNTRY_INFO!C22=0," ",COUNTRY_INFO!C22) -> Tsembehou | D22: =COUNTRY_INFO!L22 -> 29102 | E22: 8979 | F22: 8011 | G22: =MAX('MDA1'!M22,'MDA2'!M22) -> 16990 | H22: =IF(AND(COUNTRY_INFO!H22>0,COUNTRY_INFO!H22<4),IF(D22>MAX('MDA1'!M22,'MDA2'!M22),MAX('MDA1'!M22,'MDA2'!M22),D22),0) -> 16990 | I22: =IF(AND(COUNTRY_INFO!H22>0,COUNTRY_INFO!H22<4), IF(G22/D22*100<>0, IF(G22/D22*100>100,100,G22/D22*100), "-"),0) -> 58.38086729 | J22: =COUNTRY_INFO!M22 -> Non requis | M22: =MAX('MDA1'!M22,MAX('MDA3'!I22,'MDA3'!L22)+MAX('MDA3'!J22,'MDA3'!M22)) -> 0 | N22: =IF(AND(COUNTRY_INFO!I22>0,COUNTRY_INFO!I22<4),IF(J22>MAX('MDA1'!M22,MAX('MDA3'!I22,'MDA3'!L22)+MAX('MDA3'!J22,'MDA3'!M22)),MAX('MDA1'!M22,MAX('MDA3'!I22,'MDA3'!L22)+MAX('MDA3'!J22,'MDA3'!M22)),J22),0) -> 0 | O22: =IF(AND(COUNTRY_INFO!I22>0,COUNTRY_INFO!I22<4), IF(M22/J22*100<>0, IF(M22/J22*100>100,100,M22/J22*100), "-"),0) -> 0 | P22: =COUNTRY_INFO!N22 -> 9726 | S22: =SUM(MAX('MDA2'!J22, 'T1'!L22, MAX(T3_R1!K22, T3_R2!K22)), MAX('MDA1'!K22, 'MDA2'!K22, 'T1'!M22, MAX(T3_R1!L22, T3_R2!L22)), MAX('MDA1'!L22, 'MDA2'!L22, 'T1'!N22, MAX(T3_R1!M22, T3_R2!M22))) -> 16990 | T22: =IF(AND(COUNTRY_INFO!J22>1,COUNTRY_INFO!J22<4),IF(COUNTRY_INFO!E22>MAX('MDA2'!J22,'T1'!L22,MAX(T3_R1!K22,T3_R2!K22)),MAX('MDA2'!J22,'T1'!L22,MAX(T3_R1!K22,T3_R2!K22)),COUNTRY_INFO!E22),0) -> 2101.85567 | U22: =IF(AND(COUNTRY_INFO!J22>1,COUNTRY_INFO!J22<4), IF(T22/COUNTRY_INFO!E22*100<>0, IF(T22/COUNTRY_INFO!E22*100>100,100,T22/COUNTRY_INFO!E22*100), "-"),0) -> 85.37187937 | V22: =IF(AND(COUNTRY_INFO!J22>1,COUNTRY_INFO!J22<4),IF(COUNTRY_INFO!F22>MAX('MDA1'!K22,'MDA2'!K22,'T1'!M22,MAX(T3_R1!L22,T3_R2!L22)),MAX('MDA1'!K22,'MDA2'!K22,'T1'!M22,MAX(T3_R1!L22,T3_R2!L22)),COUNTRY_INFO!F22),0) -> 4203.71134 | W22: =IF(AND(COUNTRY_INFO!J22>1,COUNTRY_INFO!J22<4), IF(V22/COUNTRY_INFO!F22*100<>0, IF(V22/COUNTRY_INFO!F22*100>100,100,V22/COUNTRY_INFO!F22*100), "-"),0) -> 57.8704755 | X22: 6305.56701 | Y22: =IF(AND(COUNTRY_INFO!J22>1,COUNTRY_INFO!J22<4), IF(S22/P22*100<>0, IF(X22/P22*100>100,100,X22/P22*100), "-"),0) -> 64.83206879 | Z22: =COUNTRY_INFO!O22 -> Non requis | AC22: =MAX('T1'!L22,'T2'!J22)+MAX('T1'!M22,'T2'!K22)+MAX('T1'!N22,'T2'!L22) -> 0 | AD22: =IF(COUNTRY_INFO!K22=1,IF(COUNTRY_INFO!F22*0.33>MAX('T1'!M22,'T2'!K22),MAX('T1'!M22,'T2'!K22),COUNTRY_INFO!F22*0.33),IF(COUNTRY_INFO!K22=2,IF(COUNTRY_INFO!F22*0.5>MAX('T1'!M22,'T2'!K22),MAX('T1'!M22,'T2'!K22),COUNTRY_INFO!F22*0.5),IF(COUNTRY_INFO!K22=3,IF(COUNTRY_INFO!F22>MAX('T1'!M22,'T2'!K22),MAX('T1'!M22,'T2'!K22),COUNTRY_INFO!F22),0))) -> 0 | AE22: =IF(AND(COUNTRY_INFO!K22>0,COUNTRY_INFO!K22<4),IF(Z22>0,IF(COUNTRY_INFO!K22=1, AD22/(COUNTRY_INFO!F22*0.33)*100, IF(COUNTRY_INFO!K22=2, AD22/(COUNTRY_INFO!F22*0.5)*100, IF(COUNTRY_INFO!K22=3, AD22/COUNTRY_INFO!F22*100))),"-"),0) -> 0 | AF22: =IF(COUNTRY_INFO!K22=2,IF(COUNTRY_INFO!G22*0.2>MAX('T1'!N22,'T2'!L22),MAX('T1'!N22,'T2'!L22),COUNTRY_INFO!G22*0.2),IF(COUNTRY_INFO!K22=3,IF(COUNTRY_INFO!G22>MAX('T1'!N22,'T2'!L22),MAX('T1'!N22,'T2'!L22),COUNTRY_INFO!G22),0)) -> 0 | AG22: =IF(AND(COUNTRY_INFO!K22>0,COUNTRY_INFO!K22<4),IF(Z22>0,IF(COUNTRY_INFO!K22=1, 0, IF(COUNTRY_INFO!K22=2, AF22/(COUNTRY_INFO!G22*0.2)*100, IF(COUNTRY_INFO!K22=3, AF22/COUNTRY_INFO!G22*100))),"-"),0) -> 0 | AH22: 0 | AI22: =IF(AND(COUNTRY_INFO!K22>0,COUNTRY_INFO!K22<4), IF(AC22/Z22*100<>0, IF(AH22/Z22*100>100,100,AH22/Z22*100), "-"),0) -> 0 | AK22: =IF(AND(D22<>0, D22<>"Inconnu",D22<>"Interrompu",D22<>"Non requis"),D22/COUNTRY_INFO!D22, 0) -> 1 | AL22: =IF(AND(J22<>0,J22<>"Inconnu",J22<>"Interrompu",J22<>"Non requis"),J22/COUNTRY_INFO!D22, 0) -> 0 | AM22: =IF(AND(P22<>0,P22<>"Inconnu",P22<>"Non requis"),P22/(COUNTRY_INFO!E22+COUNTRY_INFO!F22), 0) -> 1 | AN22: =IF(AND(Z22<>0,Z22<>"Inconnu",Z22<>"Non requis"),IF(COUNTRY_INFO!K22=1,1,IF(COUNTRY_INFO!K22=2,0.5*COUNTRY_INFO!F22/(0.5*COUNTRY_INFO!F22+0.2*COUNTRY_INFO!G22),IF(COUNTRY_INFO!K22=3,COUNTRY_INFO!F22/(COUNTRY_INFO!F22+COUNTRY_INFO!G22)))),0) -> 0 | AO22: =IF(AND(Z22<>0,Z22<>"Inconnu",Z22<>"Non requis"),IF(COUNTRY_INFO!K22=1,0,IF(COUNTRY_INFO!K22=2,0.2*COUNTRY_INFO!G22/(0.5*COUNTRY_INFO!F22+0.2*COUNTRY_INFO!G22),IF(COUNTRY_INFO!K22=3,COUNTRY_INFO!G22/(COUNTRY_INFO!F22+COUNTRY_INFO!G22)))),0) -> 0 | AP22: =MAX(COUNTRY_INFO!D22*AK22*PROFILE!$G$7,COUNTRY_INFO!D22*AL22*PROFILE!$G$7) -> 1513.220031 | AQ22: =MAX(COUNTRY_INFO!D22*AK22*PROFILE!$G$8,COUNTRY_INFO!D22*AL22*PROFILE!$G$8,COUNTRY_INFO!D22*AM22*PROFILE!$G$8) -> 2462.081596 | AR22: =MAX(COUNTRY_INFO!D22*AK22*PROFILE!$G$9,COUNTRY_INFO!D22*AL22*PROFILE!$G$9,COUNTRY_INFO!D22*AM22*PROFILE!$G$9,IF(AND(DISTRICT!Z22<>"Inconnu",Z22<>"Non requis"),COUNTRY_INFO!O22*DISTRICT!AN22,0)) -> 7263.906246 | AS22: =MAX(COUNTRY_INFO!D22*AK22*PROFILE!$G$10,COUNTRY_INFO!D22*AL22*PROFILE!$G$10,IF(AND(DISTRICT!Z22<>"Inconnu",Z22<>"Non requis"),COUNTRY_INFO!O22*DISTRICT!AO22,0)) -> 17862.79213 | AT22: 29102 | AU22: Y | AV22: =MAX('MDA2'!J22,'T1'!L22,'T2'!J22,T3_R1!K22,T3_R2!K22) -> 2101.85567 | AW22: =MAX('MDA1'!K22,'MDA2'!K22,'MDA3'!I22,'MDA3'!L22,'T1'!M22,'T2'!K22,T3_R1!L22,T3_R2!L22) -> 4203.71134 | AX22: =MAX('MDA1'!L22,'MDA2'!L22,'MDA3'!J22,'MDA3'!M22,'T1'!N22,'T2'!L22,T3_R1!M22,T3_R2!M22) -> 10684.43299 | AY22: 16990 | AZ22: =MAX('MDA2'!J22,T22) -> 2101.85567 | BA22: =MAX('MDA1'!K22,'MDA2'!K22,'MDA3'!I22,'MDA3'!L22,V22,AD22) -> 4203.71134 | BB22: =MAX('MDA1'!L22,'MDA2'!L22,'MDA3'!J22,'MDA3'!M22,AF22) -> 10684.43299 | BC22: 16990 | BD22: 58.38086729
A23: =IF(COUNTRY_INFO!A23=0," ",COUNTRY_INFO!A23) -> COMORES | B23: =IF(COUNTRY_INFO!B23=0," ",COUNTRY_INFO!B23) -> MWALI | C23: =IF(COUNTRY_INFO!C23=0," ",COUNTRY_INFO!C23) -> Djando | D23: =COUNTRY_INFO!L23 -> 9860 | E23: 2719 | F23: 2260 | G23: =MAX('MDA1'!M23,'MDA2'!M23) -> 4979 | H23: =IF(AND(COUNTRY_INFO!H23>0,COUNTRY_INFO!H23<4),IF(D23>MAX('MDA1'!M23,'MDA2'!M23),MAX('MDA1'!M23,'MDA2'!M23),D23),0) -> 4979 | I23: =IF(AND(COUNTRY_INFO!H23>0,COUNTRY_INFO!H23<4), IF(G23/D23*100<>0, IF(G23/D23*100>100,100,G23/D23*100), "-"),0) -> 50.4969574 | J23: =COUNTRY_INFO!M23 -> Non requis | M23: =MAX('MDA1'!M23,MAX('MDA3'!I23,'MDA3'!L23)+MAX('MDA3'!J23,'MDA3'!M23)) -> 0 | N23: =IF(AND(COUNTRY_INFO!I23>0,COUNTRY_INFO!I23<4),IF(J23>MAX('MDA1'!M23,MAX('MDA3'!I23,'MDA3'!L23)+MAX('MDA3'!J23,'MDA3'!M23)),MAX('MDA1'!M23,MAX('MDA3'!I23,'MDA3'!L23)+MAX('MDA3'!J23,'MDA3'!M23)),J23),0) -> 0 | O23: =IF(AND(COUNTRY_INFO!I23>0,COUNTRY_INFO!I23<4), IF(M23/J23*100<>0, IF(M23/J23*100>100,100,M23/J23*100), "-"),0) -> 0 | P23: =COUNTRY_INFO!N23 -> 3295 | S23: =SUM(MAX('MDA2'!J23, 'T1'!L23, MAX(T3_R1!K23, T3_R2!K23)), MAX('MDA1'!K23, 'MDA2'!K23, 'T1'!M23, MAX(T3_R1!L23, T3_R2!L23)), MAX('MDA1'!L23, 'MDA2'!L23, 'T1'!N23, MAX(T3_R1!M23, T3_R2!M23))) -> 4979 | T23: =IF(AND(COUNTRY_INFO!J23>1,COUNTRY_INFO!J23<4),IF(COUNTRY_INFO!E23>MAX('MDA2'!J23,'T1'!L23,MAX(T3_R1!K23,T3_R2!K23)),MAX('MDA2'!J23,'T1'!L23,MAX(T3_R1!K23,T3_R2!K23)),COUNTRY_INFO!E23),0) -> 615.9587629 | U23: =IF(AND(COUNTRY_INFO!J23>1,COUNTRY_INFO!J23<4), IF(T23/COUNTRY_INFO!E23*100<>0, IF(T23/COUNTRY_INFO!E23*100>100,100,T23/COUNTRY_INFO!E23*100), "-"),0) -> 73.85596677 | V23: =IF(AND(COUNTRY_INFO!J23>1,COUNTRY_INFO!J23<4),IF(COUNTRY_INFO!F23>MAX('MDA1'!K23,'MDA2'!K23,'T1'!M23,MAX(T3_R1!L23,T3_R2!L23)),MAX('MDA1'!K23,'MDA2'!K23,'T1'!M23,MAX(T3_R1!L23,T3_R2!L23)),COUNTRY_INFO!F23),0) -> 1231.917526 | W23: =IF(AND(COUNTRY_INFO!J23>1,COUNTRY_INFO!J23<4), IF(V23/COUNTRY_INFO!F23*100<>0, IF(V23/COUNTRY_INFO!F23*100>100,100,V23/COUNTRY_INFO!F23*100), "-"),0) -> 50.05759958 | X23: 1847.876289 | Y23: =IF(AND(COUNTRY_INFO!J23>1,COUNTRY_INFO!J23<4), IF(S23/P23*100<>0, IF(X23/P23*100>100,100,X23/P23*100), "-"),0) -> 56.08122272 | Z23: =COUNTRY_INFO!O23 -> Non requis | AC23: =MAX('T1'!L23,'T2'!J23)+MAX('T1'!M23,'T2'!K23)+MAX('T1'!N23,'T2'!L23) -> 0 | AD23: =IF(COUNTRY_INFO!K23=1,IF(COUNTRY_INFO!F23*0.33>MAX('T1'!M23,'T2'!K23),MAX('T1'!M23,'T2'!K23),COUNTRY_INFO!F23*0.33),IF(COUNTRY_INFO!K23=2,IF(COUNTRY_INFO!F23*0.5>MAX('T1'!M23,'T2'!K23),MAX('T1'!M23,'T2'!K23),COUNTRY_INFO!F23*0.5),IF(COUNTRY_INFO!K23=3,IF(COUNTRY_INFO!F23>MAX('T1'!M23,'T2'!K23),MAX('T1'!M23,'T2'!K23),COUNTRY_INFO!F23),0))) -> 0 | AE23: =IF(AND(COUNTRY_INFO!K23>0,COUNTRY_INFO!K23<4),IF(Z23>0,IF(COUNTRY_INFO!K23=1, AD23/(COUNTRY_INFO!F23*0.33)*100, IF(COUNTRY_INFO!K23=2, AD23/(COUNTRY_INFO!F23*0.5)*100, IF(COUNTRY_INFO!K23=3, AD23/COUNTRY_INFO!F23*100))),"-"),0) -> 0 | AF23: =IF(COUNTRY_INFO!K23=2,IF(COUNTRY_INFO!G23*0.2>MAX('T1'!N23,'T2'!L23),MAX('T1'!N23,'T2'!L23),COUNTRY_INFO!G23*0.2),IF(COUNTRY_INFO!K23=3,IF(COUNTRY_INFO!G23>MAX('T1'!N23,'T2'!L23),MAX('T1'!N23,'T2'!L23),COUNTRY_INFO!G23),0)) -> 0 | AG23: =IF(AND(COUNTRY_INFO!K23>0,COUNTRY_INFO!K23<4),IF(Z23>0,IF(COUNTRY_INFO!K23=1, 0, IF(COUNTRY_INFO!K23=2, AF23/(COUNTRY_INFO!G23*0.2)*100, IF(COUNTRY_INFO!K23=3, AF23/COUNTRY_INFO!G23*100))),"-"),0) -> 0 | AH23: 0 | AI23: =IF(AND(COUNTRY_INFO!K23>0,COUNTRY_INFO!K23<4), IF(AC23/Z23*100<>0, IF(AH23/Z23*100>100,100,AH23/Z23*100), "-"),0) -> 0 | AK23: =IF(AND(D23<>0, D23<>"Inconnu",D23<>"Interrompu",D23<>"Non requis"),D23/COUNTRY_INFO!D23, 0) -> 1 | AL23: =IF(AND(J23<>0,J23<>"Inconnu",J23<>"Interrompu",J23<>"Non requis"),J23/COUNTRY_INFO!D23, 0) -> 0 | AM23: =IF(AND(P23<>0,P23<>"Inconnu",P23<>"Non requis"),P23/(COUNTRY_INFO!E23+COUNTRY_INFO!F23), 0) -> 1 | AN23: =IF(AND(Z23<>0,Z23<>"Inconnu",Z23<>"Non requis"),IF(COUNTRY_INFO!K23=1,1,IF(COUNTRY_INFO!K23=2,0.5*COUNTRY_INFO!F23/(0.5*COUNTRY_INFO!F23+0.2*COUNTRY_INFO!G23),IF(COUNTRY_INFO!K23=3,COUNTRY_INFO!F23/(COUNTRY_INFO!F23+COUNTRY_INFO!G23)))),0) -> 0 | AO23: =IF(AND(Z23<>0,Z23<>"Inconnu",Z23<>"Non requis"),IF(COUNTRY_INFO!K23=1,0,IF(COUNTRY_INFO!K23=2,0.2*COUNTRY_INFO!G23/(0.5*COUNTRY_INFO!F23+0.2*COUNTRY_INFO!G23),IF(COUNTRY_INFO!K23=3,COUNTRY_INFO!G23/(COUNTRY_INFO!F23+COUNTRY_INFO!G23)))),0) -> 0 | AP23: =MAX(COUNTRY_INFO!D23*AK23*PROFILE!$G$7,COUNTRY_INFO!D23*AL23*PROFILE!$G$7) -> 512.6915505 | AQ23: =MAX(COUNTRY_INFO!D23*AK23*PROFILE!$G$8,COUNTRY_INFO!D23*AL23*PROFILE!$G$8,COUNTRY_INFO!D23*AM23*PROFILE!$G$8) -> 834.1737522 | AR23: =MAX(COUNTRY_INFO!D23*AK23*PROFILE!$G$9,COUNTRY_INFO!D23*AL23*PROFILE!$G$9,COUNTRY_INFO!D23*AM23*PROFILE!$G$9,IF(AND(DISTRICT!Z23<>"Inconnu",Z23<>"Non requis"),COUNTRY_INFO!O23*DISTRICT!AN23,0)) -> 2461.07194 | AS23: =MAX(COUNTRY_INFO!D23*AK23*PROFILE!$G$10,COUNTRY_INFO!D23*AL23*PROFILE!$G$10,IF(AND(DISTRICT!Z23<>"Inconnu",Z23<>"Non requis"),COUNTRY_INFO!O23*DISTRICT!AO23,0)) -> 6052.062758 | AT23: 9860 | AU23: Y | AV23: =MAX('MDA2'!J23,'T1'!L23,'T2'!J23,T3_R1!K23,T3_R2!K23) -> 615.9587629 | AW23: =MAX('MDA1'!K23,'MDA2'!K23,'MDA3'!I23,'MDA3'!L23,'T1'!M23,'T2'!K23,T3_R1!L23,T3_R2!L23) -> 1231.917526 | AX23: =MAX('MDA1'!L23,'MDA2'!L23,'MDA3'!J23,'MDA3'!M23,'T1'!N23,'T2'!L23,T3_R1!M23,T3_R2!M23) -> 3131.123711 | AY23: 4979 | AZ23: =MAX('MDA2'!J23,T23) -> 615.9587629 | BA23: =MAX('MDA1'!K23,'MDA2'!K23,'MDA3'!I23,'MDA3'!L23,V23,AD23) -> 1231.917526 | BB23: =MAX('MDA1'!L23,'MDA2'!L23,'MDA3'!J23,'MDA3'!M23,AF23) -> 3131.123711 | BC23: 4979 | BD23: 50.4969574
A24: =IF(COUNTRY_INFO!A24=0," ",COUNTRY_INFO!A24) -> COMORES | B24: =IF(COUNTRY_INFO!B24=0," ",COUNTRY_INFO!B24) -> MWALI | C24: =IF(COUNTRY_INFO!C24=0," ",COUNTRY_INFO!C24) -> Fomboni | D24: =COUNTRY_INFO!L24 -> 34832 | E24: 13627 | F24: 11114 | G24: =MAX('MDA1'!M24,'MDA2'!M24) -> 24741 | H24: =IF(AND(COUNTRY_INFO!H24>0,COUNTRY_INFO!H24<4),IF(D24>MAX('MDA1'!M24,'MDA2'!M24),MAX('MDA1'!M24,'MDA2'!M24),D24),0) -> 24741 | I24: =IF(AND(COUNTRY_INFO!H24>0,COUNTRY_INFO!H24<4), IF(G24/D24*100<>0, IF(G24/D24*100>100,100,G24/D24*100), "-"),0) -> 71.02951309 | J24: =COUNTRY_INFO!M24 -> Non requis | M24: =MAX('MDA1'!M24,MAX('MDA3'!I24,'MDA3'!L24)+MAX('MDA3'!J24,'MDA3'!M24)) -> 0 | N24: =IF(AND(COUNTRY_INFO!I24>0,COUNTRY_INFO!I24<4),IF(J24>MAX('MDA1'!M24,MAX('MDA3'!I24,'MDA3'!L24)+MAX('MDA3'!J24,'MDA3'!M24)),MAX('MDA1'!M24,MAX('MDA3'!I24,'MDA3'!L24)+MAX('MDA3'!J24,'MDA3'!M24)),J24),0) -> 0 | O24: =IF(AND(COUNTRY_INFO!I24>0,COUNTRY_INFO!I24<4), IF(M24/J24*100<>0, IF(M24/J24*100>100,100,M24/J24*100), "-"),0) -> 0 | P24: =COUNTRY_INFO!N24 -> 11641 | S24: =SUM(MAX('MDA2'!J24, 'T1'!L24, MAX(T3_R1!K24, T3_R2!K24)), MAX('MDA1'!K24, 'MDA2'!K24, 'T1'!M24, MAX(T3_R1!L24, T3_R2!L24)), MAX('MDA1'!L24, 'MDA2'!L24, 'T1'!N24, MAX(T3_R1!M24, T3_R2!M24))) -> 24741 | T24: =IF(AND(COUNTRY_INFO!J24>1,COUNTRY_INFO!J24<4),IF(COUNTRY_INFO!E24>MAX('MDA2'!J24,'T1'!L24,MAX(T3_R1!K24,T3_R2!K24)),MAX('MDA2'!J24,'T1'!L24,MAX(T3_R1!K24,T3_R2!K24)),COUNTRY_INFO!E24),0) -> 2947 | U24: =IF(AND(COUNTRY_INFO!J24>1,COUNTRY_INFO!J24<4), IF(T24/COUNTRY_INFO!E24*100<>0, IF(T24/COUNTRY_INFO!E24*100>100,100,T24/COUNTRY_INFO!E24*100), "-"),0) -> 100 | V24: =IF(AND(COUNTRY_INFO!J24>1,COUNTRY_INFO!J24<4),IF(COUNTRY_INFO!F24>MAX('MDA1'!K24,'MDA2'!K24,'T1'!M24,MAX(T3_R1!L24,T3_R2!L24)),MAX('MDA1'!K24,'MDA2'!K24,'T1'!M24,MAX(T3_R1!L24,T3_R2!L24)),COUNTRY_INFO!F24),0) -> 6121.484536 | W24: =IF(AND(COUNTRY_INFO!J24>1,COUNTRY_INFO!J24<4), IF(V24/COUNTRY_INFO!F24*100<>0, IF(V24/COUNTRY_INFO!F24*100>100,100,V24/COUNTRY_INFO!F24*100), "-"),0) -> 70.41045015 | X24: 9068.484536 | Y24: =IF(AND(COUNTRY_INFO!J24>1,COUNTRY_INFO!J24<4), IF(S24/P24*100<>0, IF(X24/P24*100>100,100,X24/P24*100), "-"),0) -> 77.9012502 | Z24: =COUNTRY_INFO!O24 -> Non requis | AC24: =MAX('T1'!L24,'T2'!J24)+MAX('T1'!M24,'T2'!K24)+MAX('T1'!N24,'T2'!L24) -> 0 | AD24: =IF(COUNTRY_INFO!K24=1,IF(COUNTRY_INFO!F24*0.33>MAX('T1'!M24,'T2'!K24),MAX('T1'!M24,'T2'!K24),COUNTRY_INFO!F24*0.33),IF(COUNTRY_INFO!K24=2,IF(COUNTRY_INFO!F24*0.5>MAX('T1'!M24,'T2'!K24),MAX('T1'!M24,'T2'!K24),COUNTRY_INFO!F24*0.5),IF(COUNTRY_INFO!K24=3,IF(COUNTRY_INFO!F24>MAX('T1'!M24,'T2'!K24),MAX('T1'!M24,'T2'!K24),COUNTRY_INFO!F24),0))) -> 0 | AE24: =IF(AND(COUNTRY_INFO!K24>0,COUNTRY_INFO!K24<4),IF(Z24>0,IF(COUNTRY_INFO!K24=1, AD24/(COUNTRY_INFO!F24*0.33)*100, IF(COUNTRY_INFO!K24=2, AD24/(COUNTRY_INFO!F24*0.5)*100, IF(COUNTRY_INFO!K24=3, AD24/COUNTRY_INFO!F24*100))),"-"),0) -> 0 | AF24: =IF(COUNTRY_INFO!K24=2,IF(COUNTRY_INFO!G24*0.2>MAX('T1'!N24,'T2'!L24),MAX('T1'!N24,'T2'!L24),COUNTRY_INFO!G24*0.2),IF(COUNTRY_INFO!K24=3,IF(COUNTRY_INFO!G24>MAX('T1'!N24,'T2'!L24),MAX('T1'!N24,'T2'!L24),COUNTRY_INFO!G24),0)) -> 0 | AG24: =IF(AND(COUNTRY_INFO!K24>0,COUNTRY_INFO!K24<4),IF(Z24>0,IF(COUNTRY_INFO!K24=1, 0, IF(COUNTRY_INFO!K24=2, AF24/(COUNTRY_INFO!G24*0.2)*100, IF(COUNTRY_INFO!K24=3, AF24/COUNTRY_INFO!G24*100))),"-"),0) -> 0 | AH24: 0 | AI24: =IF(AND(COUNTRY_INFO!K24>0,COUNTRY_INFO!K24<4), IF(AC24/Z24*100<>0, IF(AH24/Z24*100>100,100,AH24/Z24*100), "-"),0) -> 0 | AK24: =IF(AND(D24<>0, D24<>"Inconnu",D24<>"Interrompu",D24<>"Non requis"),D24/COUNTRY_INFO!D24, 0) -> 1 | AL24: =IF(AND(J24<>0,J24<>"Inconnu",J24<>"Interrompu",J24<>"Non requis"),J24/COUNTRY_INFO!D24, 0) -> 0 | AM24: =IF(AND(P24<>0,P24<>"Inconnu",P24<>"Non requis"),P24/(COUNTRY_INFO!E24+COUNTRY_INFO!F24), 0) -> 1 | AN24: =IF(AND(Z24<>0,Z24<>"Inconnu",Z24<>"Non requis"),IF(COUNTRY_INFO!K24=1,1,IF(COUNTRY_INFO!K24=2,0.5*COUNTRY_INFO!F24/(0.5*COUNTRY_INFO!F24+0.2*COUNTRY_INFO!G24),IF(COUNTRY_INFO!K24=3,COUNTRY_INFO!F24/(COUNTRY_INFO!F24+COUNTRY_INFO!G24)))),0) -> 0 | AO24: =IF(AND(Z24<>0,Z24<>"Inconnu",Z24<>"Non requis"),IF(COUNTRY_INFO!K24=1,0,IF(COUNTRY_INFO!K24=2,0.2*COUNTRY_INFO!G24/(0.5*COUNTRY_INFO!F24+0.2*COUNTRY_INFO!G24),IF(COUNTRY_INFO!K24=3,COUNTRY_INFO!G24/(COUNTRY_INFO!F24+COUNTRY_INFO!G24)))),0) -> 0 | AP24: =MAX(COUNTRY_INFO!D24*AK24*PROFILE!$G$7,COUNTRY_INFO!D24*AL24*PROFILE!$G$7) -> 1811.163498 | AQ24: =MAX(COUNTRY_INFO!D24*AK24*PROFILE!$G$8,COUNTRY_INFO!D24*AL24*PROFILE!$G$8,COUNTRY_INFO!D24*AM24*PROFILE!$G$8) -> 2946.849912 | AR24: =MAX(COUNTRY_INFO!D24*AK24*PROFILE!$G$9,COUNTRY_INFO!D24*AL24*PROFILE!$G$9,COUNTRY_INFO!D24*AM24*PROFILE!$G$9,IF(AND(DISTRICT!Z24<>"Inconnu",Z24<>"Non requis"),COUNTRY_INFO!O24*DISTRICT!AN24,0)) -> 8694.12351 | AS24: =MAX(COUNTRY_INFO!D24*AK24*PROFILE!$G$10,COUNTRY_INFO!D24*AL24*PROFILE!$G$10,IF(AND(DISTRICT!Z24<>"Inconnu",Z24<>"Non requis"),COUNTRY_INFO!O24*DISTRICT!AO24,0)) -> 21379.86308 | AT24: 34832 | AU24: Y | AV24: =MAX('MDA2'!J24,'T1'!L24,'T2'!J24,T3_R1!K24,T3_R2!K24) -> 3060.742268 | AW24: =MAX('MDA1'!K24,'MDA2'!K24,'MDA3'!I24,'MDA3'!L24,'T1'!M24,'T2'!K24,T3_R1!L24,T3_R2!L24) -> 6121.484536 | AX24: =MAX('MDA1'!L24,'MDA2'!L24,'MDA3'!J24,'MDA3'!M24,'T1'!N24,'T2'!L24,T3_R1!M24,T3_R2!M24) -> 15558.7732 | AY24: 24741 | AZ24: =MAX('MDA2'!J24,T24) -> 3060.742268 | BA24: =MAX('MDA1'!K24,'MDA2'!K24,'MDA3'!I24,'MDA3'!L24,V24,AD24) -> 6121.484536 | BB24: =MAX('MDA1'!L24,'MDA2'!L24,'MDA3'!J24,'MDA3'!M24,AF24) -> 15558.7732 | BC24: 24741 | BD24: 71.02951309
A25: =IF(COUNTRY_INFO!A25=0," ",COUNTRY_INFO!A25) -> COMORES | B25: =IF(COUNTRY_INFO!B25=0," ",COUNTRY_INFO!B25) -> MWALI | C25: =IF(COUNTRY_INFO!C25=0," ",COUNTRY_INFO!C25) -> Nioumachoua | D25: =COUNTRY_INFO!L25 -> 9698 | E25: 3555 | F25: 2810 | G25: =MAX('MDA1'!M25,'MDA2'!M25) -> 6365 | H25: =IF(AND(COUNTRY_INFO!H25>0,COUNTRY_INFO!H25<4),IF(D25>MAX('MDA1'!M25,'MDA2'!M25),MAX('MDA1'!M25,'MDA2'!M25),D25),0) -> 6365 | I25: =IF(AND(COUNTRY_INFO!H25>0,COUNTRY_INFO!H25<4), IF(G25/D25*100<>0, IF(G25/D25*100>100,100,G25/D25*100), "-"),0) -> 65.63208909 | J25: =COUNTRY_INFO!M25 -> Non requis | M25: =MAX('MDA1'!M25,MAX('MDA3'!I25,'MDA3'!L25)+MAX('MDA3'!J25,'MDA3'!M25)) -> 0 | N25: =IF(AND(COUNTRY_INFO!I25>0,COUNTRY_INFO!I25<4),IF(J25>MAX('MDA1'!M25,MAX('MDA3'!I25,'MDA3'!L25)+MAX('MDA3'!J25,'MDA3'!M25)),MAX('MDA1'!M25,MAX('MDA3'!I25,'MDA3'!L25)+MAX('MDA3'!J25,'MDA3'!M25)),J25),0) -> 0 | O25: =IF(AND(COUNTRY_INFO!I25>0,COUNTRY_INFO!I25<4), IF(M25/J25*100<>0, IF(M25/J25*100>100,100,M25/J25*100), "-"),0) -> 0 | P25: =COUNTRY_INFO!N25 -> 3241 | S25: =SUM(MAX('MDA2'!J25, 'T1'!L25, MAX(T3_R1!K25, T3_R2!K25)), MAX('MDA1'!K25, 'MDA2'!K25, 'T1'!M25, MAX(T3_R1!L25, T3_R2!L25)), MAX('MDA1'!L25, 'MDA2'!L25, 'T1'!N25, MAX(T3_R1!M25, T3_R2!M25))) -> 6365 | T25: =IF(AND(COUNTRY_INFO!J25>1,COUNTRY_INFO!J25<4),IF(COUNTRY_INFO!E25>MAX('MDA2'!J25,'T1'!L25,MAX(T3_R1!K25,T3_R2!K25)),MAX('MDA2'!J25,'T1'!L25,MAX(T3_R1!K25,T3_R2!K25)),COUNTRY_INFO!E25),0) -> 787.4226804 | U25: =IF(AND(COUNTRY_INFO!J25>1,COUNTRY_INFO!J25<4), IF(T25/COUNTRY_INFO!E25*100<>0, IF(T25/COUNTRY_INFO!E25*100>100,100,T25/COUNTRY_INFO!E25*100), "-"),0) -> 96.02715615 | V25: =IF(AND(COUNTRY_INFO!J25>1,COUNTRY_INFO!J25<4),IF(COUNTRY_INFO!F25>MAX('MDA1'!K25,'MDA2'!K25,'T1'!M25,MAX(T3_R1!L25,T3_R2!L25)),MAX('MDA1'!K25,'MDA2'!K25,'T1'!M25,MAX(T3_R1!L25,T3_R2!L25)),COUNTRY_INFO!F25),0) -> 1574.845361 | W25: =IF(AND(COUNTRY_INFO!J25>1,COUNTRY_INFO!J25<4), IF(V25/COUNTRY_INFO!F25*100<>0, IF(V25/COUNTRY_INFO!F25*100>100,100,V25/COUNTRY_INFO!F25*100), "-"),0) -> 65.04937467 | X25: 2362.268041 | Y25: =IF(AND(COUNTRY_INFO!J25>1,COUNTRY_INFO!J25<4), IF(S25/P25*100<>0, IF(X25/P25*100>100,100,X25/P25*100), "-"),0) -> 72.88701145 | Z25: =COUNTRY_INFO!O25 -> Non requis | AC25: =MAX('T1'!L25,'T2'!J25)+MAX('T1'!M25,'T2'!K25)+MAX('T1'!N25,'T2'!L25) -> 0 | AD25: =IF(COUNTRY_INFO!K25=1,IF(COUNTRY_INFO!F25*0.33>MAX('T1'!M25,'T2'!K25),MAX('T1'!M25,'T2'!K25),COUNTRY_INFO!F25*0.33),IF(COUNTRY_INFO!K25=2,IF(COUNTRY_INFO!F25*0.5>MAX('T1'!M25,'T2'!K25),MAX('T1'!M25,'T2'!K25),COUNTRY_INFO!F25*0.5),IF(COUNTRY_INFO!K25=3,IF(COUNTRY_INFO!F25>MAX('T1'!M25,'T2'!K25),MAX('T1'!M25,'T2'!K25),COUNTRY_INFO!F25),0))) -> 0 | AE25: =IF(AND(COUNTRY_INFO!K25>0,COUNTRY_INFO!K25<4),IF(Z25>0,IF(COUNTRY_INFO!K25=1, AD25/(COUNTRY_INFO!F25*0.33)*100, IF(COUNTRY_INFO!K25=2, AD25/(COUNTRY_INFO!F25*0.5)*100, IF(COUNTRY_INFO!K25=3, AD25/COUNTRY_INFO!F25*100))),"-"),0) -> 0 | AF25: =IF(COUNTRY_INFO!K25=2,IF(COUNTRY_INFO!G25*0.2>MAX('T1'!N25,'T2'!L25),MAX('T1'!N25,'T2'!L25),COUNTRY_INFO!G25*0.2),IF(COUNTRY_INFO!K25=3,IF(COUNTRY_INFO!G25>MAX('T1'!N25,'T2'!L25),MAX('T1'!N25,'T2'!L25),COUNTRY_INFO!G25),0)) -> 0 | AG25: =IF(AND(COUNTRY_INFO!K25>0,COUNTRY_INFO!K25<4),IF(Z25>0,IF(COUNTRY_INFO!K25=1, 0, IF(COUNTRY_INFO!K25=2, AF25/(COUNTRY_INFO!G25*0.2)*100, IF(COUNTRY_INFO!K25=3, AF25/COUNTRY_INFO!G25*100))),"-"),0) -> 0 | AH25: 0 | AI25: =IF(AND(COUNTRY_INFO!K25>0,COUNTRY_INFO!K25<4), IF(AC25/Z25*100<>0, IF(AH25/Z25*100>100,100,AH25/Z25*100), "-"),0) -> 0 | AK25: =IF(AND(D25<>0, D25<>"Inconnu",D25<>"Interrompu",D25<>"Non requis"),D25/COUNTRY_INFO!D25, 0) -> 1 | AL25: =IF(AND(J25<>0,J25<>"Inconnu",J25<>"Interrompu",J25<>"Non requis"),J25/COUNTRY_INFO!D25, 0) -> 0 | AM25: =IF(AND(P25<>0,P25<>"Inconnu",P25<>"Non requis"),P25/(COUNTRY_INFO!E25+COUNTRY_INFO!F25), 0) -> 1 | AN25: =IF(AND(Z25<>0,Z25<>"Inconnu",Z25<>"Non requis"),IF(COUNTRY_INFO!K25=1,1,IF(COUNTRY_INFO!K25=2,0.5*COUNTRY_INFO!F25/(0.5*COUNTRY_INFO!F25+0.2*COUNTRY_INFO!G25),IF(COUNTRY_INFO!K25=3,COUNTRY_INFO!F25/(COUNTRY_INFO!F25+COUNTRY_INFO!G25)))),0) -> 0 | AO25: =IF(AND(Z25<>0,Z25<>"Inconnu",Z25<>"Non requis"),IF(COUNTRY_INFO!K25=1,0,IF(COUNTRY_INFO!K25=2,0.2*COUNTRY_INFO!G25/(0.5*COUNTRY_INFO!F25+0.2*COUNTRY_INFO!G25),IF(COUNTRY_INFO!K25=3,COUNTRY_INFO!G25/(COUNTRY_INFO!F25+COUNTRY_INFO!G25)))),0) -> 0 | AP25: =MAX(COUNTRY_INFO!D25*AK25*PROFILE!$G$7,COUNTRY_INFO!D25*AL25*PROFILE!$G$7) -> 504.2680179 | AQ25: =MAX(COUNTRY_INFO!D25*AK25*PROFILE!$G$8,COUNTRY_INFO!D25*AL25*PROFILE!$G$8,COUNTRY_INFO!D25*AM25*PROFILE!$G$8) -> 820.4682605 | AR25: =MAX(COUNTRY_INFO!D25*AK25*PROFILE!$G$9,COUNTRY_INFO!D25*AL25*PROFILE!$G$9,COUNTRY_INFO!D25*AM25*PROFILE!$G$9,IF(AND(DISTRICT!Z25<>"Inconnu",Z25<>"Non requis"),COUNTRY_INFO!O25*DISTRICT!AN25,0)) -> 2420.636478 | AS25: =MAX(COUNTRY_INFO!D25*AK25*PROFILE!$G$10,COUNTRY_INFO!D25*AL25*PROFILE!$G$10,IF(AND(DISTRICT!Z25<>"Inconnu",Z25<>"Non requis"),COUNTRY_INFO!O25*DISTRICT!AO25,0)) -> 5952.627244 | AT25: 9698 | AU25: Y | AV25: =MAX('MDA2'!J25,'T1'!L25,'T2'!J25,T3_R1!K25,T3_R2!K25) -> 787.4226804 | AW25: =MAX('MDA1'!K25,'MDA2'!K25,'MDA3'!I25,'MDA3'!L25,'T1'!M25,'T2'!K25,T3_R1!L25,T3_R2!L25) -> 1574.845361 | AX25: =MAX('MDA1'!L25,'MDA2'!L25,'MDA3'!J25,'MDA3'!M25,'T1'!N25,'T2'!L25,T3_R1!M25,T3_R2!M25) -> 4002.731959 | AY25: 6365 | AZ25: =MAX('MDA2'!J25,T25) -> 787.4226804 | BA25: =MAX('MDA1'!K25,'MDA2'!K25,'MDA3'!I25,'MDA3'!L25,V25,AD25) -> 1574.845361 | BB25: =MAX('MDA1'!L25,'MDA2'!L25,'MDA3'!J25,'MDA3'!M25,AF25) -> 4002.731959 | BC25: 6365 | BD25: 65.63208909

Sheet SUMMARY
B2: Formulaire de Rapport Commun v.3.1
B4: Pays | D4: =IF(INTRO!$E$34<>0,INTRO!$E$34," ") -> COMORES | G4: Année | H4: =IF(INTRO!$E$36<>0,INTRO!$E$36," ") -> 2019
B6: Les autorités nationales sont priées de compléter ce formulaire de rapport commun et de le soumettre à l'Organisation mondiale de la Santé avant le 15 août de l'année en cours pour rapporter les données des activités de chimioprévention mises en oeuvre l'année précédente.
B14: Nombre de personnes ayant reçu un traitement (au moins une fois) pour les maladies
E16: EAPréS | F16: EAS | G16: Adultes | H16: Total
B17: Filariose lymphatique | E17: 62209.36082 | F17: 124418.7216 | G17: 316230.9175 | H17: =SUM(E17:G17) -> 502859
B18: Onchocercose | E18: Non admissible | F18: 0 | G18: 0 | H18: =SUM(E18:G18) -> 0
B19: Géohelminthiases | E19: 62211 | F19: 124419 | G19: 316230 | H19: =SUM(E19:G19) -> 502860
B20: Schistosomiase | E20: Non ciblé | F20: 0 | G20: 0 | H20: =SUM(E20:G20) -> 0
B22: Couverture des interventions de CP contre les maladies (%)
G24: Géographique | H24: National
B25: Filariose lymphatique | G25: 100 | H25: 63.7488226
B26: Onchocercose | G26: 0 | H26: 0
B27: Géohelminthiases | G27: 100 | H27: 71.41302676
B28: Schistosomiase | G28: 0 | H28: 0
B30: Nombre de personnes traitées et couverture du programme en pourcentage, par intervention de CP
D32: EAPréS | E32: EAS | F32: Adultes | G32: Total | H32: Couverture
B33: MDA 1 (IVM+ALB) | D33: Non admissible | E33: ='MDA1'!$K$4 -> 0 | F33: ='MDA1'!$L$4 -> 0 | G33: ='MDA1'!$M$4 -> 0 | H33: ='MDA1'!$Q$4 -> 
B34: MDA 2 (DEC+ALB) | D34: ='MDA2'!$J$4 -> 62209.36082 | E34: ='MDA2'!$K$4 -> 124418.7216 | F34: ='MDA2'!$L$4 -> 316230.9175 | G34: ='MDA2'!$M$4 -> 502859 | H34: ='MDA2'!$Q$4 -> 67.24538879
B35: MDA 3 (IVM) | D35: Non admissible | E35: ='MDA3'!$O$4 -> 0 | F35: ='MDA3'!$P$4 -> 0 | G35: ='MDA3'!$Q$4 -> 0 | H35: ='MDA3'!$T$4 -> 
B36: T 1 (PZQ+ALB/MBD) | D36: =IF('T1'!$L$4<>0,'T1'!$L$4,"Non ciblé") -> Non ciblé | E36: ='T1'!$M$4 -> 0 | F36: =IF('T1'!$N$4<>0,'T1'!$N$4,"Non ciblé") -> Non ciblé | G36: ='T1'!$O$4 -> 0 | H36: ='T1'!$S$4 -> 
B37: T 2 (PZQ) | D37: =IF('T2'!$J$4<>0,'T2'!$J$4,"Non ciblé") -> Non ciblé | E37: ='T2'!$K$4 -> 0 | F37: ='T2'!$L$4 -> 0 | G37: ='T2'!$M$4 -> 0 | H37: ='T2'!$Q$4 -> 
B38: T 3 (ALB/MBD) - tournée 1 | D38: =T3_R1!$K$4 -> 0 | E38: =T3_R1!$L$4 -> 0 | F38: =IF(T3_R1!$M$4<>0,T3_R1!$M$4,"Non ciblé") -> Non ciblé | G38: =T3_R1!$N$4 -> 0 | H38: =T3_R1!$R$4 -> 
B39: T 3 (ALB/MBD) - tournée 2 | D39: =T3_R2!$K$4 -> 0 | E39: =T3_R2!$L$4 -> 0 | F39: =IF(T3_R2!$M$4<>0,T3_R2!$M$4,"Non ciblé") -> Non ciblé | G39: =T3_R2!$N$4 -> 0 | H39: =T3_R2!$R$4 -> 
B41: Inventaire des médicaments pour la chimiothérapie préventive dans le pays
C43: IVM | D43: DEC | E43: ALB (FL) | F43: ALB (STH) | G43: MBD | H43: PZQ
B44: Disponible
B45: Distribué | D45: 1618661 | E45: 479367
B46: Gaspillé | D46: 632738
B47: Reçus | D47: 2339399 | E47: =468000+11367 -> 479367
B48: Restant | C48: =C44-C45-C46+C47 -> 0 | D48: 88000 | E48: 0 | F48: 0 | G48: 0 | H48: 0
B50: Veuillez indiquer le médicament qui a été utilisé pour traiter les EAPréS, et les mécanismes de distribution
B51: Médicament | D51: Mécanismes de distribution | G51: Source
B53: Remarques supplémentaires évenuelles concernant le rapport
B55: La population utilisée est celle issue de la projection des nouvelles données officicielle du recensement (RGPH) de 2017. Le stock physique disponible au niveau central en fin de la campagne est de 88 000 cp pour le DEC. Le progromme a reçu 468 000 cp d'ALB de l'OMS. Au cours de la campagne 2019, des médicaments (ALB) ont été fournis par la nutrition et le PEV pour faire face à la rupture. Des cas de boites vides ont été constatées pendant la répartition des médicaments et la distribution mais n'a pas été quantifiée.
B63: J’ai pris connaissance et accepté la politique de la communication de données de l’OMS
B64: Nom et signature du Coordonnateur MTN ou du Représentant du Ministère de la Santé : | E64: Chamssoudine Mohamed
E65: 2019-10-31
B66: Date:
B68: Veuillez envoyer le rapport national (signé et sous format électronique) au représentant de l'OMS du pays en mettant en copie :
B70: Siège de l'OMS | D70: PC_JointForms@who.int
B71: Bureau régional de l'OMS | D71: Conseiller régional MTN

Sheet PROFILE (hidden)
B2: Formulaire de Rapport Commun v.3.1 - CP
B4: Pays | D4: =IF(INTRO!$E$34<>0,INTRO!$E$34," ") -> COMORES | G4: Année | H4: =IF(INTRO!$E$36<>0,INTRO!$E$36," ") -> 2019
B5: !!! ATTENTION !!! Avant d’analyser les données dans le profil du pays, merci de vous assurer que le rapport dans l’onglet SUMMARY est bien mis à jour
B6: Population totale | G6: 1 | H6: =COUNTRY_INFO!D4 -> 788813
B7: Population — autres groupes d’âge | G7: =IF($H$6<>0,H7/$H$6,0) -> 0.05199711465 | H7: =H6-SUM(H8:H10) -> 41016
B8: Population — EAPréS | E8: =INTRO!B48 -> 2-4 years age | G8: =IF($H$6<>0,H8/$H$6,0) -> 0.08460180043 | H8: =COUNTRY_INFO!E4 -> 66735
B9: Population — EAS | E9: =INTRO!B49 -> 5-14 years age | G9: =IF($H$6<>0,H9/$H$6,0) -> 0.2496016166 | H9: =COUNTRY_INFO!F4 -> 196889
B10: Population — Adults | E10: =INTRO!B50 -> 15 years + | G10: 0.6137994683 | H10: =COUNTRY_INFO!G4 -> 484173
B12: Nombre total d’individus nécessitant une CP pour au moins une des maladies (FL, Oncho, STH, SCH) | H12: =DISTRICT!AT6 -> 788813
B13: Proportion du nombre d’individus nécessitant un CP pour au moins une maladie parmi la population totale | H13: =IF(H6<>0,H12/H6,0) -> 1
B14: Nombre d’UMOs nécessitant une CP pour au moins une des maladies (FL, Oncho, STH, SCH) | H14: =COUNTIF(DISTRICT!AT9:AT1000,">0") -> 17
B15: Nombre d’UMOs ayant reçu une CP pour au moins une des maladies (FL, Oncho, STH, SCH) | H15: =COUNTIF(DISTRICT!AY9:AY1000,">0") -> 17
B16: Proportion d’UMOs nécessitant une CP pour au moins une maladie et l’ayant reçue | H16: =IF(H14<>0,H15/H14,0) -> 1
B17: Nombre total d’individus ayant été traités pour au moins une maladie (FL, Oncho, STH, SCH) | H17: =DISTRICT!AY6 -> 502859
B18: Nombre total d’individus nécessitant un traitement ayant reçu une CP pour au moins une maladie (FL, Oncho, STH, SCH) | H18: =DISTRICT!BC6 -> 502859
B19: Couverture CP pour au moins une maladie (FL, Oncho, STH, SCH) | H19: =DISTRICT!BD6 -> 0.637488226
B20: Nombre d’UMOs ayant été traitées pour toutes les maladies nécessitant une CP dans ces unités | H20: =DISTRICT!AU6 -> 17
B21: Population nécessitant une CP dans des UMOs qui ont été traitées pour toutes les maladies requérant une CP | H21: =SUMIF(DISTRICT!AU9:AU1000,"Y",DISTRICT!AT9:AT1000) -> 788813
B22: Population ayant reçu une CP dans des UMOs qui ont été traitées pour toutes les maladies nécessitant une CP | H22: =SUMIF(DISTRICT!AU9:AU1000,"Y",DISTRICT!AY9:AY1000) -> 502859
E24: FL | F24: ONCHO | G24: STH | H24: SCH
B26: Maladies nécessitant une CP dans la pays | E26: =IF(INTRO!E38="Endémique","Yes","No") -> Yes | F26: =IF(INTRO!E40="Endémique","Yes","No") -> No | G26: =IF(INTRO!E42="Endémique","Yes","No") -> Yes | H26: =IF(INTRO!E44="Endémique","Yes","No") -> No
B27: Nombre d’UMOs dans le pays | E27: =IF(E26="Yes",INTRO!$E$46,"-") -> 17 | F27: =IF(F26="Yes",INTRO!$E$46,"-") -> - | G27: =IF(G26="Yes",INTRO!$E$46,"-") -> 17 | H27: =IF(H26="Yes",INTRO!$E$46,"-") -> -
B28: Nombre d’UMOs dont le statut d’endémicité est connu | E28: =IF(E26="Yes",E27-E29,"-") -> 17 | F28: =IF(F26="Yes",F27-F29,"-") -> - | G28: =IF(G26="Yes",G27-G29,"-") -> 17 | H28: =IF(H26="Yes",H27-H29,"-") -> -
B29: Nombre d’UMOs dont le statut d’endémicité est inconnu | E29: =IF(E26="Yes",E27-(992-COUNTIF(COUNTRY_INFO!H$9:H$1000,""))+COUNTIF(COUNTRY_INFO!H$9:H$1000,"=4"),"-") -> 0 | F29: =IF(F26="Yes",F27-(992-COUNTIF(COUNTRY_INFO!I$9:I$1000,""))+COUNTIF(COUNTRY_INFO!I$9:I$1000,"=4"),"-") -> - | G29: =IF(G26="Yes",G27-(992-COUNTIF(COUNTRY_INFO!J$9:J$1000,""))+COUNTIF(COUNTRY_INFO!J$9:J$1000,"=4")+COUNTIF(COUNTRY_INFO!J$9:J$1000,"=5"),"-") -> 0 | H29: =IF(H26="Yes",H27-(992-COUNTIF(COUNTRY_INFO!K$9:K$1000,""))+COUNTIF(COUNTRY_INFO!K$9:K$1000,"=4")+COUNTIF(COUNTRY_INFO!K$9:K$1000,"=5"),"-") -> -
B30: Nombre d’UMOs non-endémiques | E30: =IF(E26="Yes",COUNTIF(COUNTRY_INFO!H$9:H$1000,"=0"),"-") -> 0 | F30: =IF(F26="Yes",COUNTIF(COUNTRY_INFO!I$9:I$1000,"=0"),"-") -> - | G30: =IF(G26="Yes",COUNTIF(COUNTRY_INFO!J$9:J$1000,"=0"),"-") -> 0 | H30: =IF(H26="Yes",COUNTIF(COUNTRY_INFO!K$9:K$1000,"=0"),"-") -> -
B31: Nombre d’UMOs nécessitant une CP (total) | E31: =COUNTIF(COUNTRY_INFO!H$9:H$1000,"=1") -> 17 | F31: =COUNTIF(COUNTRY_INFO!I$9:I$1000,"=1") -> 0 | G31: =SUM(G33:G34) -> 14 | H31: =SUM(H32:H34) -> 0
D32: prevalence basse | G32: =COUNTIF(COUNTRY_INFO!J$9:J$1000,"=1") -> 3 | H32: =COUNTIF(COUNTRY_INFO!K$9:K$1000,"=1") -> 0
D33: prevalence modérée | G33: =COUNTIF(COUNTRY_INFO!J$9:J$1000,"=2") -> 4 | H33: =COUNTIF(COUNTRY_INFO!K$9:K$1000,"=2") -> 0
D34: prevalence haute | G34: =COUNTIF(COUNTRY_INFO!J$9:J$1000,"=3") -> 10 | H34: =COUNTIF(COUNTRY_INFO!K$9:K$1000,"=3") -> 0
B35: Population nécessitant une CP dans le pays (total) | E35: =COUNTRY_INFO!L4 -> 788813 | F35: =COUNTRY_INFO!M4 -> 0 | G35: =COUNTRY_INFO!N4 -> 231998 | H35: =COUNTRY_INFO!O4 -> 0
C36: EAPréS | D36: prevalence modérée | G36: =SUMIF(COUNTRY_INFO!J$9:J$1000,"=2",COUNTRY_INFO!E$9:E$1000) -> 25255
D37: prevalence haute | G37: =SUMIF(COUNTRY_INFO!J$9:J$1000,"=3",COUNTRY_INFO!E$9:E$1000) -> 33474
C38: EAS | D38: prevalence basse | H38: =SUMIF(COUNTRY_INFO!K$9:K$1000,"=1",COUNTRY_INFO!F$9:F$1000)*0.33 -> 0
D39: prevalence modérée | G39: =SUMIF(COUNTRY_INFO!J$9:J$1000,"=2",COUNTRY_INFO!F$9:F$1000) -> 74510 | H39: =SUMIF(COUNTRY_INFO!K$9:K$1000,"=2",COUNTRY_INFO!F$9:F$1000)*0.5 -> 0
D40: prevalence haute | G40: =SUMIF(COUNTRY_INFO!J$9:J$1000,"=3",COUNTRY_INFO!F$9:F$1000) -> 98759 | H40: =SUMIF(COUNTRY_INFO!K$9:K$1000,"=3",COUNTRY_INFO!F$9:F$1000) -> 0
C41: Adults | D41: prevalence modérée | H41: =SUMIF(COUNTRY_INFO!K$9:K$1000,"=2",COUNTRY_INFO!G$9:G$1000)*0.2 -> 0
D42: prevalence haute | H42: =SUMIF(COUNTRY_INFO!K$9:K$1000,"=3",COUNTRY_INFO!G$9:G$1000) -> 0
B43: Nombre d’UMOs où une CP a été mise en oeuvre (total) | E43: =COUNTIF(DISTRICT!G$9:G$1000,">0") -> 17 | F43: =COUNTIF(DISTRICT!M$9:M$1000,">0") -> 0 | G43: =COUNTIF(DISTRICT!S$9:S$1000,">0") -> 17 | H43: =COUNTIF(DISTRICT!AC$9:AC$1000,">0") -> 0
B44: Nombre d’UMOs nécessitant une CP et où elle a été mise en oeuvre | E44: =COUNTIF(DISTRICT!H$9:H$1000,">0") -> 17 | F44: =COUNTIF(DISTRICT!N$9:N$1000,">0") -> 0 | G44: =COUNTIF(DISTRICT!X$9:X$1000,">0") -> 14 | H44: =COUNTIF(DISTRICT!AH$9:AH$1000,">0") -> 0
C45: EAPréS | G45: =COUNTIF(DISTRICT!T$9:T$1000,">0") -> 14
C46: EAS | G46: =COUNTIF(DISTRICT!V$9:V$1000,">0") -> 14 | H46: =COUNTIF(DISTRICT!AD$9:AD$1000,">0") -> 0
C47: Adults | H47: =COUNTIF(DISTRICT!AF$9:AF$1000,">0") -> 0
B48: Nombre d’individus traités (total) | E48: =DISTRICT!G4 -> 502859 | F48: =DISTRICT!M4 -> 0 | G48: =DISTRICT!S4 -> 502859 | H48: =DISTRICT!AC4 -> 0
C49: EAPréS | E49: =SUMMARY!$E17 -> 62209.36082 | F49: =SUMMARY!$E18 -> Non admissible | G49: =SUMMARY!$E19 -> 62211 | H49: =SUMMARY!$E20 -> Non ciblé
C50: EAS | E50: =SUMMARY!$F17 -> 124418.7216 | F50: =SUMMARY!$F18 -> 0 | G50: =SUMMARY!$F19 -> 124419 | H50: =SUMMARY!$F20 -> 0
C51: Adults | E51: =SUMMARY!$G17 -> 316230.9175 | F51: =SUMMARY!$G18 -> 0 | G51: =SUMMARY!$G19 -> 316230 | H51: =SUMMARY!$G20 -> 0
B52: Nombre d’individus nécessitant CP et traités (total) | E52: =DISTRICT!H4 -> 502859 | F52: =DISTRICT!N4 -> 0 | G52: =DISTRICT!X4 -> 165676.7938 | H52: =DISTRICT!AH4 -> 0
C53: EAPréS | G53: =DISTRICT!T4 -> 54344.75258
C54: EAS | G54: =DISTRICT!V4 -> 111332.0412 | H54: =DISTRICT!AD4 -> 0
C55: Adults | H55: =DISTRICT!AF4 -> 0
B56: Couverture géographique (tous âges) | E56: =IF(E31<>0,E44/E31,0) -> 1 | F56: =IF(F31<>0,F44/F31,0) -> 0 | G56: =IF(G31<>0,G44/G31,0) -> 1 | H56: =IF(H31<>0,H44/H31,0) -> 0
C57: EAPréS | G57: =IF(G31<>0,G45/G31,0) -> 1
C58: EAS | G58: =IF(G31<>0,G46/G31,0) -> 1 | H58: =IF(H31<>0,H46/H31,0) -> 0
C59: Adults | H59: =IF(SUM(H33:H34)<>0,H47/SUM(H33:H34),0) -> 0
B60: Couverture nationale (total) | E60: =IF(E35<>0,E52/E35,0) -> 0.637488226 | F60: =IF(F35<>0,F52/F35,0) -> 0 | G60: =IF(G35<>0,G52/G35,0) -> 0.7141302676 | H60: =IF(H35<>0,H52/H35,0) -> 0
C61: EAPréS | G61: =IF(SUM(G36:G37)<>0,G53/SUM(G36:G37),0) -> 0.9253478278
C62: EAS | G62: =IF(SUM(G39:G40)<>0,G54/SUM(G39:G40),0) -> 0.6425387186 | H62: =IF(SUM(H38:H40)<>0,H54/SUM(H38:H40),0) -> 0
C63: Adults | H63: =IF(SUM(H41:H42)<>0,H55/SUM(H41:H42),0) -> 0
E64: FL | F64: ONCHO | G64: STH | H64: SCH
B66: Nombre d’UMOs ayant réalisé une couverture efficace (tous âges) | E66: =COUNTIF(DISTRICT!I$9:I$1000,">=65") -> 10 | F66: =COUNTIF(DISTRICT!O$9:O$1000,">=65") -> 0 | G66: =COUNTIF(DISTRICT!Y$9:Y$1000,">=75") -> 6 | H66: =COUNTIF(DISTRICT!AI$9:AI$1000,">=75") -> 0
C67: EAPréS | G67: =COUNTIF(DISTRICT!U$9:U$1000,">=75") -> 13
C68: EAS | G68: =COUNTIF(DISTRICT!W$9:W$1000,">=75") -> 2 | H68: =COUNTIF(DISTRICT!AE$9:AE$1000,">=75") -> 0
C69: Adults | H69: =COUNTIF(DISTRICT!AG$9:AG$1000,">=75") -> 0
B70: Nombre d’individus nécessitant un traitement dans des UMOs ayant réalisé une couverture efficace (total) | E70: =SUMIF(DISTRICT!I9:I1000,">=65",DISTRICT!H9:H1000) -> 286882 | F70: =SUMIF(DISTRICT!O9:O1000,">=65",DISTRICT!N9:N1000) -> 0 | G70: =SUMIF(DISTRICT!Y9:Y1000,">=75",DISTRICT!X9:X1000) -> 67757.53608 | H70: =SUMIF(DISTRICT!AI9:AI1000,">=75",DISTRICT!AH9:AH1000) -> 0
C71: EAPréS | G71: =SUMIF(DISTRICT!U9:U1000,">=75",DISTRICT!T9:T1000) -> 53728.79381
C72: EAS | G72: =SUMIF(DISTRICT!W9:W1000,">=75",DISTRICT!V9:V1000) -> 18789.27835 | H72: =SUMIF(DISTRICT!AE9:AE1000,">=75",DISTRICT!AD9:AD1000) -> 0
C73: Adults | H73: =SUMIF(DISTRICT!AG9:AG1000,">=75",DISTRICT!AF9:AF1000) -> 0
B74: Proportion d’UMOs nécessitant une CP and ayant réalisé une couverture efficace (total) | E74: =IF(E44<>0,E66/E44,0) -> 0.5882352941 | F74: =IF(F44<>0,F66/F44,0) -> 0 | G74: =IF(G44<>0,G66/G44,0) -> 0.4285714286 | H74: =IF(H44<>0,H66/H44,0) -> 0
C75: EAPréS | G75: =IF(G45<>0,G67/G45,0) -> 0.9285714286
C76: EAS | G76: =IF(G46<>0,G68/G46,0) -> 0.1428571429 | H76: =IF(H46<>0,H68/H46,0) -> 0
C77: Adults | H77: =IF(H47<>0,H69/H47,0) -> 0
B78: Nombre d’UMOs où la CP a été stoppée (càd sous surveillance) | E78: =COUNTIF(COUNTRY_INFO!H$9:H$1000,"=99") -> 0 | F78: =COUNTIF(COUNTRY_INFO!I$9:I$1000,"=99") -> 0
B79: Nombre d’individus dans les UMOs ne nécessitant plus de CP (stoppée) | E79: =SUMIF(COUNTRY_INFO!H$9:H$1000,"=99",COUNTRY_INFO!D$9:D$1000) -> 0 | F79: =SUMIF(COUNTRY_INFO!I$9:I$1000,"=99",COUNTRY_INFO!D$9:D$1000) -> 0
B80: Nombre d’individus nécessitant une CP vivants dans des UMOs ciblées pour la CP | E80: =SUMIF(DISTRICT!H$9:H$1000,">0",DISTRICT!D$9:D$1000) -> 788813 | F80: =SUMIF(DISTRICT!N$9:N$1000,">0",DISTRICT!J$9:J$1000) -> 0 | G80: =SUMIF(DISTRICT!X$9:X$1000,">0",DISTRICT!P$9:P$1000) -> 231998 | H80: =SUMIF(DISTRICT!AH$9:AH$1000,">0",DISTRICT!Z$9:Z$1000) -> 0
B81: Nombre d’individus nécessitant une CP vivant dans des UMOs non ciblées pour la CP | E81: =SUMIF(DISTRICT!H$9:H$1000,"=0",DISTRICT!D$9:D$1000) -> 0 | F81: =SUMIF(DISTRICT!N$9:N$1000,"=0",DISTRICT!J$9:J$1000) -> 0 | G81: =SUMIF(DISTRICT!X$9:X$1000,"=0",DISTRICT!P$9:P$1000) -> 0 | H81: =SUMIF(DISTRICT!AH$9:AH$1000,"=0",DISTRICT!Z$9:Z$1000) -> 0
E82: =E35-E52 -> 285954 | F82: =F35-F52 -> 0 | G82: 66321.20619 | H82: 0
B83: Nombre d’UMOs nécessitant et recevant la CP | E83: =E31-E44 -> 0 | F83: =F31-F44 -> 0 | G83: 0 | H83: 0
E84: =E27-E31-E29 -> 0 | G84: 3 | H84: =H27-H31-H29 -> 
G86: Nécessitant et recevant une CP
G87: Nécessitant mais ne recevant pas de CP
G88: Ne nécessitant pas de CP
G89: Statut inconnu
B124: Cliquer ici pour accéder au portail des données de la CP

Sheet DATA_POLICY (hidden)
B2: Formulaire de Rapport Commun v.3.1
B4: Pays | D4: =IF(INTRO!$E$34<>0,INTRO!$E$34," ") -> COMORES | G4: Année | H4: =IF(INTRO!$E$36<>0,INTRO!$E$36," ") -> 2019
B7: Déclaration de principe sur la communication de données par l’OMS
B9: Les données sont le fondement de toutes les mesures rationnelles de santé publique et les avantages de la communication de données, y compris pour la science et la santé publique, sont largement reconnus. L’OMS souhaite promouvoir autant que possible la communication de données sanitaires, y compris, mais pas uniquement, de données épidémiologiques et de surveillance.
B14: ="À cet égard, et sans préjudice des instruments juridiquement contraignants régissant la communication et la publication d’informations, le Ministère de la santé de " & D4 & ", en fournissant des données à l’OMS :" -> À cet égard, et sans préjudice des instruments juridiquement contraignants régissant la communication et la publication d’informations, le Ministère de la santé de COMORES, en fournissant des données à l’OMS :
B18: confirme que toutes les données à fournir à l’OMS, ont été collectées conformément à la législation nationale applicable, y compris aux lois de protection des données visant à préserver l’anonymat des personnes identifiables ;
B23: ="convient que l’OMS aura le droit, toujours sous réserve des mesures visant à garantir l’utilisation éthique et sécurisée des données et toujours sous réserve d’une reconnaissance appropriée de la part de "&D4&":" -> convient que l’OMS aura le droit, toujours sous réserve des mesures visant à garantir l’utilisation éthique et sécurisée des données et toujours sous réserve d’une reconnaissance appropriée de la part de COMORES:
C27: de publier les données, dépourvues de tout élément d’identification personnelle (ci-après dénommées « les données ») et de les mettre à la disposition de toute partie intéressée, sur demande (dans la mesure où elles n’ont pas, ou pas encore, été publiées par l’OMS), selon des modalités autorisant leur utilisation non commerciale et sans but lucratif à des fins de santé publique (pour autant que l’OMS garde la maîtrise de la publication des données) ; d’utiliser, de compiler, d’agréger, d’évaluer et d’analyser les données et de publier et de diffuser les résultats obtenus grâce à ces données en rapport avec des travaux de l’OMS et conformément aux politiques et pratiques de l’Organisation.
B39: =CONCATENATE("Sauf lorsque des instruments juridiquement contraignants (RSI, Règlement de Nomenclature de l’OMS, de 1967, etc.) disposent que les données doivent être communiquées et publiées, le Ministère de la santé de ", D4," peut, pour certaines données, décider de ne pas appliquer (tout ou partie des) (les) dispositions qui précèdent," & " en informant l’OMS par écrit à l’adresse suivante, à condition que cette notification précise clairement les données, " & "dont il s’agit et indique clairement lesquelles des dispositions qui précèdent ne seront pas appliquées, et pour quels motifs.") -> Sauf lorsque des instruments juridiquement contraignants (RSI, Règlement de Nomenclature de l’OMS, de 1967, etc.) disposent que les données doivent être communiquées et publiées, le Ministère de la santé de COMORES peut, pour certaines données, décider de ne pas appliquer (tout ou partie des) (les) dispositions qui précèdent, en informant l’OMS par écrit à l’adresse suivante, à condition que cette notification précise clairement les données, dont il s’agit et indique clairement lesquelles des dispositions qui précèdent ne seront pas appliquées, et pour quels motifs.
